Body Name,Transaction Number,Account Code Description,Expenses Type,Service Code,Service Area Categorisation,Supplier Name,Date,Amount
Bath & North East Somerset Council,80027150,LL3,Supported Living,P03,Wellbeing,Terrence Higgins Trust West,03/10/2011,514.52
Bath & North East Somerset Council,80027169,LL3,Supported Living,P03,Wellbeing,Soundwell Music Therapy Trust,03/10/2011,613.70
Bath & North East Somerset Council,80027195,LL3,Supported Living,P03,Wellbeing,HANOVER HOUSING ASSOCIATION,03/10/2011,634.42
Bath & North East Somerset Council,80027184,LL3,Supported Living,P03,Wellbeing,BATH & NORTH EAST SOMERSET CARERS CENTRE,03/10/2011,843.80
Bath & North East Somerset Council,80027162,LL3,Supported Living,P03,Wellbeing,THE GUINNESS TRUST,03/10/2011,928.00
Bath & North East Somerset Council,80027148,LL3,Supported Living,P03,Wellbeing,OFF THE RECORD BATH & N E SOMERSET,03/10/2011,969.98
Bath & North East Somerset Council,80027178,LL3,Supported Living,P03,Wellbeing,PLACES FOR PEOPLE INDIVIDUAL SUPPORT,03/10/2011,1174.79
Bath & North East Somerset Council,80022734,LM8,Home Care,P03,Wellbeing,ACTIVE ASSISTANCE,03/10/2011,1200.00
Bath & North East Somerset Council,80022735,LM8,Home Care,P03,Wellbeing,ACTIVE ASSISTANCE,03/10/2011,1300.00
Bath & North East Somerset Council,10630250,LK1,Fees,P02,"Early Years, Children & Youth",ELLIS & ELLIS CONSULTANTS LTD,17/10/2011,0.80
Bath & North East Somerset Council,80027173,LL3,Supported Living,P03,Wellbeing,SWAN Advice Network,03/10/2011,1593.16
Bath & North East Somerset Council,80027197,LL3,Supported Living,P03,Wellbeing,KNIGHTSTONE HOUSING ASSOCIATION,03/10/2011,1632.83
Bath & North East Somerset Council,80027196,LL3,Supported Living,P03,Wellbeing,GUINNESS HOUSING ASSOCIATION,03/10/2011,1720.00
Bath & North East Somerset Council,80027153,LL3,Supported Living,P03,Wellbeing,Bath & North East Somerset People First,03/10/2011,2240.08
Bath & North East Somerset Council,80027168,LL3,Supported Living,P03,Wellbeing,CREATIVITY WORKS,03/10/2011,2450.44
Bath & North East Somerset Council,10629871,LJ4,Contracts,P02,"Early Years, Children & Youth",NATIONAL AUTISTIC SOCIETY,03/10/2011,2506.25
Bath & North East Somerset Council,80027159,LL3,Supported Living,P03,Wellbeing,KEY RING LIVING SUPPORT NETWOR,03/10/2011,2953.48
Bath & North East Somerset Council,80027190,LL3,Supported Living,P03,Wellbeing,CLEAN SLATE TRAINING & EMPLOYMENT LTD,03/10/2011,3068.48
Bath & North East Somerset Council,80027177,LL3,Supported Living,P03,Wellbeing,BCHA,03/10/2011,3736.28
Bath & North East Somerset Council,80027151,LL3,Supported Living,P03,Wellbeing,B&NES Supported Lodgings Scheme,03/10/2011,4674.29
Bath & North East Somerset Council,80027149,LL3,Supported Living,P03,Wellbeing,DRUGS & HOMELESS INITIATIVE,03/10/2011,4853.55
Bath & North East Somerset Council,80027188,LL3,Supported Living,P03,Wellbeing,The Care Forum,03/10/2011,5437.17
Bath & North East Somerset Council,80027161,LL3,Supported Living,P03,Wellbeing,SWALLOW LTD,03/10/2011,5557.15
Bath & North East Somerset Council,80027156,LL3,Supported Living,P03,Wellbeing,SOLON SW HA LTD,03/10/2011,6045.60
Bath & North East Somerset Council,80027154,LL3,Supported Living,P03,Wellbeing,Second Step Housing Association,03/10/2011,6670.80
Bath & North East Somerset Council,80027172,LL3,Supported Living,P03,Wellbeing,Rethink,03/10/2011,7422.43
Bath & North East Somerset Council,80027165,LL3,Supported Living,P03,Wellbeing,Breakthrough Deaf Hearing Integration,03/10/2011,7603.12
Bath & North East Somerset Council,80027163,LL3,Supported Living,P03,Wellbeing,STONEHAM HOUSING ASSOCIATION,03/10/2011,7759.56
Bath & North East Somerset Council,80027171,LL3,Supported Living,P03,Wellbeing,BATH MIND,03/10/2011,12765.28
Bath & North East Somerset Council,80027175,LL3,Supported Living,P03,Wellbeing,Mendip Care & Repair,03/10/2011,14603.28
Bath & North East Somerset Council,10632801,HA6,Planned Maintenance PCB,P07,Community Resources,TPM (SOUTH WEST) LTD,20/10/2011,1.90
Bath & North East Somerset Council,10631751,LJ1,Consultants Fees,P09,Homes & Planning,URBAN AND RURAL PLANNING ASSOCIATES LTD,21/10/2011,2.46
Bath & North East Somerset Council,10633200,HN1,Electricity,P05,Neighbourhoods,EDF ENERGY,24/10/2011,2.65
Bath & North East Somerset Council,80027186,LL3,Supported Living,P03,Wellbeing,Age Concern Bath & North East Somerset,03/10/2011,16071.69
Bath & North East Somerset Council,80027166,LL3,Supported Living,P03,Wellbeing,Alzheimer's Society,03/10/2011,16112.36
Bath & North East Somerset Council,80027183,LL3,Supported Living,P03,Wellbeing,BATH & NORTH EAST SOMERSET CARERS CENTRE,03/10/2011,20010.12
Bath & North East Somerset Council,80027179,LL3,Supported Living,P03,Wellbeing,Freeways,03/10/2011,20712.33
Bath & North East Somerset Council,80027167,LL3,Supported Living,P03,Wellbeing,ST MUNGO COMMUNITY HOUSING ASSOCIATION LTD,03/10/2011,26593.03
Bath & North East Somerset Council,80027191,LL3,Supported Living,P03,Wellbeing,BCHA,03/10/2011,26802.26
Bath & North East Somerset Council,80027176,LL3,Supported Living,P03,Wellbeing,Bath & District Citizens Advice Bureau,03/10/2011,32734.89
Bath & North East Somerset Council,80027182,LL3,Supported Living,P03,Wellbeing,DRUGS & HOMELESS INITIATIVE,03/10/2011,35591.28
Bath & North East Somerset Council,80027180,LL3,Supported Living,P03,Wellbeing,BATH SELF HELP HOUSING ASSOC,03/10/2011,36610.11
Bath & North East Somerset Council,80027198,LL3,Supported Living,P03,Wellbeing,SOMER COMMUNITY HOUSING TRUST,03/10/2011,56636.18
Bath & North East Somerset Council,80022741,LM8,Home Care,P03,Wellbeing,ROBERT SAGE LTD T/A PRESTIGE NURSING PAYROLL,04/10/2011,46.83
Bath & North East Somerset Council,80022731,LM8,Home Care,P03,Wellbeing,ROBERT SAGE LTD T/A PRESTIGE NURSING PAYROLL,04/10/2011,62.00
Bath & North East Somerset Council,80022727,LM8,Home Care,P03,Wellbeing,ROBERT SAGE LTD T/A PRESTIGE NURSING PAYROLL,04/10/2011,66.52
Bath & North East Somerset Council,10631205,LJ4,Contracts,P01,Transport,WELTON CABS,11/10/2011,7.00
Bath & North East Somerset Council,80022726,LM8,Home Care,P03,Wellbeing,ROBERT SAGE LTD T/A PRESTIGE NURSING PAYROLL,04/10/2011,67.51
Bath & North East Somerset Council,80022727,LM8,Home Care,P03,Wellbeing,ROBERT SAGE LTD T/A PRESTIGE NURSING PAYROLL,04/10/2011,107.56
Bath & North East Somerset Council,10631492,LJ1,Consultants Fees,P09,Homes & Planning,SMART GROWTH ECONOMICS,17/10/2011,10.40
Bath & North East Somerset Council,80022727,LM8,Home Care,P03,Wellbeing,ROBERT SAGE LTD T/A PRESTIGE NURSING PAYROLL,04/10/2011,504.04
Bath & North East Somerset Council,80027014,LM8,Home Care,P03,Wellbeing,STAR HOME CARE SERVICES LIMITED,04/10/2011,524.03
Bath & North East Somerset Council,80027025,LM8,Home Care,P03,Wellbeing,STAR HOME CARE SERVICES LIMITED,04/10/2011,524.03
Bath & North East Somerset Council,80022741,LM8,Home Care,P03,Wellbeing,ROBERT SAGE LTD T/A PRESTIGE NURSING PAYROLL,04/10/2011,543.62
Bath & North East Somerset Council,80022726,LM8,Home Care,P03,Wellbeing,ROBERT SAGE LTD T/A PRESTIGE NURSING PAYROLL,04/10/2011,871.56
Bath & North East Somerset Council,80022731,LM8,Home Care,P03,Wellbeing,ROBERT SAGE LTD T/A PRESTIGE NURSING PAYROLL,04/10/2011,1560.60
Bath & North East Somerset Council,10630098,LV1,Grants to Voluntary Bodies,P01,Transport,SWAN ADVICE NETWORK,04/10/2011,3450.25
Bath & North East Somerset Council,10630213,LV1,Grants to Voluntary Bodies,P03,Wellbeing,SHAW TRUST LTD,04/10/2011,12594.50
Bath & North East Somerset Council,10630214,LV1,Grants to Voluntary Bodies,P03,Wellbeing,SHAW TRUST LTD,04/10/2011,12594.50
Bath & North East Somerset Council,80027282,LM2,Foster Carer Allowances,P02,"Early Years, Children & Youth",REDACTED,05/10/2011,409.00
Bath & North East Somerset Council,80027282,LM2,Foster Carer Allowances,P02,"Early Years, Children & Youth",REDACTED,05/10/2011,409.00
Bath & North East Somerset Council,80027282,LM2,Foster Carer Allowances,P02,"Early Years, Children & Youth",REDACTED,05/10/2011,525.86
Bath & North East Somerset Council,80027254,LM4,Respite Care,P03,Wellbeing,REDACTED,05/10/2011,550.00
Bath & North East Somerset Council,80027257,LM4,Respite Care,P03,Wellbeing,REDACTED,05/10/2011,550.00
Bath & North East Somerset Council,80027282,LM2,Foster Carer Allowances,P02,"Early Years, Children & Youth",REDACTED,05/10/2011,584.29
Bath & North East Somerset Council,80027282,LM2,Foster Carer Allowances,P02,"Early Years, Children & Youth",REDACTED,05/10/2011,584.29
Bath & North East Somerset Council,10629910,LL3,Supported Living,P03,Wellbeing,THE BRANDON TRUST,05/10/2011,684.74
Bath & North East Somerset Council,10629995,LL3,Supported Living,P03,Wellbeing,THE BRANDON TRUST,05/10/2011,717.50
Bath & North East Somerset Council,80027152,LL3,Supported Living,P03,Wellbeing,SIRONA CARE & HEALTH [SEDGEMOOR],05/10/2011,829.00
Bath & North East Somerset Council,10629029,LL3,Supported Living,P03,Wellbeing,ROYAL MENCAP SOCIETY,05/10/2011,939.95
Bath & North East Somerset Council,10629912,LL3,Supported Living,P03,Wellbeing,THE BRANDON TRUST,05/10/2011,1154.86
Bath & North East Somerset Council,10629535,LM8,Home Care,P03,Wellbeing,LIFELINE HOMECARE LTD,05/10/2011,1195.08
Bath & North East Somerset Council,10629904,LL3,Supported Living,P03,Wellbeing,THE BRANDON TRUST,05/10/2011,1224.88
Bath & North East Somerset Council,10629907,LL3,Supported Living,P03,Wellbeing,THE BRANDON TRUST,05/10/2011,1358.13
Bath & North East Somerset Council,10629938,LL3,Supported Living,P03,Wellbeing,THE BRANDON TRUST,05/10/2011,1373.50
Bath & North East Somerset Council,10629911,LL3,Supported Living,P03,Wellbeing,THE BRANDON TRUST,05/10/2011,1415.47
Bath & North East Somerset Council,10629909,LL3,Supported Living,P03,Wellbeing,THE BRANDON TRUST,05/10/2011,1424.75
Bath & North East Somerset Council,80022739,LM8,Home Care,P03,Wellbeing,NURSING SOLUTIONS LIMITED,05/10/2011,1552.00
Bath & North East Somerset Council,10629620,LL3,Supported Living,P03,Wellbeing,ROYAL MENCAP SOCIETY,05/10/2011,2134.64
Bath & North East Somerset Council,10629621,LL3,Supported Living,P03,Wellbeing,ROYAL MENCAP SOCIETY,05/10/2011,2134.64
Bath & North East Somerset Council,80027187,LL3,Supported Living,P03,Wellbeing,The Stroke Association,05/10/2011,2237.92
Bath & North East Somerset Council,10629618,LL3,Supported Living,P03,Wellbeing,ROYAL MENCAP SOCIETY,05/10/2011,2737.64
Bath & North East Somerset Council,80027164,LL3,Supported Living,P03,Wellbeing,Bath Ethnic Minority Senior Citizens Association,05/10/2011,2906.48
Bath & North East Somerset Council,10629031,LL3,Supported Living,P03,Wellbeing,ROYAL MENCAP SOCIETY,05/10/2011,3039.58
Bath & North East Somerset Council,80027160,LL3,Supported Living,P03,Wellbeing,Next Link Domestic Abuse Services,05/10/2011,3331.10
Bath & North East Somerset Council,10629619,LL3,Supported Living,P03,Wellbeing,ROYAL MENCAP SOCIETY,05/10/2011,3927.96
Bath & North East Somerset Council,10629622,LL3,Supported Living,P03,Wellbeing,ROYAL MENCAP SOCIETY,05/10/2011,3994.96
Bath & North East Somerset Council,80027158,LL3,Supported Living,P03,Wellbeing,Next Link Domestic Abuse Services,05/10/2011,5087.70
Bath & North East Somerset Council,80027174,LL3,Supported Living,P03,Wellbeing,SPA,05/10/2011,6885.59
Bath & North East Somerset Council,80027189,LL3,Supported Living,P03,Wellbeing,Sirona Care and Health (Supported Living Service),05/10/2011,10635.29
Bath & North East Somerset Council,80027193,LL3,Supported Living,P03,Wellbeing,Bristol Credit Union,05/10/2011,100536.96
Bath & North East Somerset Council,10630411,LL3,Supported Living,P03,Wellbeing,DIMENSIONS (UK) LTD,06/10/2011,522.75
Bath & North East Somerset Council,10630400,LL3,Supported Living,P03,Wellbeing,THE BRANDON TRUST,06/10/2011,1107.00
Bath & North East Somerset Council,10630410,LL3,Supported Living,P03,Wellbeing,DIMENSIONS (UK) LTD,06/10/2011,1474.88
Bath & North East Somerset Council,80027762,LM8,Home Care,P03,Wellbeing,SAFE & SOUND HOMECARE SERVICES,07/10/2011,1.00
Bath & North East Somerset Council,80027762,LM8,Home Care,P03,Wellbeing,SAFE & SOUND HOMECARE SERVICES,07/10/2011,1.00
Bath & North East Somerset Council,80027762,LM8,Home Care,P03,Wellbeing,SAFE & SOUND HOMECARE SERVICES,07/10/2011,1.00
Bath & North East Somerset Council,80027762,LM8,Home Care,P03,Wellbeing,SAFE & SOUND HOMECARE SERVICES,07/10/2011,1.00
Bath & North East Somerset Council,80027762,LM8,Home Care,P03,Wellbeing,SAFE & SOUND HOMECARE SERVICES,07/10/2011,3.50
Bath & North East Somerset Council,80027762,LM8,Home Care,P03,Wellbeing,SAFE & SOUND HOMECARE SERVICES,07/10/2011,3.50
Bath & North East Somerset Council,80027762,LM8,Home Care,P03,Wellbeing,SAFE & SOUND HOMECARE SERVICES,07/10/2011,3.50
Bath & North East Somerset Council,80027762,LM8,Home Care,P03,Wellbeing,SAFE & SOUND HOMECARE SERVICES,07/10/2011,3.50
Bath & North East Somerset Council,80027762,LM8,Home Care,P03,Wellbeing,SAFE & SOUND HOMECARE SERVICES,07/10/2011,3.50
Bath & North East Somerset Council,80027762,LM8,Home Care,P03,Wellbeing,SAFE & SOUND HOMECARE SERVICES,07/10/2011,3.50
Bath & North East Somerset Council,80027762,LM8,Home Care,P03,Wellbeing,SAFE & SOUND HOMECARE SERVICES,07/10/2011,3.50
Bath & North East Somerset Council,80027762,LM8,Home Care,P03,Wellbeing,SAFE & SOUND HOMECARE SERVICES,07/10/2011,3.50
Bath & North East Somerset Council,80027773,LM8,Home Care,P03,Wellbeing,ROBERT SAGE LTD T/A PRESTIGE NURSING PAYROLL,07/10/2011,12.00
Bath & North East Somerset Council,80027771,LM8,Home Care,P03,Wellbeing,ROBERT SAGE LTD T/A PRESTIGE NURSING PAYROLL,07/10/2011,25.00
Bath & North East Somerset Council,80027776,LM8,Home Care,P03,Wellbeing,CARE SOUTH,07/10/2011,26.54
Bath & North East Somerset Council,80027762,LM8,Home Care,P03,Wellbeing,SAFE & SOUND HOMECARE SERVICES,07/10/2011,30.00
Bath & North East Somerset Council,80027762,LM8,Home Care,P03,Wellbeing,SAFE & SOUND HOMECARE SERVICES,07/10/2011,30.00
Bath & North East Somerset Council,80027762,LM8,Home Care,P03,Wellbeing,SAFE & SOUND HOMECARE SERVICES,07/10/2011,30.00
Bath & North East Somerset Council,80027762,LM8,Home Care,P03,Wellbeing,SAFE & SOUND HOMECARE SERVICES,07/10/2011,30.00
Bath & North East Somerset Council,80027764,LM8,Home Care,P03,Wellbeing,SAFE & SOUND HOMECARE SERVICES,07/10/2011,31.00
Bath & North East Somerset Council,80027764,LM8,Home Care,P03,Wellbeing,SAFE & SOUND HOMECARE SERVICES,07/10/2011,31.00
Bath & North East Somerset Council,80027764,LM8,Home Care,P03,Wellbeing,SAFE & SOUND HOMECARE SERVICES,07/10/2011,31.00
Bath & North East Somerset Council,80027764,LM8,Home Care,P03,Wellbeing,SAFE & SOUND HOMECARE SERVICES,07/10/2011,31.00
Bath & North East Somerset Council,80027764,LM8,Home Care,P03,Wellbeing,SAFE & SOUND HOMECARE SERVICES,07/10/2011,31.00
Bath & North East Somerset Council,80027780,LM8,Home Care,P03,Wellbeing,COMPLETE CARE SERVICES WILTSHIRE,07/10/2011,37.14
Bath & North East Somerset Council,80027780,LM8,Home Care,P03,Wellbeing,COMPLETE CARE SERVICES WILTSHIRE,07/10/2011,37.14
Bath & North East Somerset Council,80027780,LM8,Home Care,P03,Wellbeing,COMPLETE CARE SERVICES WILTSHIRE,07/10/2011,37.14
Bath & North East Somerset Council,80027780,LM8,Home Care,P03,Wellbeing,COMPLETE CARE SERVICES WILTSHIRE,07/10/2011,37.14
Bath & North East Somerset Council,80027780,LM8,Home Care,P03,Wellbeing,COMPLETE CARE SERVICES WILTSHIRE,07/10/2011,37.14
Bath & North East Somerset Council,80027780,LM8,Home Care,P03,Wellbeing,COMPLETE CARE SERVICES WILTSHIRE,07/10/2011,37.14
Bath & North East Somerset Council,80027780,LM8,Home Care,P03,Wellbeing,COMPLETE CARE SERVICES WILTSHIRE,07/10/2011,37.14
Bath & North East Somerset Council,80027780,LM8,Home Care,P03,Wellbeing,COMPLETE CARE SERVICES WILTSHIRE,07/10/2011,37.14
Bath & North East Somerset Council,80027779,LM8,Home Care,P03,Wellbeing,CARE SOUTH,07/10/2011,41.75
Bath & North East Somerset Council,80027779,LM8,Home Care,P03,Wellbeing,CARE SOUTH,07/10/2011,41.75
Bath & North East Somerset Council,80027779,LM8,Home Care,P03,Wellbeing,CARE SOUTH,07/10/2011,41.75
Bath & North East Somerset Council,80027779,LM8,Home Care,P03,Wellbeing,CARE SOUTH,07/10/2011,41.75
Bath & North East Somerset Council,80027779,LM8,Home Care,P03,Wellbeing,CARE SOUTH,07/10/2011,41.75
Bath & North East Somerset Council,80027775,LM8,Home Care,P03,Wellbeing,CARE SOUTH,07/10/2011,47.32
Bath & North East Somerset Council,80027779,LM8,Home Care,P03,Wellbeing,CARE SOUTH,07/10/2011,58.45
Bath & North East Somerset Council,80027779,LM8,Home Care,P03,Wellbeing,CARE SOUTH,07/10/2011,58.45
Bath & North East Somerset Council,80027779,LM8,Home Care,P03,Wellbeing,CARE SOUTH,07/10/2011,58.45
Bath & North East Somerset Council,80027779,LM8,Home Care,P03,Wellbeing,CARE SOUTH,07/10/2011,58.45
Bath & North East Somerset Council,10633071,KD1,Employees Public Transport,P02,"Early Years, Children & Youth",ATOS ORIGIN IT SERVICES (UK) LTD,25/10/2011,12.90
Bath & North East Somerset Council,80027779,LM8,Home Care,P03,Wellbeing,CARE SOUTH,07/10/2011,58.45
Bath & North East Somerset Council,80027770,LM8,Home Care,P03,Wellbeing,ROBERT SAGE LTD T/A PRESTIGE NURSING PAYROLL,07/10/2011,66.52
Bath & North East Somerset Council,80027778,LM8,Home Care,P03,Wellbeing,CARE SOUTH,07/10/2011,72.92
Bath & North East Somerset Council,80027762,LM8,Home Care,P03,Wellbeing,SAFE & SOUND HOMECARE SERVICES,07/10/2011,75.50
Bath & North East Somerset Council,10633071,KE3,Transport & Travel,P02,"Early Years, Children & Youth",ATOS ORIGIN IT SERVICES (UK) LTD,25/10/2011,16.20
Bath & North East Somerset Council,10633576,LW1,Rechargeable Works/Expenses,P03,Wellbeing,BNES-LEWIS HOUSE IMPREST A/C,26/10/2011,16.63
Bath & North East Somerset Council,80027762,LM8,Home Care,P03,Wellbeing,SAFE & SOUND HOMECARE SERVICES,07/10/2011,75.50
Bath & North East Somerset Council,10633071,KD1,Employees Public Transport,P02,"Early Years, Children & Youth",ATOS ORIGIN IT SERVICES (UK) LTD,25/10/2011,19.00
Bath & North East Somerset Council,80027762,LM8,Home Care,P03,Wellbeing,SAFE & SOUND HOMECARE SERVICES,07/10/2011,75.50
Bath & North East Somerset Council,80027762,LM8,Home Care,P03,Wellbeing,SAFE & SOUND HOMECARE SERVICES,07/10/2011,75.50
Bath & North East Somerset Council,80027764,LM8,Home Care,P03,Wellbeing,SAFE & SOUND HOMECARE SERVICES,07/10/2011,79.00
Bath & North East Somerset Council,80027764,LM8,Home Care,P03,Wellbeing,SAFE & SOUND HOMECARE SERVICES,07/10/2011,79.00
Bath & North East Somerset Council,10627953,3F7,External Fees,P01,Transport,SMART GROWTH ECONOMICS,05/10/2011,20.80
Bath & North East Somerset Council,10632007,LJ4,Contracts,P01,Transport,ABBEY TAXIS LIMITED,14/10/2011,20.94
Bath & North East Somerset Council,80027764,LM8,Home Care,P03,Wellbeing,SAFE & SOUND HOMECARE SERVICES,07/10/2011,79.00
Bath & North East Somerset Council,80027764,LM8,Home Care,P03,Wellbeing,SAFE & SOUND HOMECARE SERVICES,07/10/2011,79.00
Bath & North East Somerset Council,80027764,LM8,Home Care,P03,Wellbeing,SAFE & SOUND HOMECARE SERVICES,07/10/2011,79.00
Bath & North East Somerset Council,80027762,LM8,Home Care,P03,Wellbeing,SAFE & SOUND HOMECARE SERVICES,07/10/2011,84.50
Bath & North East Somerset Council,80027762,LM8,Home Care,P03,Wellbeing,SAFE & SOUND HOMECARE SERVICES,07/10/2011,112.00
Bath & North East Somerset Council,80027762,LM8,Home Care,P03,Wellbeing,SAFE & SOUND HOMECARE SERVICES,07/10/2011,112.00
Bath & North East Somerset Council,10632866,LJ3,Other Services to the Council,P07,Community Resources,BRISTOW & SUTOR,25/10/2011,24.50
Bath & North East Somerset Council,80027762,LM8,Home Care,P03,Wellbeing,SAFE & SOUND HOMECARE SERVICES,07/10/2011,112.00
Bath & North East Somerset Council,10631335,LF5,Postages,P02,"Early Years, Children & Youth",AWARD SCHEME LTD,11/10/2011,24.90
Bath & North East Somerset Council,80027762,LM8,Home Care,P03,Wellbeing,SAFE & SOUND HOMECARE SERVICES,07/10/2011,112.00
Bath & North East Somerset Council,80027764,LM8,Home Care,P03,Wellbeing,SAFE & SOUND HOMECARE SERVICES,07/10/2011,115.50
Bath & North East Somerset Council,80027764,LM8,Home Care,P03,Wellbeing,SAFE & SOUND HOMECARE SERVICES,07/10/2011,115.50
Bath & North East Somerset Council,80027764,LM8,Home Care,P03,Wellbeing,SAFE & SOUND HOMECARE SERVICES,07/10/2011,115.50
Bath & North East Somerset Council,80027764,LM8,Home Care,P03,Wellbeing,SAFE & SOUND HOMECARE SERVICES,07/10/2011,115.50
Bath & North East Somerset Council,80027764,LM8,Home Care,P03,Wellbeing,SAFE & SOUND HOMECARE SERVICES,07/10/2011,115.50
Bath & North East Somerset Council,80027779,LM8,Home Care,P03,Wellbeing,CARE SOUTH,07/10/2011,150.33
Bath & North East Somerset Council,80027779,LM8,Home Care,P03,Wellbeing,CARE SOUTH,07/10/2011,150.33
Bath & North East Somerset Council,10630675,3N7,Misc. Costs,P06,Sustainable Development,BOND PEARCE LLP,17/10/2011,27.00
Bath & North East Somerset Council,80027779,LM8,Home Care,P03,Wellbeing,CARE SOUTH,07/10/2011,150.33
Bath & North East Somerset Council,80027779,LM8,Home Care,P03,Wellbeing,CARE SOUTH,07/10/2011,150.33
Bath & North East Somerset Council,80027779,LM8,Home Care,P03,Wellbeing,CARE SOUTH,07/10/2011,150.33
Bath & North East Somerset Council,80027757,LL3,Supported Living,P03,Wellbeing,ROYAL MENCAP SOCIETY,07/10/2011,150.75
Bath & North East Somerset Council,80027757,LL3,Supported Living,P03,Wellbeing,ROYAL MENCAP SOCIETY,07/10/2011,150.75
Bath & North East Somerset Council,80027757,LL3,Supported Living,P03,Wellbeing,ROYAL MENCAP SOCIETY,07/10/2011,150.75
Bath & North East Somerset Council,80027757,LL3,Supported Living,P03,Wellbeing,ROYAL MENCAP SOCIETY,07/10/2011,150.75
Bath & North East Somerset Council,80027764,LM8,Home Care,P03,Wellbeing,SAFE & SOUND HOMECARE SERVICES,07/10/2011,155.50
Bath & North East Somerset Council,80027763,LM8,Home Care,P03,Wellbeing,SAFE & SOUND HOMECARE SERVICES,07/10/2011,208.50
Bath & North East Somerset Council,80027763,LM8,Home Care,P03,Wellbeing,SAFE & SOUND HOMECARE SERVICES,07/10/2011,208.50
Bath & North East Somerset Council,80027763,LM8,Home Care,P03,Wellbeing,SAFE & SOUND HOMECARE SERVICES,07/10/2011,208.50
Bath & North East Somerset Council,80027776,LM8,Home Care,P03,Wellbeing,CARE SOUTH,07/10/2011,233.80
Bath & North East Somerset Council,80027776,LM8,Home Care,P03,Wellbeing,CARE SOUTH,07/10/2011,233.80
Bath & North East Somerset Council,80027776,LM8,Home Care,P03,Wellbeing,CARE SOUTH,07/10/2011,233.80
Bath & North East Somerset Council,80027776,LM8,Home Care,P03,Wellbeing,CARE SOUTH,07/10/2011,233.80
Bath & North East Somerset Council,80027776,LM8,Home Care,P03,Wellbeing,CARE SOUTH,07/10/2011,233.80
Bath & North East Somerset Council,80027780,LM8,Home Care,P03,Wellbeing,COMPLETE CARE SERVICES WILTSHIRE,07/10/2011,296.91
Bath & North East Somerset Council,80027779,LM8,Home Care,P03,Wellbeing,CARE SOUTH,07/10/2011,340.00
Bath & North East Somerset Council,10630662,3F7,External Fees,P06,Sustainable Development,KLIMT & CO SOLICITORS,12/10/2011,32.00
Bath & North East Somerset Council,10633722,3F7,External Fees,P06,Sustainable Development,KLIMT & CO SOLICITORS,27/10/2011,32.00
Bath & North East Somerset Council,80027779,LM8,Home Care,P03,Wellbeing,CARE SOUTH,07/10/2011,340.00
Bath & North East Somerset Council,80027779,LM8,Home Care,P03,Wellbeing,CARE SOUTH,07/10/2011,340.00
Bath & North East Somerset Council,80027779,LM8,Home Care,P03,Wellbeing,CARE SOUTH,07/10/2011,340.00
Bath & North East Somerset Council,80027779,LM8,Home Care,P03,Wellbeing,CARE SOUTH,07/10/2011,340.00
Bath & North East Somerset Council,80027765,LM8,Home Care,P03,Wellbeing,SUPPORTED INDEPENDENCE,07/10/2011,409.50
Bath & North East Somerset Council,80027765,LM8,Home Care,P03,Wellbeing,SUPPORTED INDEPENDENCE,07/10/2011,409.50
Bath & North East Somerset Council,80027765,LM8,Home Care,P03,Wellbeing,SUPPORTED INDEPENDENCE,07/10/2011,409.50
Bath & North East Somerset Council,80027765,LM8,Home Care,P03,Wellbeing,SUPPORTED INDEPENDENCE,07/10/2011,409.50
Bath & North East Somerset Council,80027768,LM8,Home Care,P03,Wellbeing,AGINCARE LTD,07/10/2011,416.68
Bath & North East Somerset Council,80027768,LM8,Home Care,P03,Wellbeing,AGINCARE LTD,07/10/2011,416.68
Bath & North East Somerset Council,10631208,7F1,Rent,,,SOMER COMMUNITY HOUSING TRUST,11/10/2011,33.93
Bath & North East Somerset Council,80027768,LM8,Home Care,P03,Wellbeing,AGINCARE LTD,07/10/2011,416.68
Bath & North East Somerset Council,80027763,LM8,Home Care,P03,Wellbeing,SAFE & SOUND HOMECARE SERVICES,07/10/2011,420.00
Bath & North East Somerset Council,80027763,LM8,Home Care,P03,Wellbeing,SAFE & SOUND HOMECARE SERVICES,07/10/2011,420.00
Bath & North East Somerset Council,80027763,LM8,Home Care,P03,Wellbeing,SAFE & SOUND HOMECARE SERVICES,07/10/2011,420.00
Bath & North East Somerset Council,10633071,KE3,Transport & Travel,P02,"Early Years, Children & Youth",ATOS ORIGIN IT SERVICES (UK) LTD,25/10/2011,35.00
Bath & North East Somerset Council,10633071,KE3,Transport & Travel,P02,"Early Years, Children & Youth",ATOS ORIGIN IT SERVICES (UK) LTD,25/10/2011,35.00
Bath & North East Somerset Council,80027780,LM8,Home Care,P03,Wellbeing,COMPLETE CARE SERVICES WILTSHIRE,07/10/2011,426.15
Bath & North East Somerset Council,80027780,LM8,Home Care,P03,Wellbeing,COMPLETE CARE SERVICES WILTSHIRE,07/10/2011,426.15
Bath & North East Somerset Council,80027780,LM8,Home Care,P03,Wellbeing,COMPLETE CARE SERVICES WILTSHIRE,07/10/2011,426.15
Bath & North East Somerset Council,80027780,LM8,Home Care,P03,Wellbeing,COMPLETE CARE SERVICES WILTSHIRE,07/10/2011,426.15
Bath & North East Somerset Council,80027770,LM8,Home Care,P03,Wellbeing,ROBERT SAGE LTD T/A PRESTIGE NURSING PAYROLL,07/10/2011,504.04
Bath & North East Somerset Council,80027753,LL3,Supported Living,P03,Wellbeing,ASPECTS & MILESTONES TRUST,07/10/2011,518.44
Bath & North East Somerset Council,80027753,LL3,Supported Living,P03,Wellbeing,ASPECTS & MILESTONES TRUST,07/10/2011,518.44
Bath & North East Somerset Council,80027753,LL3,Supported Living,P03,Wellbeing,ASPECTS & MILESTONES TRUST,07/10/2011,518.44
Bath & North East Somerset Council,80027753,LL3,Supported Living,P03,Wellbeing,ASPECTS & MILESTONES TRUST,07/10/2011,518.44
Bath & North East Somerset Council,80027753,LL3,Supported Living,P03,Wellbeing,ASPECTS & MILESTONES TRUST,07/10/2011,518.44
Bath & North East Somerset Council,80027761,LM8,Home Care,P03,Wellbeing,STAR HOME CARE SERVICES LIMITED,07/10/2011,524.03
Bath & North East Somerset Council,10631546,LJ4,Contracts,P01,Transport,ABBEY TAXIS LIMITED,13/10/2011,37.23
Bath & North East Somerset Council,80027775,LM8,Home Care,P03,Wellbeing,CARE SOUTH,07/10/2011,526.05
Bath & North East Somerset Council,80027775,LM8,Home Care,P03,Wellbeing,CARE SOUTH,07/10/2011,526.05
Bath & North East Somerset Council,80027775,LM8,Home Care,P03,Wellbeing,CARE SOUTH,07/10/2011,526.05
Bath & North East Somerset Council,80027775,LM8,Home Care,P03,Wellbeing,CARE SOUTH,07/10/2011,526.05
Bath & North East Somerset Council,10630288,KX9,Other Transport Related,P02,"Early Years, Children & Youth",ELLIS & ELLIS CONSULTANTS LTD,17/10/2011,38.00
Bath & North East Somerset Council,80027778,LM8,Home Care,P03,Wellbeing,CARE SOUTH,07/10/2011,526.05
Bath & North East Somerset Council,80027778,LM8,Home Care,P03,Wellbeing,CARE SOUTH,07/10/2011,526.05
Bath & North East Somerset Council,80027778,LM8,Home Care,P03,Wellbeing,CARE SOUTH,07/10/2011,526.05
Bath & North East Somerset Council,80027778,LM8,Home Care,P03,Wellbeing,CARE SOUTH,07/10/2011,526.05
Bath & North East Somerset Council,10630773,KE1,Clients & Service Users Public Transport,P03,Wellbeing,SWAN ADVICE NETWORK,07/10/2011,543.20
Bath & North East Somerset Council,80027769,LM8,Home Care,P03,Wellbeing,ROBERT SAGE LTD T/A PRESTIGE NURSING PAYROLL,07/10/2011,543.62
Bath & North East Somerset Council,80027771,LM8,Home Care,P03,Wellbeing,ROBERT SAGE LTD T/A PRESTIGE NURSING PAYROLL,07/10/2011,871.56
Bath & North East Somerset Council,80027755,LL3,Supported Living,P03,Wellbeing,ROYAL MENCAP SOCIETY,07/10/2011,938.00
Bath & North East Somerset Council,80027781,LM8,Home Care,P03,Wellbeing,ACTIVE ASSISTANCE,07/10/2011,1200.00
Bath & North East Somerset Council,80027782,LM8,Home Care,P03,Wellbeing,ACTIVE ASSISTANCE,07/10/2011,1300.00
Bath & North East Somerset Council,10630624,LM9,Day Care,P03,Wellbeing,FREEWAYS TRUST LTD,07/10/2011,1365.00
Bath & North East Somerset Council,80027766,LM8,Home Care,P03,Wellbeing,NURSING SOLUTIONS LIMITED,07/10/2011,1552.00
Bath & North East Somerset Council,80027767,LM8,Home Care,P03,Wellbeing,NURSING SOLUTIONS LIMITED,07/10/2011,1552.00
Bath & North East Somerset Council,80027773,LM8,Home Care,P03,Wellbeing,ROBERT SAGE LTD T/A PRESTIGE NURSING PAYROLL,07/10/2011,1560.60
Bath & North East Somerset Council,10630896,LM2,Foster Carer Allowances,P02,"Early Years, Children & Youth",FOSTER CARE ASSOCIATES LTD,07/10/2011,3027.00
Bath & North East Somerset Council,10630387,LK1,Fees,P02,"Early Years, Children & Youth",HAYESFIELD SCHOOL,06/10/2011,38.97
Bath & North East Somerset Council,10630890,LM2,Foster Carer Allowances,P02,"Early Years, Children & Youth",FOSTER CARE ASSOCIATES LTD,07/10/2011,3222.60
Bath & North East Somerset Council,10630897,LM2,Foster Carer Allowances,P02,"Early Years, Children & Youth",FOSTER CARE ASSOCIATES LTD,07/10/2011,3325.80
Bath & North East Somerset Council,10630677,LM2,Foster Carer Allowances,P02,"Early Years, Children & Youth",FOSTER CARE ASSOCIATES LTD,07/10/2011,3573.30
Bath & North East Somerset Council,10630681,LM2,Foster Carer Allowances,P02,"Early Years, Children & Youth",FOSTER CARE ASSOCIATES LTD,07/10/2011,3573.30
Bath & North East Somerset Council,10630678,LM2,Foster Carer Allowances,P02,"Early Years, Children & Youth",FOSTER CARE ASSOCIATES LTD,07/10/2011,3916.80
Bath & North East Somerset Council,10630895,LM2,Foster Carer Allowances,P02,"Early Years, Children & Youth",FOSTER CARE ASSOCIATES LTD,07/10/2011,3916.80
Bath & North East Somerset Council,10630893,LM2,Foster Carer Allowances,P02,"Early Years, Children & Youth",FOSTER CARE ASSOCIATES LTD,07/10/2011,5883.90
Bath & North East Somerset Council,10630772,LM6,Nursing Care,P03,Wellbeing,KUMARI HOMECARE SERVICE,07/10/2011,6144.65
Bath & North East Somerset Council,10630772,LM6,Nursing Care,P03,Wellbeing,KUMARI HOMECARE SERVICE,07/10/2011,19055.33
Bath & North East Somerset Council,80028282,LM8,Home Care,P03,Wellbeing,SAFE & SOUND HOMECARE SERVICES,10/10/2011,1.00
Bath & North East Somerset Council,80028282,LM8,Home Care,P03,Wellbeing,SAFE & SOUND HOMECARE SERVICES,10/10/2011,1.00
Bath & North East Somerset Council,80028282,LM8,Home Care,P03,Wellbeing,SAFE & SOUND HOMECARE SERVICES,10/10/2011,1.00
Bath & North East Somerset Council,80028282,LM8,Home Care,P03,Wellbeing,SAFE & SOUND HOMECARE SERVICES,10/10/2011,1.00
Bath & North East Somerset Council,80028260,LM8,Home Care,P03,Wellbeing,KUMARI HOMECARE SERVICE,10/10/2011,5.90
Bath & North East Somerset Council,80028122,YF2,Fees & Charges,P03,Wellbeing,REDACTED,10/10/2011,6.09
Bath & North East Somerset Council,80028132,LL8,Individualised Budget,P03,Wellbeing,REDACTED,10/10/2011,7.50
Bath & North East Somerset Council,80028132,LL8,Individualised Budget,P03,Wellbeing,REDACTED,10/10/2011,7.50
Bath & North East Somerset Council,80028122,YF2,Fees & Charges,P03,Wellbeing,REDACTED,10/10/2011,10.65
Bath & North East Somerset Council,80028122,YF2,Fees & Charges,P03,Wellbeing,REDACTED,10/10/2011,10.65
Bath & North East Somerset Council,10630505,HA4,Responsive Maintenance PCB,P07,Community Resources,TPM (SOUTH WEST) LTD,06/10/2011,42.10
Bath & North East Somerset Council,80028122,YF2,Fees & Charges,P03,Wellbeing,REDACTED,10/10/2011,10.65
Bath & North East Somerset Council,80028122,YF2,Fees & Charges,P03,Wellbeing,REDACTED,10/10/2011,10.65
Bath & North East Somerset Council,80028191,YF2,Fees & Charges,P03,Wellbeing,REDACTED,10/10/2011,10.65
Bath & North East Somerset Council,80028191,YF2,Fees & Charges,P03,Wellbeing,REDACTED,10/10/2011,10.65
Bath & North East Somerset Council,80028191,YF2,Fees & Charges,P03,Wellbeing,REDACTED,10/10/2011,10.65
Bath & North East Somerset Council,80028191,YF2,Fees & Charges,P03,Wellbeing,REDACTED,10/10/2011,10.65
Bath & North East Somerset Council,80028191,YF2,Fees & Charges,P03,Wellbeing,REDACTED,10/10/2011,10.65
Bath & North East Somerset Council,80028191,YF2,Fees & Charges,P03,Wellbeing,REDACTED,10/10/2011,10.65
Bath & North East Somerset Council,80028191,YF2,Fees & Charges,P03,Wellbeing,REDACTED,10/10/2011,10.65
Bath & North East Somerset Council,80028191,YF2,Fees & Charges,P03,Wellbeing,REDACTED,10/10/2011,10.65
Bath & North East Somerset Council,10627337,LF5,Postages,P06,Sustainable Development,THE ROWBERROW CONSULTANCY,03/10/2011,44.40
Bath & North East Somerset Council,80028191,YF2,Fees & Charges,P03,Wellbeing,REDACTED,10/10/2011,10.65
Bath & North East Somerset Council,80028191,YF2,Fees & Charges,P03,Wellbeing,REDACTED,10/10/2011,10.65
Bath & North East Somerset Council,80028191,YF2,Fees & Charges,P03,Wellbeing,REDACTED,10/10/2011,10.65
Bath & North East Somerset Council,80028191,YF2,Fees & Charges,P03,Wellbeing,REDACTED,10/10/2011,10.65
Bath & North East Somerset Council,80028191,YF2,Fees & Charges,P03,Wellbeing,REDACTED,10/10/2011,10.65
Bath & North East Somerset Council,80028191,YF2,Fees & Charges,P03,Wellbeing,REDACTED,10/10/2011,10.65
Bath & North East Somerset Council,80028191,YF2,Fees & Charges,P03,Wellbeing,REDACTED,10/10/2011,10.65
Bath & North East Somerset Council,80028191,YF2,Fees & Charges,P03,Wellbeing,REDACTED,10/10/2011,10.65
Bath & North East Somerset Council,80028191,YF2,Fees & Charges,P03,Wellbeing,REDACTED,10/10/2011,10.65
Bath & North East Somerset Council,80028191,YF2,Fees & Charges,P03,Wellbeing,REDACTED,10/10/2011,10.65
Bath & North East Somerset Council,80028191,YF2,Fees & Charges,P03,Wellbeing,REDACTED,10/10/2011,10.65
Bath & North East Somerset Council,80028191,YF2,Fees & Charges,P03,Wellbeing,REDACTED,10/10/2011,10.65
Bath & North East Somerset Council,80028191,YF2,Fees & Charges,P03,Wellbeing,REDACTED,10/10/2011,10.65
Bath & North East Somerset Council,80028191,YF2,Fees & Charges,P03,Wellbeing,REDACTED,10/10/2011,10.65
Bath & North East Somerset Council,80028191,YF2,Fees & Charges,P03,Wellbeing,REDACTED,10/10/2011,10.65
Bath & North East Somerset Council,80028191,YF2,Fees & Charges,P03,Wellbeing,REDACTED,10/10/2011,10.65
Bath & North East Somerset Council,80028191,YF2,Fees & Charges,P03,Wellbeing,REDACTED,10/10/2011,10.65
Bath & North East Somerset Council,80028247,YF2,Fees & Charges,P03,Wellbeing,REDACTED,10/10/2011,10.65
Bath & North East Somerset Council,80028247,YF2,Fees & Charges,P03,Wellbeing,REDACTED,10/10/2011,10.65
Bath & North East Somerset Council,80028247,YF2,Fees & Charges,P03,Wellbeing,REDACTED,10/10/2011,10.65
Bath & North East Somerset Council,80028247,YF2,Fees & Charges,P03,Wellbeing,REDACTED,10/10/2011,10.65
Bath & North East Somerset Council,80028247,YF2,Fees & Charges,P03,Wellbeing,REDACTED,10/10/2011,10.65
Bath & North East Somerset Council,80028247,YF2,Fees & Charges,P03,Wellbeing,REDACTED,10/10/2011,10.65
Bath & North East Somerset Council,80028247,YF2,Fees & Charges,P03,Wellbeing,REDACTED,10/10/2011,10.65
Bath & North East Somerset Council,80028247,YF2,Fees & Charges,P03,Wellbeing,REDACTED,10/10/2011,10.65
Bath & North East Somerset Council,80028247,YF2,Fees & Charges,P03,Wellbeing,REDACTED,10/10/2011,10.65
Bath & North East Somerset Council,80028247,YF2,Fees & Charges,P03,Wellbeing,REDACTED,10/10/2011,10.65
Bath & North East Somerset Council,80028247,YF2,Fees & Charges,P03,Wellbeing,REDACTED,10/10/2011,10.65
Bath & North East Somerset Council,80028247,YF2,Fees & Charges,P03,Wellbeing,REDACTED,10/10/2011,10.65
Bath & North East Somerset Council,10633071,KE3,Transport & Travel,P02,"Early Years, Children & Youth",ATOS ORIGIN IT SERVICES (UK) LTD,25/10/2011,47.20
Bath & North East Somerset Council,80028247,YF2,Fees & Charges,P03,Wellbeing,REDACTED,10/10/2011,10.65
Bath & North East Somerset Council,80028247,YF2,Fees & Charges,P03,Wellbeing,REDACTED,10/10/2011,10.65
Bath & North East Somerset Council,80028247,YF2,Fees & Charges,P03,Wellbeing,REDACTED,10/10/2011,10.65
Bath & North East Somerset Council,80028247,YF2,Fees & Charges,P03,Wellbeing,REDACTED,10/10/2011,10.65
Bath & North East Somerset Council,80028247,YF2,Fees & Charges,P03,Wellbeing,REDACTED,10/10/2011,10.65
Bath & North East Somerset Council,80028247,YF2,Fees & Charges,P03,Wellbeing,REDACTED,10/10/2011,10.65
Bath & North East Somerset Council,80028247,YF2,Fees & Charges,P03,Wellbeing,REDACTED,10/10/2011,10.65
Bath & North East Somerset Council,80028247,YF2,Fees & Charges,P03,Wellbeing,REDACTED,10/10/2011,10.65
Bath & North East Somerset Council,80028247,YF2,Fees & Charges,P03,Wellbeing,REDACTED,10/10/2011,10.65
Bath & North East Somerset Council,80028247,YF2,Fees & Charges,P03,Wellbeing,REDACTED,10/10/2011,10.65
Bath & North East Somerset Council,80028247,YF2,Fees & Charges,P03,Wellbeing,REDACTED,10/10/2011,10.65
Bath & North East Somerset Council,10631352,YF2,Fees & Charges,P06,Sustainable Development,HAMMONDS PROJECT MANAGEMENT SERVICES LTD,14/10/2011,50.00
Bath & North East Somerset Council,10631398,LK4,Nursery/Childcare Vouchers,P02,"Early Years, Children & Youth",SKOOL KIDZ CHILDCARE LTD,12/10/2011,50.00
Bath & North East Somerset Council,80028247,YF2,Fees & Charges,P03,Wellbeing,REDACTED,10/10/2011,10.65
Bath & North East Somerset Council,80028247,YF2,Fees & Charges,P03,Wellbeing,REDACTED,10/10/2011,10.65
Bath & North East Somerset Council,80028232,LM8,Home Care,P03,Wellbeing,GROVE CARE LTD T/A BATH COMMUNITY CARE,10/10/2011,13.83
Bath & North East Somerset Council,10631335,LA1,Equipment Purchase (Non Medical),P02,"Early Years, Children & Youth",AWARD SCHEME LTD,11/10/2011,50.10
Bath & North East Somerset Council,80028271,LM8,Home Care,P03,Wellbeing,MCKINNONS PRIVATE HOME CARE AGENCY,10/10/2011,24.51
Bath & North East Somerset Council,80028053,LL3,Supported Living,P03,Wellbeing,SUPPORTED INDEPENDENCE,10/10/2011,25.27
Bath & North East Somerset Council,80028282,LM8,Home Care,P03,Wellbeing,SAFE & SOUND HOMECARE SERVICES,10/10/2011,30.00
Bath & North East Somerset Council,80028282,LM8,Home Care,P03,Wellbeing,SAFE & SOUND HOMECARE SERVICES,10/10/2011,30.00
Bath & North East Somerset Council,80028244,LM8,Home Care,P03,Wellbeing,AMBER HOMECARE LTD,10/10/2011,34.48
Bath & North East Somerset Council,80028158,LL8,Individualised Budget,P03,Wellbeing,PHOENIX (SW) LTD,10/10/2011,37.69
Bath & North East Somerset Council,80028158,LL8,Individualised Budget,P03,Wellbeing,PHOENIX (SW) LTD,10/10/2011,37.69
Bath & North East Somerset Council,80027915,LL4,Direct Payments,P02,"Early Years, Children & Youth",SHAW TRUST LTD,10/10/2011,39.18
Bath & North East Somerset Council,80027915,LL4,Direct Payments,P02,"Early Years, Children & Youth",SHAW TRUST LTD,10/10/2011,39.18
Bath & North East Somerset Council,80027915,LL4,Direct Payments,P02,"Early Years, Children & Youth",SHAW TRUST LTD,10/10/2011,41.16
Bath & North East Somerset Council,80027915,LL4,Direct Payments,P02,"Early Years, Children & Youth",SHAW TRUST LTD,10/10/2011,41.16
Bath & North East Somerset Council,80028232,LM8,Home Care,P03,Wellbeing,GROVE CARE LTD T/A BATH COMMUNITY CARE,10/10/2011,42.69
Bath & North East Somerset Council,80027915,LL4,Direct Payments,P02,"Early Years, Children & Youth",SHAW TRUST LTD,10/10/2011,46.20
Bath & North East Somerset Council,10632375,KA2,Running Costs,P01,Transport,H F VEALE & SONS,18/10/2011,54.00
Bath & North East Somerset Council,80027915,LL4,Direct Payments,P02,"Early Years, Children & Youth",SHAW TRUST LTD,10/10/2011,46.20
Bath & North East Somerset Council,80027915,LL4,Direct Payments,P03,Wellbeing,SHAW TRUST LTD,10/10/2011,49.99
Bath & North East Somerset Council,80027915,LL4,Direct Payments,P03,Wellbeing,SHAW TRUST LTD,10/10/2011,49.99
Bath & North East Somerset Council,80028245,LL3,Supported Living,P03,Wellbeing,ARCH CARE SERVICES,10/10/2011,54.00
Bath & North East Somerset Council,80028245,LL3,Supported Living,P03,Wellbeing,ARCH CARE SERVICES,10/10/2011,54.00
Bath & North East Somerset Council,80027915,LL4,Direct Payments,P03,Wellbeing,SHAW TRUST LTD,10/10/2011,66.35
Bath & North East Somerset Council,80027915,LL4,Direct Payments,P03,Wellbeing,SHAW TRUST LTD,10/10/2011,66.35
Bath & North East Somerset Council,80027915,LL4,Direct Payments,P02,"Early Years, Children & Youth",SHAW TRUST LTD,10/10/2011,66.78
Bath & North East Somerset Council,80027915,LL4,Direct Payments,P02,"Early Years, Children & Youth",SHAW TRUST LTD,10/10/2011,66.78
Bath & North East Somerset Council,80028271,LM8,Home Care,P03,Wellbeing,MCKINNONS PRIVATE HOME CARE AGENCY,10/10/2011,73.80
Bath & North East Somerset Council,80028271,LM8,Home Care,P03,Wellbeing,MCKINNONS PRIVATE HOME CARE AGENCY,10/10/2011,73.80
Bath & North East Somerset Council,80027915,LL4,Direct Payments,P02,"Early Years, Children & Youth",SHAW TRUST LTD,10/10/2011,79.02
Bath & North East Somerset Council,80027915,LL4,Direct Payments,P02,"Early Years, Children & Youth",SHAW TRUST LTD,10/10/2011,79.02
Bath & North East Somerset Council,80027915,LL4,Direct Payments,P03,Wellbeing,SHAW TRUST LTD,10/10/2011,80.57
Bath & North East Somerset Council,80027915,LL4,Direct Payments,P03,Wellbeing,SHAW TRUST LTD,10/10/2011,80.57
Bath & North East Somerset Council,80028116,LM8,Home Care,P03,Wellbeing,RV CARE SOMERSET LTD,10/10/2011,80.74
Bath & North East Somerset Council,80028116,LM8,Home Care,P03,Wellbeing,RV CARE SOMERSET LTD,10/10/2011,80.74
Bath & North East Somerset Council,80028116,LM8,Home Care,P03,Wellbeing,RV CARE SOMERSET LTD,10/10/2011,80.74
Bath & North East Somerset Council,80028116,LM8,Home Care,P03,Wellbeing,RV CARE SOMERSET LTD,10/10/2011,80.74
Bath & North East Somerset Council,80027915,LL4,Direct Payments,P03,Wellbeing,SHAW TRUST LTD,10/10/2011,82.32
Bath & North East Somerset Council,80027915,LL4,Direct Payments,P03,Wellbeing,SHAW TRUST LTD,10/10/2011,82.32
Bath & North East Somerset Council,80028116,LM8,Home Care,P03,Wellbeing,RV CARE SOMERSET LTD,10/10/2011,85.85
Bath & North East Somerset Council,80028116,LM8,Home Care,P03,Wellbeing,RV CARE SOMERSET LTD,10/10/2011,85.85
Bath & North East Somerset Council,80028116,LM8,Home Care,P03,Wellbeing,RV CARE SOMERSET LTD,10/10/2011,88.00
Bath & North East Somerset Council,80028116,LM8,Home Care,P03,Wellbeing,RV CARE SOMERSET LTD,10/10/2011,88.00
Bath & North East Somerset Council,80028260,LM8,Home Care,P03,Wellbeing,KUMARI HOMECARE SERVICE,10/10/2011,89.79
Bath & North East Somerset Council,80028260,LM8,Home Care,P03,Wellbeing,KUMARI HOMECARE SERVICE,10/10/2011,89.79
Bath & North East Somerset Council,80028053,LL3,Supported Living,P03,Wellbeing,SUPPORTED INDEPENDENCE,10/10/2011,90.70
Bath & North East Somerset Council,80028021,LL3,Supported Living,P03,Wellbeing,ACTION ON HEARING LOSS,10/10/2011,96.87
Bath & North East Somerset Council,80028275,LL3,Supported Living,P03,Wellbeing,OPTIONS FOR LIVING LTD,10/10/2011,101.52
Bath & North East Somerset Council,80028275,LL3,Supported Living,P03,Wellbeing,OPTIONS FOR LIVING LTD,10/10/2011,101.52
Bath & North East Somerset Council,80027915,LL4,Direct Payments,P03,Wellbeing,SHAW TRUST LTD,10/10/2011,102.90
Bath & North East Somerset Council,80027915,LL4,Direct Payments,P03,Wellbeing,SHAW TRUST LTD,10/10/2011,102.90
Bath & North East Somerset Council,80028244,LM8,Home Care,P03,Wellbeing,AMBER HOMECARE LTD,10/10/2011,103.90
Bath & North East Somerset Council,80028249,LM8,Home Care,P03,Wellbeing,CARE & CONTINUITY,10/10/2011,108.00
Bath & North East Somerset Council,80028249,LM8,Home Care,P03,Wellbeing,CARE & CONTINUITY,10/10/2011,108.00
Bath & North East Somerset Council,80027961,LM6,Nursing Care,P03,Wellbeing,BARCHESTER HEALTHCARE HOMES LTD,10/10/2011,111.43
Bath & North East Somerset Council,80028116,LM8,Home Care,P03,Wellbeing,RV CARE SOMERSET LTD,10/10/2011,115.00
Bath & North East Somerset Council,80028116,LM8,Home Care,P03,Wellbeing,RV CARE SOMERSET LTD,10/10/2011,115.00
Bath & North East Somerset Council,80028116,LM8,Home Care,P03,Wellbeing,RV CARE SOMERSET LTD,10/10/2011,116.00
Bath & North East Somerset Council,80028116,LM8,Home Care,P03,Wellbeing,RV CARE SOMERSET LTD,10/10/2011,116.00
Bath & North East Somerset Council,80028116,LM8,Home Care,P03,Wellbeing,RV CARE SOMERSET LTD,10/10/2011,116.00
Bath & North East Somerset Council,80028116,LM8,Home Care,P03,Wellbeing,RV CARE SOMERSET LTD,10/10/2011,116.00
Bath & North East Somerset Council,80028232,LM8,Home Care,P03,Wellbeing,GROVE CARE LTD T/A BATH COMMUNITY CARE,10/10/2011,116.45
Bath & North East Somerset Council,10631546,LJ4,Contracts,P01,Transport,ABBEY TAXIS LIMITED,13/10/2011,60.52
Bath & North East Somerset Council,10629810,LC1,Provisions,P03,Wellbeing,L & F JONES HOLDINGS LTD,03/10/2011,61.86
Bath & North East Somerset Council,80028232,LM8,Home Care,P03,Wellbeing,GROVE CARE LTD T/A BATH COMMUNITY CARE,10/10/2011,116.45
Bath & North East Somerset Council,80028052,LL3,Supported Living,P03,Wellbeing,SUPPORTED INDEPENDENCE,10/10/2011,118.61
Bath & North East Somerset Council,80028017,LL3,Supported Living,P03,Wellbeing,CROSSROADS CARE WESSEX LTD,10/10/2011,130.50
Bath & North East Somerset Council,10630308,KX9,Other Transport Related,P02,"Early Years, Children & Youth",SFLEC LTD,17/10/2011,63.27
Bath & North East Somerset Council,80028017,LL3,Supported Living,P03,Wellbeing,CROSSROADS CARE WESSEX LTD,10/10/2011,130.50
Bath & North East Somerset Council,80028017,LL3,Supported Living,P03,Wellbeing,CROSSROADS CARE WESSEX LTD,10/10/2011,130.50
Bath & North East Somerset Council,80028017,LL3,Supported Living,P03,Wellbeing,CROSSROADS CARE WESSEX LTD,10/10/2011,130.50
Bath & North East Somerset Council,80028249,LM8,Home Care,P03,Wellbeing,CARE & CONTINUITY,10/10/2011,131.00
Bath & North East Somerset Council,80028249,LM8,Home Care,P03,Wellbeing,CARE & CONTINUITY,10/10/2011,131.00
Bath & North East Somerset Council,80028027,LL3,Supported Living,P03,Wellbeing,ACTION ON HEARING LOSS,10/10/2011,134.00
Bath & North East Somerset Council,80028027,LL3,Supported Living,P03,Wellbeing,ACTION ON HEARING LOSS,10/10/2011,134.00
Bath & North East Somerset Council,80028027,LL3,Supported Living,P03,Wellbeing,ACTION ON HEARING LOSS,10/10/2011,134.00
Bath & North East Somerset Council,80028027,LL3,Supported Living,P03,Wellbeing,ACTION ON HEARING LOSS,10/10/2011,134.00
Bath & North East Somerset Council,80028073,LM8,Home Care,P03,Wellbeing,METHODIST HOMES FOR THE AGED,10/10/2011,135.10
Bath & North East Somerset Council,80028073,LM8,Home Care,P03,Wellbeing,METHODIST HOMES FOR THE AGED,10/10/2011,135.10
Bath & North East Somerset Council,80028073,LM8,Home Care,P03,Wellbeing,METHODIST HOMES FOR THE AGED,10/10/2011,135.10
Bath & North East Somerset Council,80028073,LM8,Home Care,P03,Wellbeing,METHODIST HOMES FOR THE AGED,10/10/2011,135.10
Bath & North East Somerset Council,80028116,LM8,Home Care,P03,Wellbeing,RV CARE SOMERSET LTD,10/10/2011,141.04
Bath & North East Somerset Council,80028116,LM8,Home Care,P03,Wellbeing,RV CARE SOMERSET LTD,10/10/2011,141.04
Bath & North East Somerset Council,10631058,LJ3,Other Services to the Council,P07,Community Resources,BRISTOW & SUTOR,11/10/2011,65.00
Bath & North East Somerset Council,10633071,LK1,Fees,P02,"Early Years, Children & Youth",ATOS ORIGIN IT SERVICES (UK) LTD,25/10/2011,65.00
Bath & North East Somerset Council,80028158,LL8,Individualised Budget,P03,Wellbeing,PHOENIX (SW) LTD,10/10/2011,147.60
Bath & North East Somerset Council,80028158,LL8,Individualised Budget,P03,Wellbeing,PHOENIX (SW) LTD,10/10/2011,147.60
Bath & North East Somerset Council,80028282,LM8,Home Care,P03,Wellbeing,SAFE & SOUND HOMECARE SERVICES,10/10/2011,151.00
Bath & North East Somerset Council,80028282,LM8,Home Care,P03,Wellbeing,SAFE & SOUND HOMECARE SERVICES,10/10/2011,151.00
Bath & North East Somerset Council,80028282,LM8,Home Care,P03,Wellbeing,SAFE & SOUND HOMECARE SERVICES,10/10/2011,151.00
Bath & North East Somerset Council,80028282,LM8,Home Care,P03,Wellbeing,SAFE & SOUND HOMECARE SERVICES,10/10/2011,151.00
Bath & North East Somerset Council,80028030,LL3,Supported Living,P03,Wellbeing,ACTION ON HEARING LOSS,10/10/2011,155.34
Bath & North East Somerset Council,80028030,LL3,Supported Living,P03,Wellbeing,ACTION ON HEARING LOSS,10/10/2011,155.34
Bath & North East Somerset Council,80028030,LL3,Supported Living,P03,Wellbeing,ACTION ON HEARING LOSS,10/10/2011,155.34
Bath & North East Somerset Council,80028030,LL3,Supported Living,P03,Wellbeing,ACTION ON HEARING LOSS,10/10/2011,155.34
Bath & North East Somerset Council,80027959,LM6,Nursing Care,P03,Wellbeing,CHOLWELL HOUSE NURSING HOME,10/10/2011,156.00
Bath & North East Somerset Council,80027959,LM6,Nursing Care,P03,Wellbeing,CHOLWELL HOUSE NURSING HOME,10/10/2011,156.00
Bath & North East Somerset Council,80028116,LM8,Home Care,P03,Wellbeing,RV CARE SOMERSET LTD,10/10/2011,157.00
Bath & North East Somerset Council,80028116,LM8,Home Care,P03,Wellbeing,RV CARE SOMERSET LTD,10/10/2011,157.00
Bath & North East Somerset Council,80028116,LM8,Home Care,P03,Wellbeing,RV CARE SOMERSET LTD,10/10/2011,158.00
Bath & North East Somerset Council,80028116,LM8,Home Care,P03,Wellbeing,RV CARE SOMERSET LTD,10/10/2011,158.00
Bath & North East Somerset Council,80028116,LM8,Home Care,P03,Wellbeing,RV CARE SOMERSET LTD,10/10/2011,160.00
Bath & North East Somerset Council,80028116,LM8,Home Care,P03,Wellbeing,RV CARE SOMERSET LTD,10/10/2011,160.00
Bath & North East Somerset Council,80028249,LM8,Home Care,P03,Wellbeing,CARE & CONTINUITY,10/10/2011,161.48
Bath & North East Somerset Council,80028249,LM8,Home Care,P03,Wellbeing,CARE & CONTINUITY,10/10/2011,161.48
Bath & North East Somerset Council,80028293,LM6,Nursing Care,P03,Wellbeing,WESTCROFT NURSING HOME,10/10/2011,164.29
Bath & North East Somerset Council,80028116,LM8,Home Care,P03,Wellbeing,RV CARE SOMERSET LTD,10/10/2011,170.67
Bath & North East Somerset Council,80028116,LM8,Home Care,P03,Wellbeing,RV CARE SOMERSET LTD,10/10/2011,170.67
Bath & North East Somerset Council,80028026,LL3,Supported Living,P03,Wellbeing,ACTION ON HEARING LOSS,10/10/2011,173.73
Bath & North East Somerset Council,80028026,LL3,Supported Living,P03,Wellbeing,ACTION ON HEARING LOSS,10/10/2011,173.73
Bath & North East Somerset Council,80028026,LL3,Supported Living,P03,Wellbeing,ACTION ON HEARING LOSS,10/10/2011,173.73
Bath & North East Somerset Council,80028026,LL3,Supported Living,P03,Wellbeing,ACTION ON HEARING LOSS,10/10/2011,173.73
Bath & North East Somerset Council,80028191,LL8,Individualised Budget,P03,Wellbeing,REDACTED,10/10/2011,175.57
Bath & North East Somerset Council,80028191,LL8,Individualised Budget,P03,Wellbeing,REDACTED,10/10/2011,175.57
Bath & North East Somerset Council,80028116,LM8,Home Care,P03,Wellbeing,RV CARE SOMERSET LTD,10/10/2011,179.43
Bath & North East Somerset Council,80028116,LM8,Home Care,P03,Wellbeing,RV CARE SOMERSET LTD,10/10/2011,181.00
Bath & North East Somerset Council,80028116,LM8,Home Care,P03,Wellbeing,RV CARE SOMERSET LTD,10/10/2011,181.00
Bath & North East Somerset Council,80028271,LM8,Home Care,P03,Wellbeing,MCKINNONS PRIVATE HOME CARE AGENCY,10/10/2011,185.36
Bath & North East Somerset Council,10632131,LC1,Provisions,P03,Wellbeing,L & F JONES HOLDINGS LTD,17/10/2011,70.64
Bath & North East Somerset Council,80028271,LM8,Home Care,P03,Wellbeing,MCKINNONS PRIVATE HOME CARE AGENCY,10/10/2011,185.36
Bath & North East Somerset Council,80027964,LM6,Nursing Care,P03,Wellbeing,EUROPEAN CARE (UK) LTD - REDACTED,10/10/2011,185.71
Bath & North East Somerset Council,80028282,LM8,Home Care,P03,Wellbeing,SAFE & SOUND HOMECARE SERVICES,10/10/2011,187.50
Bath & North East Somerset Council,80028282,LM8,Home Care,P03,Wellbeing,SAFE & SOUND HOMECARE SERVICES,10/10/2011,187.50
Bath & North East Somerset Council,80028275,LL3,Supported Living,P03,Wellbeing,OPTIONS FOR LIVING LTD,10/10/2011,188.00
Bath & North East Somerset Council,80028275,LL3,Supported Living,P03,Wellbeing,OPTIONS FOR LIVING LTD,10/10/2011,188.00
Bath & North East Somerset Council,80028275,LL3,Supported Living,P03,Wellbeing,OPTIONS FOR LIVING LTD,10/10/2011,206.80
Bath & North East Somerset Council,80028275,LL3,Supported Living,P03,Wellbeing,OPTIONS FOR LIVING LTD,10/10/2011,206.80
Bath & North East Somerset Council,80028053,LL3,Supported Living,P03,Wellbeing,SUPPORTED INDEPENDENCE,10/10/2011,207.57
Bath & North East Somerset Council,80028053,LL3,Supported Living,P03,Wellbeing,SUPPORTED INDEPENDENCE,10/10/2011,207.57
Bath & North East Somerset Council,80028053,LL3,Supported Living,P03,Wellbeing,SUPPORTED INDEPENDENCE,10/10/2011,207.57
Bath & North East Somerset Council,80028053,LL3,Supported Living,P03,Wellbeing,SUPPORTED INDEPENDENCE,10/10/2011,207.57
Bath & North East Somerset Council,80028053,LL3,Supported Living,P03,Wellbeing,SUPPORTED INDEPENDENCE,10/10/2011,207.57
Bath & North East Somerset Council,80028053,LL3,Supported Living,P03,Wellbeing,SUPPORTED INDEPENDENCE,10/10/2011,207.57
Bath & North East Somerset Council,80028053,LL3,Supported Living,P03,Wellbeing,SUPPORTED INDEPENDENCE,10/10/2011,207.57
Bath & North East Somerset Council,80028053,LL3,Supported Living,P03,Wellbeing,SUPPORTED INDEPENDENCE,10/10/2011,207.57
Bath & North East Somerset Council,80028053,LL3,Supported Living,P03,Wellbeing,SUPPORTED INDEPENDENCE,10/10/2011,207.57
Bath & North East Somerset Council,80028053,LL3,Supported Living,P03,Wellbeing,SUPPORTED INDEPENDENCE,10/10/2011,207.57
Bath & North East Somerset Council,80028053,LL3,Supported Living,P03,Wellbeing,SUPPORTED INDEPENDENCE,10/10/2011,207.57
Bath & North East Somerset Council,80028053,LL3,Supported Living,P03,Wellbeing,SUPPORTED INDEPENDENCE,10/10/2011,207.57
Bath & North East Somerset Council,80028053,LL3,Supported Living,P03,Wellbeing,SUPPORTED INDEPENDENCE,10/10/2011,207.57
Bath & North East Somerset Council,80028053,LL3,Supported Living,P03,Wellbeing,SUPPORTED INDEPENDENCE,10/10/2011,207.57
Bath & North East Somerset Council,80028053,LL3,Supported Living,P03,Wellbeing,SUPPORTED INDEPENDENCE,10/10/2011,207.57
Bath & North East Somerset Council,80028053,LL3,Supported Living,P03,Wellbeing,SUPPORTED INDEPENDENCE,10/10/2011,207.57
Bath & North East Somerset Council,80028053,LL3,Supported Living,P03,Wellbeing,SUPPORTED INDEPENDENCE,10/10/2011,207.57
Bath & North East Somerset Council,80028053,LL3,Supported Living,P03,Wellbeing,SUPPORTED INDEPENDENCE,10/10/2011,207.57
Bath & North East Somerset Council,80028053,LL3,Supported Living,P03,Wellbeing,SUPPORTED INDEPENDENCE,10/10/2011,207.57
Bath & North East Somerset Council,80028053,LL3,Supported Living,P03,Wellbeing,SUPPORTED INDEPENDENCE,10/10/2011,207.57
Bath & North East Somerset Council,80028053,LL3,Supported Living,P03,Wellbeing,SUPPORTED INDEPENDENCE,10/10/2011,207.57
Bath & North East Somerset Council,80028053,LL3,Supported Living,P03,Wellbeing,SUPPORTED INDEPENDENCE,10/10/2011,207.57
Bath & North East Somerset Council,80028053,LL3,Supported Living,P03,Wellbeing,SUPPORTED INDEPENDENCE,10/10/2011,207.57
Bath & North East Somerset Council,80028053,LL3,Supported Living,P03,Wellbeing,SUPPORTED INDEPENDENCE,10/10/2011,207.57
Bath & North East Somerset Council,80028053,LL3,Supported Living,P03,Wellbeing,SUPPORTED INDEPENDENCE,10/10/2011,207.57
Bath & North East Somerset Council,80028053,LL3,Supported Living,P03,Wellbeing,SUPPORTED INDEPENDENCE,10/10/2011,207.57
Bath & North East Somerset Council,80028053,LL3,Supported Living,P03,Wellbeing,SUPPORTED INDEPENDENCE,10/10/2011,207.57
Bath & North East Somerset Council,80028053,LL3,Supported Living,P03,Wellbeing,SUPPORTED INDEPENDENCE,10/10/2011,207.57
Bath & North East Somerset Council,80028053,LL3,Supported Living,P03,Wellbeing,SUPPORTED INDEPENDENCE,10/10/2011,207.57
Bath & North East Somerset Council,80028053,LL3,Supported Living,P03,Wellbeing,SUPPORTED INDEPENDENCE,10/10/2011,207.57
Bath & North East Somerset Council,80028053,LL3,Supported Living,P03,Wellbeing,SUPPORTED INDEPENDENCE,10/10/2011,207.57
Bath & North East Somerset Council,80028053,LL3,Supported Living,P03,Wellbeing,SUPPORTED INDEPENDENCE,10/10/2011,207.57
Bath & North East Somerset Council,80028053,LL3,Supported Living,P03,Wellbeing,SUPPORTED INDEPENDENCE,10/10/2011,207.57
Bath & North East Somerset Council,80028081,LM9,Day Care,P03,Wellbeing,LEONARD CHESHIRE FOUNDATION,10/10/2011,208.50
Bath & North East Somerset Council,80028081,LM9,Day Care,P03,Wellbeing,LEONARD CHESHIRE FOUNDATION,10/10/2011,208.50
Bath & North East Somerset Council,80028081,LM9,Day Care,P03,Wellbeing,LEONARD CHESHIRE FOUNDATION,10/10/2011,208.50
Bath & North East Somerset Council,80028081,LM9,Day Care,P03,Wellbeing,LEONARD CHESHIRE FOUNDATION,10/10/2011,208.50
Bath & North East Somerset Council,80028232,LM8,Home Care,P03,Wellbeing,GROVE CARE LTD T/A BATH COMMUNITY CARE,10/10/2011,210.75
Bath & North East Somerset Council,80028232,LM8,Home Care,P03,Wellbeing,GROVE CARE LTD T/A BATH COMMUNITY CARE,10/10/2011,210.75
Bath & North East Somerset Council,80028052,LL3,Supported Living,P03,Wellbeing,SUPPORTED INDEPENDENCE,10/10/2011,211.64
Bath & North East Somerset Council,80028052,LL3,Supported Living,P03,Wellbeing,SUPPORTED INDEPENDENCE,10/10/2011,211.64
Bath & North East Somerset Council,80028052,LL3,Supported Living,P03,Wellbeing,SUPPORTED INDEPENDENCE,10/10/2011,211.64
Bath & North East Somerset Council,80028052,LL3,Supported Living,P03,Wellbeing,SUPPORTED INDEPENDENCE,10/10/2011,211.64
Bath & North East Somerset Council,80028052,LL3,Supported Living,P03,Wellbeing,SUPPORTED INDEPENDENCE,10/10/2011,211.64
Bath & North East Somerset Council,80028052,LL3,Supported Living,P03,Wellbeing,SUPPORTED INDEPENDENCE,10/10/2011,211.64
Bath & North East Somerset Council,80028052,LL3,Supported Living,P03,Wellbeing,SUPPORTED INDEPENDENCE,10/10/2011,211.64
Bath & North East Somerset Council,80028052,LL3,Supported Living,P03,Wellbeing,SUPPORTED INDEPENDENCE,10/10/2011,211.64
Bath & North East Somerset Council,80028052,LL3,Supported Living,P03,Wellbeing,SUPPORTED INDEPENDENCE,10/10/2011,211.64
Bath & North East Somerset Council,80028052,LL3,Supported Living,P03,Wellbeing,SUPPORTED INDEPENDENCE,10/10/2011,211.64
Bath & North East Somerset Council,80028052,LL3,Supported Living,P03,Wellbeing,SUPPORTED INDEPENDENCE,10/10/2011,211.64
Bath & North East Somerset Council,80028052,LL3,Supported Living,P03,Wellbeing,SUPPORTED INDEPENDENCE,10/10/2011,211.64
Bath & North East Somerset Council,80028052,LL3,Supported Living,P03,Wellbeing,SUPPORTED INDEPENDENCE,10/10/2011,211.64
Bath & North East Somerset Council,80028052,LL3,Supported Living,P03,Wellbeing,SUPPORTED INDEPENDENCE,10/10/2011,211.64
Bath & North East Somerset Council,80028052,LL3,Supported Living,P03,Wellbeing,SUPPORTED INDEPENDENCE,10/10/2011,211.64
Bath & North East Somerset Council,80028052,LL3,Supported Living,P03,Wellbeing,SUPPORTED INDEPENDENCE,10/10/2011,211.64
Bath & North East Somerset Council,80028052,LL3,Supported Living,P03,Wellbeing,SUPPORTED INDEPENDENCE,10/10/2011,211.64
Bath & North East Somerset Council,80028052,LL3,Supported Living,P03,Wellbeing,SUPPORTED INDEPENDENCE,10/10/2011,211.64
Bath & North East Somerset Council,80028052,LL3,Supported Living,P03,Wellbeing,SUPPORTED INDEPENDENCE,10/10/2011,211.64
Bath & North East Somerset Council,80028052,LL3,Supported Living,P03,Wellbeing,SUPPORTED INDEPENDENCE,10/10/2011,211.64
Bath & North East Somerset Council,80028052,LL3,Supported Living,P03,Wellbeing,SUPPORTED INDEPENDENCE,10/10/2011,211.64
Bath & North East Somerset Council,80028052,LL3,Supported Living,P03,Wellbeing,SUPPORTED INDEPENDENCE,10/10/2011,211.64
Bath & North East Somerset Council,80028052,LL3,Supported Living,P03,Wellbeing,SUPPORTED INDEPENDENCE,10/10/2011,211.64
Bath & North East Somerset Council,80028052,LL3,Supported Living,P03,Wellbeing,SUPPORTED INDEPENDENCE,10/10/2011,211.64
Bath & North East Somerset Council,80028052,LL3,Supported Living,P03,Wellbeing,SUPPORTED INDEPENDENCE,10/10/2011,211.64
Bath & North East Somerset Council,80028052,LL3,Supported Living,P03,Wellbeing,SUPPORTED INDEPENDENCE,10/10/2011,211.64
Bath & North East Somerset Council,80028052,LL3,Supported Living,P03,Wellbeing,SUPPORTED INDEPENDENCE,10/10/2011,211.64
Bath & North East Somerset Council,80028052,LL3,Supported Living,P03,Wellbeing,SUPPORTED INDEPENDENCE,10/10/2011,211.64
Bath & North East Somerset Council,80028247,LL8,Individualised Budget,P03,Wellbeing,REDACTED,10/10/2011,217.96
Bath & North East Somerset Council,80028247,LL8,Individualised Budget,P03,Wellbeing,REDACTED,10/10/2011,217.96
Bath & North East Somerset Council,80028289,LL8,Individualised Budget,P03,Wellbeing,REDACTED,10/10/2011,218.40
Bath & North East Somerset Council,80028289,LL8,Individualised Budget,P03,Wellbeing,REDACTED,10/10/2011,218.40
Bath & North East Somerset Council,80028289,LL8,Individualised Budget,P03,Wellbeing,REDACTED,10/10/2011,218.40
Bath & North East Somerset Council,80028289,LL8,Individualised Budget,P03,Wellbeing,REDACTED,10/10/2011,218.40
Bath & North East Somerset Council,80028289,LL8,Individualised Budget,P03,Wellbeing,REDACTED,10/10/2011,218.40
Bath & North East Somerset Council,80028054,LL3,Supported Living,P03,Wellbeing,SUPPORTED INDEPENDENCE,10/10/2011,224.25
Bath & North East Somerset Council,80028054,LL3,Supported Living,P03,Wellbeing,SUPPORTED INDEPENDENCE,10/10/2011,224.25
Bath & North East Somerset Council,80028054,LL3,Supported Living,P03,Wellbeing,SUPPORTED INDEPENDENCE,10/10/2011,224.25
Bath & North East Somerset Council,80028054,LL3,Supported Living,P03,Wellbeing,SUPPORTED INDEPENDENCE,10/10/2011,224.25
Bath & North East Somerset Council,80028054,LL3,Supported Living,P03,Wellbeing,SUPPORTED INDEPENDENCE,10/10/2011,224.25
Bath & North East Somerset Council,80028054,LL3,Supported Living,P03,Wellbeing,SUPPORTED INDEPENDENCE,10/10/2011,224.25
Bath & North East Somerset Council,80028054,LL3,Supported Living,P03,Wellbeing,SUPPORTED INDEPENDENCE,10/10/2011,224.25
Bath & North East Somerset Council,80028054,LL3,Supported Living,P03,Wellbeing,SUPPORTED INDEPENDENCE,10/10/2011,224.25
Bath & North East Somerset Council,80028054,LL3,Supported Living,P03,Wellbeing,SUPPORTED INDEPENDENCE,10/10/2011,224.25
Bath & North East Somerset Council,80028054,LL3,Supported Living,P03,Wellbeing,SUPPORTED INDEPENDENCE,10/10/2011,224.25
Bath & North East Somerset Council,80028054,LL3,Supported Living,P03,Wellbeing,SUPPORTED INDEPENDENCE,10/10/2011,224.25
Bath & North East Somerset Council,80028021,LL3,Supported Living,P03,Wellbeing,ACTION ON HEARING LOSS,10/10/2011,226.02
Bath & North East Somerset Council,80028021,LL3,Supported Living,P03,Wellbeing,ACTION ON HEARING LOSS,10/10/2011,226.02
Bath & North East Somerset Council,80028021,LL3,Supported Living,P03,Wellbeing,ACTION ON HEARING LOSS,10/10/2011,226.02
Bath & North East Somerset Council,80028021,LL3,Supported Living,P03,Wellbeing,ACTION ON HEARING LOSS,10/10/2011,226.02
Bath & North East Somerset Council,80028036,LL3,Supported Living,P03,Wellbeing,ACTION ON HEARING LOSS,10/10/2011,226.02
Bath & North East Somerset Council,80028036,LL3,Supported Living,P03,Wellbeing,ACTION ON HEARING LOSS,10/10/2011,226.02
Bath & North East Somerset Council,80028036,LL3,Supported Living,P03,Wellbeing,ACTION ON HEARING LOSS,10/10/2011,226.02
Bath & North East Somerset Council,80028036,LL3,Supported Living,P03,Wellbeing,ACTION ON HEARING LOSS,10/10/2011,226.02
Bath & North East Somerset Council,80028036,LL3,Supported Living,P03,Wellbeing,ACTION ON HEARING LOSS,10/10/2011,226.02
Bath & North East Somerset Council,80028282,LM8,Home Care,P03,Wellbeing,SAFE & SOUND HOMECARE SERVICES,10/10/2011,226.50
Bath & North East Somerset Council,80028282,LM8,Home Care,P03,Wellbeing,SAFE & SOUND HOMECARE SERVICES,10/10/2011,226.50
Bath & North East Somerset Council,80028029,LL3,Supported Living,P03,Wellbeing,ACTION ON HEARING LOSS,10/10/2011,229.14
Bath & North East Somerset Council,80028029,LL3,Supported Living,P03,Wellbeing,ACTION ON HEARING LOSS,10/10/2011,229.14
Bath & North East Somerset Council,80028029,LL3,Supported Living,P03,Wellbeing,ACTION ON HEARING LOSS,10/10/2011,229.14
Bath & North East Somerset Council,80028029,LL3,Supported Living,P03,Wellbeing,ACTION ON HEARING LOSS,10/10/2011,229.14
Bath & North East Somerset Council,80028103,LM6,Nursing Care,P03,Wellbeing,PETER ALLEN INVESTMENTS LTD NO.1 ACCOUNT,10/10/2011,229.71
Bath & North East Somerset Council,80028271,LM8,Home Care,P03,Wellbeing,MCKINNONS PRIVATE HOME CARE AGENCY,10/10/2011,232.85
Bath & North East Somerset Council,80028271,LM8,Home Care,P03,Wellbeing,MCKINNONS PRIVATE HOME CARE AGENCY,10/10/2011,232.85
Bath & North East Somerset Council,80028025,LL3,Supported Living,P03,Wellbeing,ACTION ON HEARING LOSS,10/10/2011,241.83
Bath & North East Somerset Council,80028025,LL3,Supported Living,P03,Wellbeing,ACTION ON HEARING LOSS,10/10/2011,241.83
Bath & North East Somerset Council,80028025,LL3,Supported Living,P03,Wellbeing,ACTION ON HEARING LOSS,10/10/2011,241.83
Bath & North East Somerset Council,80028025,LL3,Supported Living,P03,Wellbeing,ACTION ON HEARING LOSS,10/10/2011,241.83
Bath & North East Somerset Council,80028116,LM8,Home Care,P03,Wellbeing,RV CARE SOMERSET LTD,10/10/2011,242.00
Bath & North East Somerset Council,80028116,LM8,Home Care,P03,Wellbeing,RV CARE SOMERSET LTD,10/10/2011,242.00
Bath & North East Somerset Council,80028244,LM8,Home Care,P03,Wellbeing,AMBER HOMECARE LTD,10/10/2011,242.44
Bath & North East Somerset Council,80028244,LM8,Home Care,P03,Wellbeing,AMBER HOMECARE LTD,10/10/2011,242.44
Bath & North East Somerset Council,80028244,LM8,Home Care,P03,Wellbeing,AMBER HOMECARE LTD,10/10/2011,242.44
Bath & North East Somerset Council,80028244,LM8,Home Care,P03,Wellbeing,AMBER HOMECARE LTD,10/10/2011,242.44
Bath & North East Somerset Council,80028275,LL3,Supported Living,P03,Wellbeing,OPTIONS FOR LIVING LTD,10/10/2011,253.80
Bath & North East Somerset Council,80028275,LL3,Supported Living,P03,Wellbeing,OPTIONS FOR LIVING LTD,10/10/2011,253.80
Bath & North East Somerset Council,80028297,LM4,Respite Care,P03,Wellbeing,REDACTED,10/10/2011,254.07
Bath & North East Somerset Council,80028297,LM4,Respite Care,P03,Wellbeing,REDACTED,10/10/2011,254.07
Bath & North East Somerset Council,80028299,LM4,Respite Care,P03,Wellbeing,REDACTED,10/10/2011,254.07
Bath & North East Somerset Council,80028299,LM4,Respite Care,P03,Wellbeing,REDACTED,10/10/2011,254.07
Bath & North East Somerset Council,80028271,LM8,Home Care,P03,Wellbeing,MCKINNONS PRIVATE HOME CARE AGENCY,10/10/2011,254.12
Bath & North East Somerset Council,80028271,LM8,Home Care,P03,Wellbeing,MCKINNONS PRIVATE HOME CARE AGENCY,10/10/2011,254.12
Bath & North East Somerset Council,80028283,LL8,Individualised Budget,P03,Wellbeing,REDACTED,10/10/2011,257.01
Bath & North East Somerset Council,80028283,LL8,Individualised Budget,P03,Wellbeing,REDACTED,10/10/2011,257.01
Bath & North East Somerset Council,80028232,LM8,Home Care,P03,Wellbeing,GROVE CARE LTD T/A BATH COMMUNITY CARE,10/10/2011,260.00
Bath & North East Somerset Council,80028232,LM8,Home Care,P03,Wellbeing,GROVE CARE LTD T/A BATH COMMUNITY CARE,10/10/2011,260.00
Bath & North East Somerset Council,80028093,LL8,Individualised Budget,P03,Wellbeing,REDACTED,10/10/2011,261.54
Bath & North East Somerset Council,80028093,LL8,Individualised Budget,P03,Wellbeing,REDACTED,10/10/2011,261.54
Bath & North East Somerset Council,80028048,LL3,Supported Living,P03,Wellbeing,SUPPORTED INDEPENDENCE,10/10/2011,264.18
Bath & North East Somerset Council,80028048,LL3,Supported Living,P03,Wellbeing,SUPPORTED INDEPENDENCE,10/10/2011,264.18
Bath & North East Somerset Council,80028048,LL3,Supported Living,P03,Wellbeing,SUPPORTED INDEPENDENCE,10/10/2011,264.18
Bath & North East Somerset Council,80028048,LL3,Supported Living,P03,Wellbeing,SUPPORTED INDEPENDENCE,10/10/2011,264.18
Bath & North East Somerset Council,80028049,LL3,Supported Living,P03,Wellbeing,SUPPORTED INDEPENDENCE,10/10/2011,264.18
Bath & North East Somerset Council,80028049,LL3,Supported Living,P03,Wellbeing,SUPPORTED INDEPENDENCE,10/10/2011,264.18
Bath & North East Somerset Council,80028049,LL3,Supported Living,P03,Wellbeing,SUPPORTED INDEPENDENCE,10/10/2011,264.18
Bath & North East Somerset Council,80028049,LL3,Supported Living,P03,Wellbeing,SUPPORTED INDEPENDENCE,10/10/2011,264.18
Bath & North East Somerset Council,80028055,LL3,Supported Living,P03,Wellbeing,SUPPORTED INDEPENDENCE,10/10/2011,264.18
Bath & North East Somerset Council,80028055,LL3,Supported Living,P03,Wellbeing,SUPPORTED INDEPENDENCE,10/10/2011,264.18
Bath & North East Somerset Council,80028055,LL3,Supported Living,P03,Wellbeing,SUPPORTED INDEPENDENCE,10/10/2011,264.18
Bath & North East Somerset Council,80028055,LL3,Supported Living,P03,Wellbeing,SUPPORTED INDEPENDENCE,10/10/2011,264.18
Bath & North East Somerset Council,80028275,LL3,Supported Living,P03,Wellbeing,OPTIONS FOR LIVING LTD,10/10/2011,264.74
Bath & North East Somerset Council,80028275,LL3,Supported Living,P03,Wellbeing,OPTIONS FOR LIVING LTD,10/10/2011,264.74
Bath & North East Somerset Council,80028275,LL3,Supported Living,P03,Wellbeing,OPTIONS FOR LIVING LTD,10/10/2011,264.74
Bath & North East Somerset Council,80028275,LL3,Supported Living,P03,Wellbeing,OPTIONS FOR LIVING LTD,10/10/2011,264.74
Bath & North East Somerset Council,80028210,LL8,Individualised Budget,P03,Wellbeing,REDACTED,10/10/2011,266.03
Bath & North East Somerset Council,80028210,LL8,Individualised Budget,P03,Wellbeing,REDACTED,10/10/2011,266.03
Bath & North East Somerset Council,80028133,LL8,Individualised Budget,P03,Wellbeing,REDACTED,10/10/2011,269.10
Bath & North East Somerset Council,80028133,LL8,Individualised Budget,P03,Wellbeing,REDACTED,10/10/2011,269.10
Bath & North East Somerset Council,80027947,LL4,Direct Payments,P02,"Early Years, Children & Youth",REDACTED,10/10/2011,269.98
Bath & North East Somerset Council,80027947,LL4,Direct Payments,P02,"Early Years, Children & Youth",REDACTED,10/10/2011,269.98
Bath & North East Somerset Council,80027965,LM6,Nursing Care,P03,Wellbeing,SUPPORTED INDEPENDENCE,10/10/2011,275.25
Bath & North East Somerset Council,80027965,LM6,Nursing Care,P03,Wellbeing,SUPPORTED INDEPENDENCE,10/10/2011,275.25
Bath & North East Somerset Council,80028245,LL3,Supported Living,P03,Wellbeing,ARCH CARE SERVICES,10/10/2011,276.00
Bath & North East Somerset Council,80028245,LL3,Supported Living,P03,Wellbeing,ARCH CARE SERVICES,10/10/2011,276.00
Bath & North East Somerset Council,80028232,LM8,Home Care,P03,Wellbeing,GROVE CARE LTD T/A BATH COMMUNITY CARE,10/10/2011,277.17
Bath & North East Somerset Council,80028232,LM8,Home Care,P03,Wellbeing,GROVE CARE LTD T/A BATH COMMUNITY CARE,10/10/2011,277.17
Bath & North East Somerset Council,80027961,LM6,Nursing Care,P03,Wellbeing,BARCHESTER HEALTHCARE HOMES LTD,10/10/2011,278.57
Bath & North East Somerset Council,80027963,LM6,Nursing Care,P03,Wellbeing,LARKHALL SPRINGS NURSING HOME,10/10/2011,278.57
Bath & North East Somerset Council,80027986,LM6,Nursing Care,P03,Wellbeing,BARKER CHEMICALS LTD T/A ST TERESA'S NH,10/10/2011,278.57
Bath & North East Somerset Council,80027993,LM6,Nursing Care,P03,Wellbeing,CEDAR CARE HOMES LTD,10/10/2011,278.57
Bath & North East Somerset Council,80027993,LM6,Nursing Care,P03,Wellbeing,CEDAR CARE HOMES LTD,10/10/2011,278.57
Bath & North East Somerset Council,80027993,LM6,Nursing Care,P03,Wellbeing,CEDAR CARE HOMES LTD,10/10/2011,278.57
Bath & North East Somerset Council,80028047,LM9,Day Care,P03,Wellbeing,CULVERHAY NURSING HOME,10/10/2011,280.00
Bath & North East Somerset Council,80028047,LM9,Day Care,P03,Wellbeing,CULVERHAY NURSING HOME,10/10/2011,280.00
Bath & North East Somerset Council,80028047,LM9,Day Care,P03,Wellbeing,CULVERHAY NURSING HOME,10/10/2011,280.00
Bath & North East Somerset Council,80028047,LM9,Day Care,P03,Wellbeing,CULVERHAY NURSING HOME,10/10/2011,280.00
Bath & North East Somerset Council,80028047,LM9,Day Care,P03,Wellbeing,CULVERHAY NURSING HOME,10/10/2011,280.00
Bath & North East Somerset Council,80028047,LM9,Day Care,P03,Wellbeing,CULVERHAY NURSING HOME,10/10/2011,280.00
Bath & North East Somerset Council,80028047,LM9,Day Care,P03,Wellbeing,CULVERHAY NURSING HOME,10/10/2011,280.00
Bath & North East Somerset Council,80028047,LM9,Day Care,P03,Wellbeing,CULVERHAY NURSING HOME,10/10/2011,280.00
Bath & North East Somerset Council,80028287,LL8,Individualised Budget,P03,Wellbeing,REDACTED,10/10/2011,282.34
Bath & North East Somerset Council,80028287,LL8,Individualised Budget,P03,Wellbeing,REDACTED,10/10/2011,282.34
Bath & North East Somerset Council,80028158,LL8,Individualised Budget,P03,Wellbeing,PHOENIX (SW) LTD,10/10/2011,285.30
Bath & North East Somerset Council,80028158,LL8,Individualised Budget,P03,Wellbeing,PHOENIX (SW) LTD,10/10/2011,285.30
Bath & North East Somerset Council,80028031,LL3,Supported Living,P03,Wellbeing,ACTION ON HEARING LOSS,10/10/2011,293.37
Bath & North East Somerset Council,80028031,LL3,Supported Living,P03,Wellbeing,ACTION ON HEARING LOSS,10/10/2011,293.37
Bath & North East Somerset Council,80028031,LL3,Supported Living,P03,Wellbeing,ACTION ON HEARING LOSS,10/10/2011,293.37
Bath & North East Somerset Council,80028031,LL3,Supported Living,P03,Wellbeing,ACTION ON HEARING LOSS,10/10/2011,293.37
Bath & North East Somerset Council,80028168,LL8,Individualised Budget,P03,Wellbeing,REDACTED,10/10/2011,295.50
Bath & North East Somerset Council,80028168,LL8,Individualised Budget,P03,Wellbeing,REDACTED,10/10/2011,295.50
Bath & North East Somerset Council,80028170,LL8,Individualised Budget,P03,Wellbeing,REDACTED,10/10/2011,295.50
Bath & North East Somerset Council,80028170,LL8,Individualised Budget,P03,Wellbeing,REDACTED,10/10/2011,295.50
Bath & North East Somerset Council,80028241,LL8,Individualised Budget,P03,Wellbeing,REDACTED,10/10/2011,299.21
Bath & North East Somerset Council,80028241,LL8,Individualised Budget,P03,Wellbeing,REDACTED,10/10/2011,299.21
Bath & North East Somerset Council,80028158,LL8,Individualised Budget,P03,Wellbeing,PHOENIX (SW) LTD,10/10/2011,301.13
Bath & North East Somerset Council,80028158,LL8,Individualised Budget,P03,Wellbeing,PHOENIX (SW) LTD,10/10/2011,301.13
Bath & North East Somerset Council,80028062,LL3,Supported Living,P03,Wellbeing,ROYAL MENCAP SOCIETY,10/10/2011,301.50
Bath & North East Somerset Council,80028062,LL3,Supported Living,P03,Wellbeing,ROYAL MENCAP SOCIETY,10/10/2011,301.50
Bath & North East Somerset Council,80028062,LL3,Supported Living,P03,Wellbeing,ROYAL MENCAP SOCIETY,10/10/2011,301.50
Bath & North East Somerset Council,80028062,LL3,Supported Living,P03,Wellbeing,ROYAL MENCAP SOCIETY,10/10/2011,301.50
Bath & North East Somerset Council,80028065,LL3,Supported Living,P03,Wellbeing,ROYAL MENCAP SOCIETY,10/10/2011,301.50
Bath & North East Somerset Council,80028065,LL3,Supported Living,P03,Wellbeing,ROYAL MENCAP SOCIETY,10/10/2011,301.50
Bath & North East Somerset Council,80028065,LL3,Supported Living,P03,Wellbeing,ROYAL MENCAP SOCIETY,10/10/2011,301.50
Bath & North East Somerset Council,80028065,LL3,Supported Living,P03,Wellbeing,ROYAL MENCAP SOCIETY,10/10/2011,301.50
Bath & North East Somerset Council,80028065,LL3,Supported Living,P03,Wellbeing,ROYAL MENCAP SOCIETY,10/10/2011,301.50
Bath & North East Somerset Council,80028065,LL3,Supported Living,P03,Wellbeing,ROYAL MENCAP SOCIETY,10/10/2011,301.50
Bath & North East Somerset Council,80028065,LL3,Supported Living,P03,Wellbeing,ROYAL MENCAP SOCIETY,10/10/2011,301.50
Bath & North East Somerset Council,80028065,LL3,Supported Living,P03,Wellbeing,ROYAL MENCAP SOCIETY,10/10/2011,301.50
Bath & North East Somerset Council,80028065,LL3,Supported Living,P03,Wellbeing,ROYAL MENCAP SOCIETY,10/10/2011,301.50
Bath & North East Somerset Council,80028065,LL3,Supported Living,P03,Wellbeing,ROYAL MENCAP SOCIETY,10/10/2011,301.50
Bath & North East Somerset Council,80028065,LL3,Supported Living,P03,Wellbeing,ROYAL MENCAP SOCIETY,10/10/2011,301.50
Bath & North East Somerset Council,80028065,LL3,Supported Living,P03,Wellbeing,ROYAL MENCAP SOCIETY,10/10/2011,301.50
Bath & North East Somerset Council,80028065,LL3,Supported Living,P03,Wellbeing,ROYAL MENCAP SOCIETY,10/10/2011,301.50
Bath & North East Somerset Council,80028065,LL3,Supported Living,P03,Wellbeing,ROYAL MENCAP SOCIETY,10/10/2011,301.50
Bath & North East Somerset Council,10631352,KD1,Employees Public Transport,P06,Sustainable Development,HAMMONDS PROJECT MANAGEMENT SERVICES LTD,14/10/2011,71.20
Bath & North East Somerset Council,80028065,LL3,Supported Living,P03,Wellbeing,ROYAL MENCAP SOCIETY,10/10/2011,301.50
Bath & North East Somerset Council,80028065,LL3,Supported Living,P03,Wellbeing,ROYAL MENCAP SOCIETY,10/10/2011,301.50
Bath & North East Somerset Council,80028065,LL3,Supported Living,P03,Wellbeing,ROYAL MENCAP SOCIETY,10/10/2011,301.50
Bath & North East Somerset Council,80028065,LL3,Supported Living,P03,Wellbeing,ROYAL MENCAP SOCIETY,10/10/2011,301.50
Bath & North East Somerset Council,80028065,LL3,Supported Living,P03,Wellbeing,ROYAL MENCAP SOCIETY,10/10/2011,301.50
Bath & North East Somerset Council,80028065,LL3,Supported Living,P03,Wellbeing,ROYAL MENCAP SOCIETY,10/10/2011,301.50
Bath & North East Somerset Council,80028065,LL3,Supported Living,P03,Wellbeing,ROYAL MENCAP SOCIETY,10/10/2011,301.50
Bath & North East Somerset Council,80028065,LL3,Supported Living,P03,Wellbeing,ROYAL MENCAP SOCIETY,10/10/2011,301.50
Bath & North East Somerset Council,80028065,LL3,Supported Living,P03,Wellbeing,ROYAL MENCAP SOCIETY,10/10/2011,301.50
Bath & North East Somerset Council,80028065,LL3,Supported Living,P03,Wellbeing,ROYAL MENCAP SOCIETY,10/10/2011,301.50
Bath & North East Somerset Council,80028065,LL3,Supported Living,P03,Wellbeing,ROYAL MENCAP SOCIETY,10/10/2011,301.50
Bath & North East Somerset Council,80028065,LL3,Supported Living,P03,Wellbeing,ROYAL MENCAP SOCIETY,10/10/2011,301.50
Bath & North East Somerset Council,80028257,LL8,Individualised Budget,P03,Wellbeing,REDACTED,10/10/2011,302.91
Bath & North East Somerset Council,80028257,LL8,Individualised Budget,P03,Wellbeing,REDACTED,10/10/2011,302.91
Bath & North East Somerset Council,80028245,LL3,Supported Living,P03,Wellbeing,ARCH CARE SERVICES,10/10/2011,307.00
Bath & North East Somerset Council,80028245,LL3,Supported Living,P03,Wellbeing,ARCH CARE SERVICES,10/10/2011,307.00
Bath & North East Somerset Council,80028117,LL8,Individualised Budget,P03,Wellbeing,REDACTED,10/10/2011,308.00
Bath & North East Somerset Council,80028117,LL8,Individualised Budget,P03,Wellbeing,REDACTED,10/10/2011,308.00
Bath & North East Somerset Council,80028164,LL8,Individualised Budget,P03,Wellbeing,REDACTED,10/10/2011,315.19
Bath & North East Somerset Council,80028164,LL8,Individualised Budget,P03,Wellbeing,REDACTED,10/10/2011,315.19
Bath & North East Somerset Council,80027896,LL4,Direct Payments,P03,Wellbeing,REDACTED,10/10/2011,315.48
Bath & North East Somerset Council,80027896,LL4,Direct Payments,P03,Wellbeing,REDACTED,10/10/2011,315.48
Bath & North East Somerset Council,80028251,LL8,Individualised Budget,P03,Wellbeing,REDACTED,10/10/2011,317.03
Bath & North East Somerset Council,80028251,LL8,Individualised Budget,P03,Wellbeing,REDACTED,10/10/2011,317.03
Bath & North East Somerset Council,80028195,LL8,Individualised Budget,P03,Wellbeing,REDACTED,10/10/2011,327.68
Bath & North East Somerset Council,80028195,LL8,Individualised Budget,P03,Wellbeing,REDACTED,10/10/2011,327.68
Bath & North East Somerset Council,80028295,LM4,Respite Care,P03,Wellbeing,REDACTED,10/10/2011,328.00
Bath & North East Somerset Council,80028295,LM4,Respite Care,P03,Wellbeing,REDACTED,10/10/2011,328.00
Bath & North East Somerset Council,80028244,LM8,Home Care,P03,Wellbeing,AMBER HOMECARE LTD,10/10/2011,331.09
Bath & North East Somerset Council,80028244,LM8,Home Care,P03,Wellbeing,AMBER HOMECARE LTD,10/10/2011,331.09
Bath & North East Somerset Council,80027961,LM6,Nursing Care,P03,Wellbeing,BARCHESTER HEALTHCARE HOMES LTD,10/10/2011,334.29
Bath & North East Somerset Council,80028284,LL8,Individualised Budget,P03,Wellbeing,REDACTED,10/10/2011,335.21
Bath & North East Somerset Council,80028284,LL8,Individualised Budget,P03,Wellbeing,REDACTED,10/10/2011,335.21
Bath & North East Somerset Council,80028245,LL3,Supported Living,P03,Wellbeing,ARCH CARE SERVICES,10/10/2011,343.00
Bath & North East Somerset Council,80028245,LL3,Supported Living,P03,Wellbeing,ARCH CARE SERVICES,10/10/2011,343.00
Bath & North East Somerset Council,80028244,LM8,Home Care,P03,Wellbeing,AMBER HOMECARE LTD,10/10/2011,350.21
Bath & North East Somerset Council,80028244,LM8,Home Care,P03,Wellbeing,AMBER HOMECARE LTD,10/10/2011,350.21
Bath & North East Somerset Council,80028158,LL8,Individualised Budget,P03,Wellbeing,PHOENIX (SW) LTD,10/10/2011,351.00
Bath & North East Somerset Council,80028158,LL8,Individualised Budget,P03,Wellbeing,PHOENIX (SW) LTD,10/10/2011,351.00
Bath & North East Somerset Council,80028064,LL3,Supported Living,P03,Wellbeing,ROYAL MENCAP SOCIETY,10/10/2011,351.75
Bath & North East Somerset Council,80028064,LL3,Supported Living,P03,Wellbeing,ROYAL MENCAP SOCIETY,10/10/2011,351.75
Bath & North East Somerset Council,80028064,LL3,Supported Living,P03,Wellbeing,ROYAL MENCAP SOCIETY,10/10/2011,351.75
Bath & North East Somerset Council,80028064,LL3,Supported Living,P03,Wellbeing,ROYAL MENCAP SOCIETY,10/10/2011,351.75
Bath & North East Somerset Council,80028252,LL8,Individualised Budget,P03,Wellbeing,REDACTED,10/10/2011,364.39
Bath & North East Somerset Council,80028252,LL8,Individualised Budget,P03,Wellbeing,REDACTED,10/10/2011,364.39
Bath & North East Somerset Council,80027915,LL4,Direct Payments,P03,Wellbeing,SHAW TRUST LTD,10/10/2011,371.78
Bath & North East Somerset Council,80027915,LL4,Direct Payments,P03,Wellbeing,SHAW TRUST LTD,10/10/2011,371.78
Bath & North East Somerset Council,80028116,LM8,Home Care,P03,Wellbeing,RV CARE SOMERSET LTD,10/10/2011,372.00
Bath & North East Somerset Council,80028116,LM8,Home Care,P03,Wellbeing,RV CARE SOMERSET LTD,10/10/2011,372.00
Bath & North East Somerset Council,80028272,LL8,Individualised Budget,P03,Wellbeing,REDACTED,10/10/2011,382.70
Bath & North East Somerset Council,80028272,LL8,Individualised Budget,P03,Wellbeing,REDACTED,10/10/2011,382.70
Bath & North East Somerset Council,80028103,LM6,Nursing Care,P03,Wellbeing,REDACTED,10/10/2011,382.86
Bath & North East Somerset Council,80028192,LL8,Individualised Budget,P03,Wellbeing,REDACTED,10/10/2011,389.38
Bath & North East Somerset Council,80028192,LL8,Individualised Budget,P03,Wellbeing,REDACTED,10/10/2011,389.38
Bath & North East Somerset Council,80028024,LL3,Supported Living,P03,Wellbeing,ACTION ON HEARING LOSS,10/10/2011,393.41
Bath & North East Somerset Council,80028024,LL3,Supported Living,P03,Wellbeing,ACTION ON HEARING LOSS,10/10/2011,393.41
Bath & North East Somerset Council,80028024,LL3,Supported Living,P03,Wellbeing,ACTION ON HEARING LOSS,10/10/2011,393.41
Bath & North East Somerset Council,80028024,LL3,Supported Living,P03,Wellbeing,ACTION ON HEARING LOSS,10/10/2011,393.41
Bath & North East Somerset Council,80028232,LM8,Home Care,P03,Wellbeing,GROVE CARE LTD T/A BATH COMMUNITY CARE,10/10/2011,395.46
Bath & North East Somerset Council,80028232,LM8,Home Care,P03,Wellbeing,GROVE CARE LTD T/A BATH COMMUNITY CARE,10/10/2011,395.46
Bath & North East Somerset Council,80028116,LM8,Home Care,P03,Wellbeing,RV CARE SOMERSET LTD,10/10/2011,396.76
Bath & North East Somerset Council,80028116,LM8,Home Care,P03,Wellbeing,RV CARE SOMERSET LTD,10/10/2011,396.76
Bath & North East Somerset Council,80028265,LL8,Individualised Budget,P03,Wellbeing,REDACTED,10/10/2011,399.18
Bath & North East Somerset Council,80028265,LL8,Individualised Budget,P03,Wellbeing,REDACTED,10/10/2011,399.18
Bath & North East Somerset Council,80028245,LL3,Supported Living,P03,Wellbeing,ARCH CARE SERVICES,10/10/2011,401.00
Bath & North East Somerset Council,80028245,LL3,Supported Living,P03,Wellbeing,ARCH CARE SERVICES,10/10/2011,401.00
Bath & North East Somerset Council,80028208,LL8,Individualised Budget,P03,Wellbeing,REDACTED,10/10/2011,401.10
Bath & North East Somerset Council,80028208,LL8,Individualised Budget,P03,Wellbeing,REDACTED,10/10/2011,401.10
Bath & North East Somerset Council,80028237,LL8,Individualised Budget,P03,Wellbeing,REDACTED,10/10/2011,401.10
Bath & North East Somerset Council,80028237,LL8,Individualised Budget,P03,Wellbeing,REDACTED,10/10/2011,401.10
Bath & North East Somerset Council,80028237,LL8,Individualised Budget,P03,Wellbeing,REDACTED,10/10/2011,401.10
Bath & North East Somerset Council,80028237,LL8,Individualised Budget,P03,Wellbeing,REDACTED,10/10/2011,401.10
Bath & North East Somerset Council,80028237,LL8,Individualised Budget,P03,Wellbeing,REDACTED,10/10/2011,401.10
Bath & North East Somerset Council,80028237,LL8,Individualised Budget,P03,Wellbeing,REDACTED,10/10/2011,401.10
Bath & North East Somerset Council,80028237,LL8,Individualised Budget,P03,Wellbeing,REDACTED,10/10/2011,401.10
Bath & North East Somerset Council,80028237,LL8,Individualised Budget,P03,Wellbeing,REDACTED,10/10/2011,401.10
Bath & North East Somerset Council,80028237,LL8,Individualised Budget,P03,Wellbeing,REDACTED,10/10/2011,401.10
Bath & North East Somerset Council,80028237,LL8,Individualised Budget,P03,Wellbeing,REDACTED,10/10/2011,401.10
Bath & North East Somerset Council,80028237,LL8,Individualised Budget,P03,Wellbeing,REDACTED,10/10/2011,401.10
Bath & North East Somerset Council,80028281,LL8,Individualised Budget,P03,Wellbeing,REDACTED,10/10/2011,401.10
Bath & North East Somerset Council,80028281,LL8,Individualised Budget,P03,Wellbeing,REDACTED,10/10/2011,401.10
Bath & North East Somerset Council,80027974,LM6,Nursing Care,P03,Wellbeing,EUROPEAN CARE SW LTD - REDACTED,10/10/2011,401.64
Bath & North East Somerset Council,80028296,LM4,Respite Care,P03,Wellbeing,REDACTED,10/10/2011,403.00
Bath & North East Somerset Council,80028296,LM4,Respite Care,P03,Wellbeing,REDACTED,10/10/2011,403.00
Bath & North East Somerset Council,80028294,LM4,Respite Care,P03,Wellbeing,REDACTED,10/10/2011,404.18
Bath & North East Somerset Council,80028294,LM4,Respite Care,P03,Wellbeing,REDACTED,10/10/2011,404.18
Bath & North East Somerset Council,80028259,LL8,Individualised Budget,P03,Wellbeing,REDACTED,10/10/2011,404.66
Bath & North East Somerset Council,80028259,LL8,Individualised Budget,P03,Wellbeing,REDACTED,10/10/2011,404.66
Bath & North East Somerset Council,80028294,LM4,Respite Care,P03,Wellbeing,REDACTED,10/10/2011,410.75
Bath & North East Somerset Council,80028294,LM4,Respite Care,P03,Wellbeing,REDACTED,10/10/2011,410.75
Bath & North East Somerset Council,80027982,LM6,Nursing Care,P03,Wellbeing,ARCH CARE SERVICES,10/10/2011,427.00
Bath & North East Somerset Council,80027982,LM6,Nursing Care,P03,Wellbeing,ARCH CARE SERVICES,10/10/2011,427.00
Bath & North East Somerset Council,80028266,LL8,Individualised Budget,P03,Wellbeing,REDACTED,10/10/2011,427.34
Bath & North East Somerset Council,80028266,LL8,Individualised Budget,P03,Wellbeing,REDACTED,10/10/2011,427.34
Bath & North East Somerset Council,80028051,LL3,Supported Living,P03,Wellbeing,SUPPORTED INDEPENDENCE,10/10/2011,431.67
Bath & North East Somerset Council,80028051,LL3,Supported Living,P03,Wellbeing,SUPPORTED INDEPENDENCE,10/10/2011,431.67
Bath & North East Somerset Council,80028051,LL3,Supported Living,P03,Wellbeing,SUPPORTED INDEPENDENCE,10/10/2011,431.67
Bath & North East Somerset Council,80028051,LL3,Supported Living,P03,Wellbeing,SUPPORTED INDEPENDENCE,10/10/2011,431.67
Bath & North East Somerset Council,80028051,LL3,Supported Living,P03,Wellbeing,SUPPORTED INDEPENDENCE,10/10/2011,431.67
Bath & North East Somerset Council,80028051,LL3,Supported Living,P03,Wellbeing,SUPPORTED INDEPENDENCE,10/10/2011,431.67
Bath & North East Somerset Council,80028051,LL3,Supported Living,P03,Wellbeing,SUPPORTED INDEPENDENCE,10/10/2011,431.67
Bath & North East Somerset Council,10630402,LC1,Provisions,P03,Wellbeing,L & F JONES HOLDINGS LTD,10/10/2011,79.57
Bath & North East Somerset Council,10630107,LJ4,Contracts,P01,Transport,HIGHWAY TAXIS & TRAVEL,04/10/2011,79.60
Bath & North East Somerset Council,10630283,KX9,Other Transport Related,P02,"Early Years, Children & Youth",NASEN,17/10/2011,80.00
Bath & North East Somerset Council,80028051,LL3,Supported Living,P03,Wellbeing,SUPPORTED INDEPENDENCE,10/10/2011,431.67
Bath & North East Somerset Council,80028051,LL3,Supported Living,P03,Wellbeing,SUPPORTED INDEPENDENCE,10/10/2011,431.67
Bath & North East Somerset Council,80028051,LL3,Supported Living,P03,Wellbeing,SUPPORTED INDEPENDENCE,10/10/2011,431.67
Bath & North East Somerset Council,80028051,LL3,Supported Living,P03,Wellbeing,SUPPORTED INDEPENDENCE,10/10/2011,431.67
Bath & North East Somerset Council,80028095,LL8,Individualised Budget,P03,Wellbeing,REDACTED,10/10/2011,439.20
Bath & North East Somerset Council,80028095,LL8,Individualised Budget,P03,Wellbeing,REDACTED,10/10/2011,439.20
Bath & North East Somerset Council,80028158,LL8,Individualised Budget,P03,Wellbeing,PHOENIX (SW) LTD,10/10/2011,439.20
Bath & North East Somerset Council,80028158,LL8,Individualised Budget,P03,Wellbeing,PHOENIX (SW) LTD,10/10/2011,439.20
Bath & North East Somerset Council,80028290,LL8,Individualised Budget,P03,Wellbeing,REDACTED,10/10/2011,439.20
Bath & North East Somerset Council,80028290,LL8,Individualised Budget,P03,Wellbeing,REDACTED,10/10/2011,439.20
Bath & North East Somerset Council,80028115,LL8,Individualised Budget,P03,Wellbeing,REDACTED,10/10/2011,442.30
Bath & North East Somerset Council,80028115,LL8,Individualised Budget,P03,Wellbeing,REDACTED,10/10/2011,442.30
Bath & North East Somerset Council,80028240,LL8,Individualised Budget,P03,Wellbeing,REDACTED,10/10/2011,445.21
Bath & North East Somerset Council,80028240,LL8,Individualised Budget,P03,Wellbeing,REDACTED,10/10/2011,445.21
Bath & North East Somerset Council,80028098,LL8,Individualised Budget,P03,Wellbeing,REDACTED,10/10/2011,456.92
Bath & North East Somerset Council,80028098,LL8,Individualised Budget,P03,Wellbeing,REDACTED,10/10/2011,456.92
Bath & North East Somerset Council,80027964,LM6,Nursing Care,P03,Wellbeing,EUROPEAN CARE (UK) LTD - REDACTED,10/10/2011,464.29
Bath & North East Somerset Council,80028200,LL8,Individualised Budget,P03,Wellbeing,REDACTED,10/10/2011,469.67
Bath & North East Somerset Council,10630219,LC1,Provisions,P03,Wellbeing,L & F JONES HOLDINGS LTD,04/10/2011,80.77
Bath & North East Somerset Council,80028200,LL8,Individualised Budget,P03,Wellbeing,REDACTED,10/10/2011,469.67
Bath & North East Somerset Council,80028000,LM6,Nursing Care,P03,Wellbeing,BROCKLEY COURT HOME LTD,10/10/2011,471.00
Bath & North East Somerset Council,80028000,LM6,Nursing Care,P03,Wellbeing,BROCKLEY COURT HOME LTD,10/10/2011,471.00
Bath & North East Somerset Council,80028090,LL8,Individualised Budget,P03,Wellbeing,REDACTED,10/10/2011,471.80
Bath & North East Somerset Council,80028090,LL8,Individualised Budget,P03,Wellbeing,REDACTED,10/10/2011,471.80
Bath & North East Somerset Council,80028190,LL8,Individualised Budget,P03,Wellbeing,REDACTED,10/10/2011,484.80
Bath & North East Somerset Council,80028190,LL8,Individualised Budget,P03,Wellbeing,REDACTED,10/10/2011,484.80
Bath & North East Somerset Council,80027915,LL4,Direct Payments,P02,"Early Years, Children & Youth",SHAW TRUST LTD,10/10/2011,485.75
Bath & North East Somerset Council,80027915,LL4,Direct Payments,P02,"Early Years, Children & Youth",SHAW TRUST LTD,10/10/2011,485.75
Bath & North East Somerset Council,80028020,LL3,Supported Living,P03,Wellbeing,ACTION ON HEARING LOSS,10/10/2011,487.33
Bath & North East Somerset Council,80028020,LL3,Supported Living,P03,Wellbeing,ACTION ON HEARING LOSS,10/10/2011,487.33
Bath & North East Somerset Council,80028020,LL3,Supported Living,P03,Wellbeing,ACTION ON HEARING LOSS,10/10/2011,487.33
Bath & North East Somerset Council,80028020,LL3,Supported Living,P03,Wellbeing,ACTION ON HEARING LOSS,10/10/2011,487.33
Bath & North East Somerset Council,80028023,LL3,Supported Living,P03,Wellbeing,ACTION ON HEARING LOSS,10/10/2011,487.33
Bath & North East Somerset Council,80028023,LL3,Supported Living,P03,Wellbeing,ACTION ON HEARING LOSS,10/10/2011,487.33
Bath & North East Somerset Council,80028023,LL3,Supported Living,P03,Wellbeing,ACTION ON HEARING LOSS,10/10/2011,487.33
Bath & North East Somerset Council,80028023,LL3,Supported Living,P03,Wellbeing,ACTION ON HEARING LOSS,10/10/2011,487.33
Bath & North East Somerset Council,80028162,LL8,Individualised Budget,P03,Wellbeing,REDACTED,10/10/2011,500.00
Bath & North East Somerset Council,80028230,LL8,Individualised Budget,P03,Wellbeing,AGC CAVE,10/10/2011,500.00
Bath & North East Somerset Council,80028231,LL8,Individualised Budget,P03,Wellbeing,REDACTED,10/10/2011,500.00
Bath & North East Somerset Council,80028234,LL8,Individualised Budget,P03,Wellbeing,REDACTED,10/10/2011,500.00
Bath & North East Somerset Council,80028235,LL8,Individualised Budget,P03,Wellbeing,REDACTED,10/10/2011,500.00
Bath & North East Somerset Council,80028236,LL8,Individualised Budget,P03,Wellbeing,REDACTED,10/10/2011,500.00
Bath & North East Somerset Council,80028238,LL8,Individualised Budget,P03,Wellbeing,REDACTED,10/10/2011,500.00
Bath & North East Somerset Council,80028239,LL8,Individualised Budget,P03,Wellbeing,REDACTED,10/10/2011,500.00
Bath & North East Somerset Council,80028298,LM4,Respite Care,P03,Wellbeing,REDACTED,10/10/2011,500.00
Bath & North East Somerset Council,80028298,LM4,Respite Care,P03,Wellbeing,REDACTED,10/10/2011,500.00
Bath & North East Somerset Council,80027999,LM6,Nursing Care,P03,Wellbeing,NEWBRIDGE TOWERS RESIDENTIAL CARE HOME,10/10/2011,501.00
Bath & North East Somerset Council,80027999,LM6,Nursing Care,P03,Wellbeing,NEWBRIDGE TOWERS RESIDENTIAL CARE HOME,10/10/2011,501.00
Bath & North East Somerset Council,80028260,LM8,Home Care,P03,Wellbeing,KUMARI HOMECARE SERVICE,10/10/2011,502.46
Bath & North East Somerset Council,80028260,LM8,Home Care,P03,Wellbeing,KUMARI HOMECARE SERVICE,10/10/2011,502.46
Bath & North East Somerset Council,80028155,LL8,Individualised Budget,P03,Wellbeing,REDACTED,10/10/2011,504.12
Bath & North East Somerset Council,80028155,LL8,Individualised Budget,P03,Wellbeing,REDACTED,10/10/2011,504.12
Bath & North East Somerset Council,80027974,LM6,Nursing Care,P03,Wellbeing,EUROPEAN CARE SW LTD - REDACTED,10/10/2011,519.92
Bath & North East Somerset Council,80027974,LM6,Nursing Care,P03,Wellbeing,EUROPEAN CARE SW LTD - REDACTED,10/10/2011,519.92
Bath & North East Somerset Council,80028132,LL8,Individualised Budget,P03,Wellbeing,REDACTED,10/10/2011,530.00
Bath & North East Somerset Council,80028059,LL3,Supported Living,P03,Wellbeing,ROYAL MENCAP SOCIETY,10/10/2011,535.01
Bath & North East Somerset Council,80028059,LL3,Supported Living,P03,Wellbeing,ROYAL MENCAP SOCIETY,10/10/2011,535.01
Bath & North East Somerset Council,80028059,LL3,Supported Living,P03,Wellbeing,ROYAL MENCAP SOCIETY,10/10/2011,535.01
Bath & North East Somerset Council,80028059,LL3,Supported Living,P03,Wellbeing,ROYAL MENCAP SOCIETY,10/10/2011,535.01
Bath & North East Somerset Council,80028103,LM6,Nursing Care,P03,Wellbeing,PETER ALLEN INVESTMENTS LTD NO.1 ACCOUNT,10/10/2011,536.00
Bath & North East Somerset Council,80028138,LL8,Individualised Budget,P03,Wellbeing,REDACTED,10/10/2011,552.02
Bath & North East Somerset Council,80028138,LL8,Individualised Budget,P03,Wellbeing,REDACTED,10/10/2011,552.02
Bath & North East Somerset Council,80027967,LM6,Nursing Care,P03,Wellbeing,SHAW HOMES HOUSING ASSOC LTD,10/10/2011,553.84
Bath & North East Somerset Council,80027967,LM6,Nursing Care,P03,Wellbeing,SHAW HOMES HOUSING ASSOC LTD,10/10/2011,553.84
Bath & North East Somerset Council,80027967,LM6,Nursing Care,P03,Wellbeing,SHAW HOMES HOUSING ASSOC LTD,10/10/2011,558.30
Bath & North East Somerset Council,80027967,LM6,Nursing Care,P03,Wellbeing,SHAW HOMES HOUSING ASSOC LTD,10/10/2011,558.30
Bath & North East Somerset Council,80028037,LL3,Supported Living,P03,Wellbeing,ACTION ON HEARING LOSS,10/10/2011,561.51
Bath & North East Somerset Council,80028037,LL3,Supported Living,P03,Wellbeing,ACTION ON HEARING LOSS,10/10/2011,561.51
Bath & North East Somerset Council,80028037,LL3,Supported Living,P03,Wellbeing,ACTION ON HEARING LOSS,10/10/2011,561.51
Bath & North East Somerset Council,80028037,LL3,Supported Living,P03,Wellbeing,ACTION ON HEARING LOSS,10/10/2011,561.51
Bath & North East Somerset Council,80028037,LL3,Supported Living,P03,Wellbeing,ACTION ON HEARING LOSS,10/10/2011,561.51
Bath & North East Somerset Council,80028166,LL8,Individualised Budget,P03,Wellbeing,ILSA,10/10/2011,567.49
Bath & North East Somerset Council,80028166,LL8,Individualised Budget,P03,Wellbeing,ILSA,10/10/2011,567.49
Bath & North East Somerset Council,80027959,LM6,Nursing Care,P03,Wellbeing,CHOLWELL HOUSE NURSING HOME,10/10/2011,569.00
Bath & North East Somerset Council,80027959,LM6,Nursing Care,P03,Wellbeing,CHOLWELL HOUSE NURSING HOME,10/10/2011,569.00
Bath & North East Somerset Council,80028275,LL3,Supported Living,P03,Wellbeing,OPTIONS FOR LIVING LTD,10/10/2011,569.30
Bath & North East Somerset Council,80028275,LL3,Supported Living,P03,Wellbeing,OPTIONS FOR LIVING LTD,10/10/2011,569.30
Bath & North East Somerset Council,80028293,LM6,Nursing Care,P03,Wellbeing,WESTCROFT NURSING HOME,10/10/2011,575.00
Bath & North East Somerset Council,80027902,LL4,Direct Payments,P03,Wellbeing,REDACTED,10/10/2011,595.54
Bath & North East Somerset Council,80027902,LL4,Direct Payments,P03,Wellbeing,REDACTED,10/10/2011,595.54
Bath & North East Somerset Council,80027987,LM6,Nursing Care,P03,Wellbeing,GROVE CARE LTD T/A ORIEL LODGE,10/10/2011,600.00
Bath & North East Somerset Council,80027987,LM6,Nursing Care,P03,Wellbeing,GROVE CARE LTD T/A ORIEL LODGE,10/10/2011,600.00
Bath & North East Somerset Council,80028005,LM6,Nursing Care,P03,Wellbeing,CULVERHAY NURSING HOME,10/10/2011,600.00
Bath & North East Somerset Council,80028005,LM6,Nursing Care,P03,Wellbeing,CULVERHAY NURSING HOME,10/10/2011,600.00
Bath & North East Somerset Council,80028005,LM6,Nursing Care,P03,Wellbeing,CULVERHAY NURSING HOME,10/10/2011,600.00
Bath & North East Somerset Council,80028005,LM6,Nursing Care,P03,Wellbeing,CULVERHAY NURSING HOME,10/10/2011,600.00
Bath & North East Somerset Council,80028032,LL3,Supported Living,P03,Wellbeing,ACTION ON HEARING LOSS,10/10/2011,603.28
Bath & North East Somerset Council,80028032,LL3,Supported Living,P03,Wellbeing,ACTION ON HEARING LOSS,10/10/2011,603.28
Bath & North East Somerset Council,80028032,LL3,Supported Living,P03,Wellbeing,ACTION ON HEARING LOSS,10/10/2011,603.28
Bath & North East Somerset Council,80028032,LL3,Supported Living,P03,Wellbeing,ACTION ON HEARING LOSS,10/10/2011,603.28
Bath & North East Somerset Council,80028001,LM6,Nursing Care,P03,Wellbeing,WESTCROFT NURSING HOME,10/10/2011,610.20
Bath & North East Somerset Council,80028001,LM6,Nursing Care,P03,Wellbeing,WESTCROFT NURSING HOME,10/10/2011,610.20
Bath & North East Somerset Council,80027968,LM6,Nursing Care,P03,Wellbeing,METHODIST HOMES FOR THE AGED,10/10/2011,616.00
Bath & North East Somerset Council,80027968,LM6,Nursing Care,P03,Wellbeing,METHODIST HOMES FOR THE AGED,10/10/2011,616.00
Bath & North East Somerset Council,80027966,LM6,Nursing Care,P03,Wellbeing,BRISTOL AGE CARE,10/10/2011,620.00
Bath & North East Somerset Council,80027966,LM6,Nursing Care,P03,Wellbeing,BRISTOL AGE CARE,10/10/2011,620.00
Bath & North East Somerset Council,80027974,LM6,Nursing Care,P03,Wellbeing,EUROPEAN CARE SW LTD - REDACTED,10/10/2011,641.22
Bath & North East Somerset Council,80027974,LM6,Nursing Care,P03,Wellbeing,EUROPEAN CARE SW LTD - REDACTED,10/10/2011,641.22
Bath & North East Somerset Council,80027959,LM6,Nursing Care,P03,Wellbeing,CHOLWELL HOUSE NURSING HOME,10/10/2011,646.60
Bath & North East Somerset Council,80027959,LM6,Nursing Care,P03,Wellbeing,CHOLWELL HOUSE NURSING HOME,10/10/2011,646.60
Bath & North East Somerset Council,80027960,LM6,Nursing Care,P03,Wellbeing,OAKFIELD,10/10/2011,650.00
Bath & North East Somerset Council,80027960,LM6,Nursing Care,P03,Wellbeing,OAKFIELD,10/10/2011,650.00
Bath & North East Somerset Council,80027961,LM6,Nursing Care,P03,Wellbeing,BARCHESTER HEALTHCARE HOMES LTD,10/10/2011,650.00
Bath & North East Somerset Council,80027961,LM6,Nursing Care,P03,Wellbeing,BARCHESTER HEALTHCARE HOMES LTD,10/10/2011,650.00
Bath & North East Somerset Council,80027961,LM6,Nursing Care,P03,Wellbeing,BARCHESTER HEALTHCARE HOMES LTD,10/10/2011,650.00
Bath & North East Somerset Council,80027961,LM6,Nursing Care,P03,Wellbeing,BARCHESTER HEALTHCARE HOMES LTD,10/10/2011,650.00
Bath & North East Somerset Council,80027961,LM6,Nursing Care,P03,Wellbeing,BARCHESTER HEALTHCARE HOMES LTD,10/10/2011,650.00
Bath & North East Somerset Council,80027961,LM6,Nursing Care,P03,Wellbeing,BARCHESTER HEALTHCARE HOMES LTD,10/10/2011,650.00
Bath & North East Somerset Council,80027961,LM6,Nursing Care,P03,Wellbeing,BARCHESTER HEALTHCARE HOMES LTD,10/10/2011,650.00
Bath & North East Somerset Council,80027961,LM6,Nursing Care,P03,Wellbeing,BARCHESTER HEALTHCARE HOMES LTD,10/10/2011,650.00
Bath & North East Somerset Council,80027961,LM6,Nursing Care,P03,Wellbeing,BARCHESTER HEALTHCARE HOMES LTD,10/10/2011,650.00
Bath & North East Somerset Council,80027961,LM6,Nursing Care,P03,Wellbeing,BARCHESTER HEALTHCARE HOMES LTD,10/10/2011,650.00
Bath & North East Somerset Council,80027961,LM6,Nursing Care,P03,Wellbeing,BARCHESTER HEALTHCARE HOMES LTD,10/10/2011,650.00
Bath & North East Somerset Council,80027961,LM6,Nursing Care,P03,Wellbeing,BARCHESTER HEALTHCARE HOMES LTD,10/10/2011,650.00
Bath & North East Somerset Council,80027961,LM6,Nursing Care,P03,Wellbeing,BARCHESTER HEALTHCARE HOMES LTD,10/10/2011,650.00
Bath & North East Somerset Council,80027961,LM6,Nursing Care,P03,Wellbeing,BARCHESTER HEALTHCARE HOMES LTD,10/10/2011,650.00
Bath & North East Somerset Council,10631184,LC1,Provisions,P03,Wellbeing,L & F JONES HOLDINGS LTD,11/10/2011,85.14
Bath & North East Somerset Council,80027961,LM6,Nursing Care,P03,Wellbeing,BARCHESTER HEALTHCARE HOMES LTD,10/10/2011,650.00
Bath & North East Somerset Council,80027961,LM6,Nursing Care,P03,Wellbeing,BARCHESTER HEALTHCARE HOMES LTD,10/10/2011,650.00
Bath & North East Somerset Council,80027963,LM6,Nursing Care,P03,Wellbeing,LARKHALL SPRINGS NURSING HOME,10/10/2011,650.00
Bath & North East Somerset Council,80027963,LM6,Nursing Care,P03,Wellbeing,LARKHALL SPRINGS NURSING HOME,10/10/2011,650.00
Bath & North East Somerset Council,80027964,LM6,Nursing Care,P03,Wellbeing,EUROPEAN CARE (UK) LTD - REDACTED,10/10/2011,650.00
Bath & North East Somerset Council,80027964,LM6,Nursing Care,P03,Wellbeing,EUROPEAN CARE (UK) LTD - REDACTED,10/10/2011,650.00
Bath & North East Somerset Council,80027964,LM6,Nursing Care,P03,Wellbeing,EUROPEAN CARE (UK) LTD - REDACTED,10/10/2011,650.00
Bath & North East Somerset Council,80027964,LM6,Nursing Care,P03,Wellbeing,EUROPEAN CARE (UK) LTD - REDACTED,10/10/2011,650.00
Bath & North East Somerset Council,80027969,LM6,Nursing Care,P03,Wellbeing,CARE FIRST CARE HOMES LTD,10/10/2011,650.00
Bath & North East Somerset Council,80027969,LM6,Nursing Care,P03,Wellbeing,CARE FIRST CARE HOMES LTD,10/10/2011,650.00
Bath & North East Somerset Council,80027969,LM6,Nursing Care,P03,Wellbeing,CARE FIRST CARE HOMES LTD,10/10/2011,650.00
Bath & North East Somerset Council,80027969,LM6,Nursing Care,P03,Wellbeing,CARE FIRST CARE HOMES LTD,10/10/2011,650.00
Bath & North East Somerset Council,80027971,LM6,Nursing Care,P03,Wellbeing,SOUTHERN CROSS (REDACTED),10/10/2011,650.00
Bath & North East Somerset Council,80027971,LM6,Nursing Care,P03,Wellbeing,SOUTHERN CROSS (REDACTED),10/10/2011,650.00
Bath & North East Somerset Council,80027972,LM6,Nursing Care,P03,Wellbeing,SOUTHERN CROSS (REDACTED),10/10/2011,650.00
Bath & North East Somerset Council,80027972,LM6,Nursing Care,P03,Wellbeing,SOUTHERN CROSS (REDACTED),10/10/2011,650.00
Bath & North East Somerset Council,80027981,LM6,Nursing Care,P03,Wellbeing,BRIDGE CARE LTD,10/10/2011,650.00
Bath & North East Somerset Council,80027981,LM6,Nursing Care,P03,Wellbeing,BRIDGE CARE LTD,10/10/2011,650.00
Bath & North East Somerset Council,80027985,LM6,Nursing Care,P03,Wellbeing,T C CAREHOME LTD,10/10/2011,650.00
Bath & North East Somerset Council,80027985,LM6,Nursing Care,P03,Wellbeing,T C CAREHOME LTD,10/10/2011,650.00
Bath & North East Somerset Council,80027986,LM6,Nursing Care,P03,Wellbeing,BARKER CHEMICALS LTD T/A ST TERESA'S NH,10/10/2011,650.00
Bath & North East Somerset Council,80027986,LM6,Nursing Care,P03,Wellbeing,BARKER CHEMICALS LTD T/A ST TERESA'S NH,10/10/2011,650.00
Bath & North East Somerset Council,80027986,LM6,Nursing Care,P03,Wellbeing,BARKER CHEMICALS LTD T/A ST TERESA'S NH,10/10/2011,650.00
Bath & North East Somerset Council,80027986,LM6,Nursing Care,P03,Wellbeing,BARKER CHEMICALS LTD T/A ST TERESA'S NH,10/10/2011,650.00
Bath & North East Somerset Council,80027986,LM6,Nursing Care,P03,Wellbeing,BARKER CHEMICALS LTD T/A ST TERESA'S NH,10/10/2011,650.00
Bath & North East Somerset Council,80027986,LM6,Nursing Care,P03,Wellbeing,BARKER CHEMICALS LTD T/A ST TERESA'S NH,10/10/2011,650.00
Bath & North East Somerset Council,10627909,HE1,General Maintenance,P01,Transport,METRIC GROUP LIMITED,04/10/2011,88.20
Bath & North East Somerset Council,10627909,HE1,General Maintenance,P01,Transport,METRIC GROUP LIMITED,04/10/2011,88.20
Bath & North East Somerset Council,80027992,LM6,Nursing Care,P03,Wellbeing,STANTON COURT,10/10/2011,650.00
Bath & North East Somerset Council,80027992,LM6,Nursing Care,P03,Wellbeing,STANTON COURT,10/10/2011,650.00
Bath & North East Somerset Council,80027992,LM6,Nursing Care,P03,Wellbeing,STANTON COURT,10/10/2011,650.00
Bath & North East Somerset Council,80027992,LM6,Nursing Care,P03,Wellbeing,STANTON COURT,10/10/2011,650.00
Bath & North East Somerset Council,80027993,LM6,Nursing Care,P03,Wellbeing,CEDAR CARE HOMES LTD,10/10/2011,650.00
Bath & North East Somerset Council,80027993,LM6,Nursing Care,P03,Wellbeing,CEDAR CARE HOMES LTD,10/10/2011,650.00
Bath & North East Somerset Council,80027993,LM6,Nursing Care,P03,Wellbeing,CEDAR CARE HOMES LTD,10/10/2011,650.00
Bath & North East Somerset Council,80027993,LM6,Nursing Care,P03,Wellbeing,CEDAR CARE HOMES LTD,10/10/2011,650.00
Bath & North East Somerset Council,80027993,LM6,Nursing Care,P03,Wellbeing,CEDAR CARE HOMES LTD,10/10/2011,650.00
Bath & North East Somerset Council,80027993,LM6,Nursing Care,P03,Wellbeing,CEDAR CARE HOMES LTD,10/10/2011,650.00
Bath & North East Somerset Council,80027993,LM6,Nursing Care,P03,Wellbeing,CEDAR CARE HOMES LTD,10/10/2011,650.00
Bath & North East Somerset Council,80027993,LM6,Nursing Care,P03,Wellbeing,CEDAR CARE HOMES LTD,10/10/2011,650.00
Bath & North East Somerset Council,80027993,LM6,Nursing Care,P03,Wellbeing,CEDAR CARE HOMES LTD,10/10/2011,650.00
Bath & North East Somerset Council,80027993,LM6,Nursing Care,P03,Wellbeing,CEDAR CARE HOMES LTD,10/10/2011,650.00
Bath & North East Somerset Council,80028001,LM6,Nursing Care,P03,Wellbeing,WESTCROFT NURSING HOME,10/10/2011,650.00
Bath & North East Somerset Council,80028001,LM6,Nursing Care,P03,Wellbeing,WESTCROFT NURSING HOME,10/10/2011,650.00
Bath & North East Somerset Council,80028004,LM6,Nursing Care,P03,Wellbeing,PARK STREET HOME,10/10/2011,650.00
Bath & North East Somerset Council,80028004,LM6,Nursing Care,P03,Wellbeing,PARK STREET HOME,10/10/2011,650.00
Bath & North East Somerset Council,80028005,LM6,Nursing Care,P03,Wellbeing,CULVERHAY NURSING HOME,10/10/2011,650.00
Bath & North East Somerset Council,80028005,LM6,Nursing Care,P03,Wellbeing,CULVERHAY NURSING HOME,10/10/2011,650.00
Bath & North East Somerset Council,80028005,LM6,Nursing Care,P03,Wellbeing,CULVERHAY NURSING HOME,10/10/2011,650.00
Bath & North East Somerset Council,80028005,LM6,Nursing Care,P03,Wellbeing,CULVERHAY NURSING HOME,10/10/2011,650.00
Bath & North East Somerset Council,80028005,LM6,Nursing Care,P03,Wellbeing,CULVERHAY NURSING HOME,10/10/2011,650.00
Bath & North East Somerset Council,80028005,LM6,Nursing Care,P03,Wellbeing,CULVERHAY NURSING HOME,10/10/2011,650.00
Bath & North East Somerset Council,80028005,LM6,Nursing Care,P03,Wellbeing,CULVERHAY NURSING HOME,10/10/2011,650.00
Bath & North East Somerset Council,80028005,LM6,Nursing Care,P03,Wellbeing,CULVERHAY NURSING HOME,10/10/2011,650.00
Bath & North East Somerset Council,80028005,LM6,Nursing Care,P03,Wellbeing,CULVERHAY NURSING HOME,10/10/2011,650.00
Bath & North East Somerset Council,80028005,LM6,Nursing Care,P03,Wellbeing,CULVERHAY NURSING HOME,10/10/2011,650.00
Bath & North East Somerset Council,80028058,LL3,Supported Living,P03,Wellbeing,DIMENSIONS (UK) LTD,10/10/2011,663.27
Bath & North East Somerset Council,80028058,LL3,Supported Living,P03,Wellbeing,DIMENSIONS (UK) LTD,10/10/2011,663.27
Bath & North East Somerset Council,80028058,LL3,Supported Living,P03,Wellbeing,DIMENSIONS (UK) LTD,10/10/2011,663.27
Bath & North East Somerset Council,80028058,LL3,Supported Living,P03,Wellbeing,DIMENSIONS (UK) LTD,10/10/2011,663.27
Bath & North East Somerset Council,80027978,LM6,Nursing Care,P03,Wellbeing,ROSEVILLE CARE HOMES MELKSHAM,10/10/2011,665.00
Bath & North East Somerset Council,80027978,LM6,Nursing Care,P03,Wellbeing,ROSEVILLE CARE HOMES MELKSHAM,10/10/2011,665.00
Bath & North East Somerset Council,80028094,LL8,Individualised Budget,P03,Wellbeing,REDACTED,10/10/2011,667.25
Bath & North East Somerset Council,80028094,LL8,Individualised Budget,P03,Wellbeing,REDACTED,10/10/2011,667.25
Bath & North East Somerset Council,80027985,LM6,Nursing Care,P03,Wellbeing,T C CAREHOME LTD,10/10/2011,675.00
Bath & North East Somerset Council,80027985,LM6,Nursing Care,P03,Wellbeing,T C CAREHOME LTD,10/10/2011,675.00
Bath & North East Somerset Council,80027961,LM6,Nursing Care,P03,Wellbeing,BARCHESTER HEALTHCARE HOMES LTD,10/10/2011,675.61
Bath & North East Somerset Council,10628858,DB1,Agency Staff,P03,Wellbeing,ACCESS INDEPENDENT,17/10/2011,94.17
Bath & North East Somerset Council,10631352,LT2,Hospitality,P06,Sustainable Development,HAMMONDS PROJECT MANAGEMENT SERVICES LTD,14/10/2011,94.90
Bath & North East Somerset Council,80027961,LM6,Nursing Care,P03,Wellbeing,BARCHESTER HEALTHCARE HOMES LTD,10/10/2011,675.61
Bath & North East Somerset Council,80028016,LL3,Supported Living,P03,Wellbeing,NATIONAL AUTISTIC SOCIETY,10/10/2011,680.75
Bath & North East Somerset Council,80028016,LL3,Supported Living,P03,Wellbeing,NATIONAL AUTISTIC SOCIETY,10/10/2011,680.75
Bath & North East Somerset Council,80028016,LL3,Supported Living,P03,Wellbeing,NATIONAL AUTISTIC SOCIETY,10/10/2011,680.75
Bath & North East Somerset Council,80028016,LL3,Supported Living,P03,Wellbeing,NATIONAL AUTISTIC SOCIETY,10/10/2011,680.75
Bath & North East Somerset Council,80028275,LL3,Supported Living,P03,Wellbeing,OPTIONS FOR LIVING LTD,10/10/2011,687.74
Bath & North East Somerset Council,80028275,LL3,Supported Living,P03,Wellbeing,OPTIONS FOR LIVING LTD,10/10/2011,687.74
Bath & North East Somerset Council,80027961,LM6,Nursing Care,P03,Wellbeing,BARCHESTER HEALTHCARE HOMES LTD,10/10/2011,691.00
Bath & North East Somerset Council,80027961,LM6,Nursing Care,P03,Wellbeing,BARCHESTER HEALTHCARE HOMES LTD,10/10/2011,691.00
Bath & North East Somerset Council,80027986,LM6,Nursing Care,P03,Wellbeing,BARKER CHEMICALS LTD T/A ST TERESA'S NH,10/10/2011,700.00
Bath & North East Somerset Council,80027986,LM6,Nursing Care,P03,Wellbeing,BARKER CHEMICALS LTD T/A ST TERESA'S NH,10/10/2011,700.00
Bath & North East Somerset Council,80028005,LM6,Nursing Care,P03,Wellbeing,CULVERHAY NURSING HOME,10/10/2011,700.00
Bath & North East Somerset Council,80028005,LM6,Nursing Care,P03,Wellbeing,CULVERHAY NURSING HOME,10/10/2011,700.00
Bath & North East Somerset Council,80028005,LM6,Nursing Care,P03,Wellbeing,CULVERHAY NURSING HOME,10/10/2011,700.00
Bath & North East Somerset Council,80028005,LM6,Nursing Care,P03,Wellbeing,CULVERHAY NURSING HOME,10/10/2011,700.00
Bath & North East Somerset Council,80028005,LM6,Nursing Care,P03,Wellbeing,CULVERHAY NURSING HOME,10/10/2011,700.00
Bath & North East Somerset Council,80028005,LM6,Nursing Care,P03,Wellbeing,CULVERHAY NURSING HOME,10/10/2011,700.00
Bath & North East Somerset Council,80028005,LM6,Nursing Care,P03,Wellbeing,CULVERHAY NURSING HOME,10/10/2011,700.00
Bath & North East Somerset Council,80028005,LM6,Nursing Care,P03,Wellbeing,CULVERHAY NURSING HOME,10/10/2011,700.00
Bath & North East Somerset Council,80028087,LM8,Home Care,P03,Wellbeing,AGINCARE LIVE IN CARE SERVICES LTD,10/10/2011,700.00
Bath & North East Somerset Council,80028087,LM8,Home Care,P03,Wellbeing,AGINCARE LIVE IN CARE SERVICES LTD,10/10/2011,700.00
Bath & North East Somerset Council,80028282,LM8,Home Care,P03,Wellbeing,SAFE & SOUND HOMECARE SERVICES,10/10/2011,707.00
Bath & North East Somerset Council,80028282,LM8,Home Care,P03,Wellbeing,SAFE & SOUND HOMECARE SERVICES,10/10/2011,707.00
Bath & North East Somerset Council,80027959,LM6,Nursing Care,P03,Wellbeing,CHOLWELL HOUSE NURSING HOME,10/10/2011,711.90
Bath & North East Somerset Council,80027959,LM6,Nursing Care,P03,Wellbeing,CHOLWELL HOUSE NURSING HOME,10/10/2011,711.90
Bath & North East Somerset Council,80027959,LM6,Nursing Care,P03,Wellbeing,CHOLWELL HOUSE NURSING HOME,10/10/2011,711.90
Bath & North East Somerset Council,80027959,LM6,Nursing Care,P03,Wellbeing,CHOLWELL HOUSE NURSING HOME,10/10/2011,711.90
Bath & North East Somerset Council,80028001,LM6,Nursing Care,P03,Wellbeing,WESTCROFT NURSING HOME,10/10/2011,711.90
Bath & North East Somerset Council,80028001,LM6,Nursing Care,P03,Wellbeing,WESTCROFT NURSING HOME,10/10/2011,711.90
Bath & North East Somerset Council,80027963,LM6,Nursing Care,P03,Wellbeing,LARKHALL SPRINGS NURSING HOME,10/10/2011,718.00
Bath & North East Somerset Council,80027963,LM6,Nursing Care,P03,Wellbeing,LARKHALL SPRINGS NURSING HOME,10/10/2011,718.00
Bath & North East Somerset Council,80027963,LM6,Nursing Care,P03,Wellbeing,LARKHALL SPRINGS NURSING HOME,10/10/2011,718.00
Bath & North East Somerset Council,80027963,LM6,Nursing Care,P03,Wellbeing,LARKHALL SPRINGS NURSING HOME,10/10/2011,718.00
Bath & North East Somerset Council,80027963,LM6,Nursing Care,P03,Wellbeing,LARKHALL SPRINGS NURSING HOME,10/10/2011,718.00
Bath & North East Somerset Council,80027963,LM6,Nursing Care,P03,Wellbeing,LARKHALL SPRINGS NURSING HOME,10/10/2011,718.00
Bath & North East Somerset Council,80027963,LM6,Nursing Care,P03,Wellbeing,LARKHALL SPRINGS NURSING HOME,10/10/2011,718.00
Bath & North East Somerset Council,80027963,LM6,Nursing Care,P03,Wellbeing,LARKHALL SPRINGS NURSING HOME,10/10/2011,718.00
Bath & North East Somerset Council,10633805,LL1,Services to/for Clients,P02,"Early Years, Children & Youth",BNES-FROME RD CENTRE IMPREST A/C,31/10/2011,99.95
Bath & North East Somerset Council,80027963,LM6,Nursing Care,P03,Wellbeing,LARKHALL SPRINGS NURSING HOME,10/10/2011,718.00
Bath & North East Somerset Council,80027963,LM6,Nursing Care,P03,Wellbeing,LARKHALL SPRINGS NURSING HOME,10/10/2011,718.00
Bath & North East Somerset Council,80027963,LM6,Nursing Care,P03,Wellbeing,LARKHALL SPRINGS NURSING HOME,10/10/2011,718.00
Bath & North East Somerset Council,80027963,LM6,Nursing Care,P03,Wellbeing,LARKHALL SPRINGS NURSING HOME,10/10/2011,718.00
Bath & North East Somerset Council,80027963,LM6,Nursing Care,P03,Wellbeing,LARKHALL SPRINGS NURSING HOME,10/10/2011,718.00
Bath & North East Somerset Council,80027963,LM6,Nursing Care,P03,Wellbeing,LARKHALL SPRINGS NURSING HOME,10/10/2011,718.00
Bath & North East Somerset Council,80027963,LM6,Nursing Care,P03,Wellbeing,LARKHALL SPRINGS NURSING HOME,10/10/2011,718.00
Bath & North East Somerset Council,80027963,LM6,Nursing Care,P03,Wellbeing,LARKHALL SPRINGS NURSING HOME,10/10/2011,718.00
Bath & North East Somerset Council,80027963,LM6,Nursing Care,P03,Wellbeing,LARKHALL SPRINGS NURSING HOME,10/10/2011,718.00
Bath & North East Somerset Council,80027963,LM6,Nursing Care,P03,Wellbeing,LARKHALL SPRINGS NURSING HOME,10/10/2011,718.00
Bath & North East Somerset Council,80027963,LM6,Nursing Care,P03,Wellbeing,LARKHALL SPRINGS NURSING HOME,10/10/2011,718.00
Bath & North East Somerset Council,80027963,LM6,Nursing Care,P03,Wellbeing,LARKHALL SPRINGS NURSING HOME,10/10/2011,718.00
Bath & North East Somerset Council,80027963,LM6,Nursing Care,P03,Wellbeing,LARKHALL SPRINGS NURSING HOME,10/10/2011,718.00
Bath & North East Somerset Council,80027963,LM6,Nursing Care,P03,Wellbeing,LARKHALL SPRINGS NURSING HOME,10/10/2011,718.00
Bath & North East Somerset Council,80027963,LM6,Nursing Care,P03,Wellbeing,LARKHALL SPRINGS NURSING HOME,10/10/2011,718.00
Bath & North East Somerset Council,80027963,LM6,Nursing Care,P03,Wellbeing,LARKHALL SPRINGS NURSING HOME,10/10/2011,718.00
Bath & North East Somerset Council,80027963,LM6,Nursing Care,P03,Wellbeing,LARKHALL SPRINGS NURSING HOME,10/10/2011,718.00
Bath & North East Somerset Council,80027963,LM6,Nursing Care,P03,Wellbeing,LARKHALL SPRINGS NURSING HOME,10/10/2011,718.00
Bath & North East Somerset Council,80027959,LM6,Nursing Care,P03,Wellbeing,CHOLWELL HOUSE NURSING HOME,10/10/2011,725.00
Bath & North East Somerset Council,80027959,LM6,Nursing Care,P03,Wellbeing,CHOLWELL HOUSE NURSING HOME,10/10/2011,725.00
Bath & North East Somerset Council,80027959,LM6,Nursing Care,P03,Wellbeing,CHOLWELL HOUSE NURSING HOME,10/10/2011,725.00
Bath & North East Somerset Council,80027959,LM6,Nursing Care,P03,Wellbeing,CHOLWELL HOUSE NURSING HOME,10/10/2011,725.00
Bath & North East Somerset Council,80027961,LM6,Nursing Care,P03,Wellbeing,BARCHESTER HEALTHCARE HOMES LTD,10/10/2011,725.00
Bath & North East Somerset Council,80027961,LM6,Nursing Care,P03,Wellbeing,BARCHESTER HEALTHCARE HOMES LTD,10/10/2011,725.00
Bath & North East Somerset Council,80027986,LM6,Nursing Care,P03,Wellbeing,BARKER CHEMICALS LTD T/A ST TERESA'S NH,10/10/2011,725.00
Bath & North East Somerset Council,80027986,LM6,Nursing Care,P03,Wellbeing,BARKER CHEMICALS LTD T/A ST TERESA'S NH,10/10/2011,725.00
Bath & North East Somerset Council,80028003,LM6,Nursing Care,P03,Wellbeing,CEDAR PARK NURSING HOME,10/10/2011,725.00
Bath & North East Somerset Council,80028003,LM6,Nursing Care,P03,Wellbeing,CEDAR PARK NURSING HOME,10/10/2011,725.00
Bath & North East Somerset Council,80028005,LM6,Nursing Care,P03,Wellbeing,CULVERHAY NURSING HOME,10/10/2011,725.00
Bath & North East Somerset Council,80028005,LM6,Nursing Care,P03,Wellbeing,CULVERHAY NURSING HOME,10/10/2011,725.00
Bath & North East Somerset Council,80027964,LM6,Nursing Care,P03,Wellbeing,EUROPEAN CARE (UK) LTD - REDACTED,10/10/2011,739.87
Bath & North East Somerset Council,80027964,LM6,Nursing Care,P03,Wellbeing,EUROPEAN CARE (UK) LTD - REDACTED,10/10/2011,739.87
Bath & North East Somerset Council,80027991,LM6,Nursing Care,P03,Wellbeing,MILLENNIUM CARE HOMES LTD,10/10/2011,745.00
Bath & North East Somerset Council,80027991,LM6,Nursing Care,P03,Wellbeing,MILLENNIUM CARE HOMES LTD,10/10/2011,745.00
Bath & North East Somerset Council,10630770,LC1,Provisions,P03,Wellbeing,L & F JONES HOLDINGS LTD,11/10/2011,100.80
Bath & North East Somerset Council,80027961,LM6,Nursing Care,P03,Wellbeing,BARCHESTER HEALTHCARE HOMES LTD,10/10/2011,750.00
Bath & North East Somerset Council,80027961,LM6,Nursing Care,P03,Wellbeing,BARCHESTER HEALTHCARE HOMES LTD,10/10/2011,750.00
Bath & North East Somerset Council,80027981,LM6,Nursing Care,P03,Wellbeing,BRIDGE CARE LTD,10/10/2011,750.00
Bath & North East Somerset Council,80027981,LM6,Nursing Care,P03,Wellbeing,BRIDGE CARE LTD,10/10/2011,750.00
Bath & North East Somerset Council,10627909,HE1,General Maintenance,P01,Transport,METRIC GROUP LIMITED,04/10/2011,101.61
Bath & North East Somerset Council,10631205,LJ4,Contracts,P01,Transport,WELTON CABS,11/10/2011,102.00
Bath & North East Somerset Council,10632539,LK4,Nursery/Childcare Vouchers,P02,"Early Years, Children & Youth",MULBERRY KIDZ,18/10/2011,102.20
Bath & North East Somerset Council,80027992,LM6,Nursing Care,P03,Wellbeing,STANTON COURT,10/10/2011,750.00
Bath & North East Somerset Council,80027992,LM6,Nursing Care,P03,Wellbeing,STANTON COURT,10/10/2011,750.00
Bath & North East Somerset Council,80027996,LM6,Nursing Care,P03,Wellbeing,BUPA CARE SERVICES BACS RECEIPTS,10/10/2011,750.00
Bath & North East Somerset Council,80027996,LM6,Nursing Care,P03,Wellbeing,BUPA CARE SERVICES BACS RECEIPTS,10/10/2011,750.00
Bath & North East Somerset Council,80028005,LM6,Nursing Care,P03,Wellbeing,CULVERHAY NURSING HOME,10/10/2011,750.00
Bath & North East Somerset Council,80028005,LM6,Nursing Care,P03,Wellbeing,CULVERHAY NURSING HOME,10/10/2011,750.00
Bath & North East Somerset Council,80028005,LM6,Nursing Care,P03,Wellbeing,CULVERHAY NURSING HOME,10/10/2011,750.00
Bath & North East Somerset Council,80028005,LM6,Nursing Care,P03,Wellbeing,CULVERHAY NURSING HOME,10/10/2011,750.00
Bath & North East Somerset Council,80028005,LM6,Nursing Care,P03,Wellbeing,CULVERHAY NURSING HOME,10/10/2011,750.00
Bath & North East Somerset Council,80028005,LM6,Nursing Care,P03,Wellbeing,CULVERHAY NURSING HOME,10/10/2011,750.00
Bath & North East Somerset Council,80028005,LM6,Nursing Care,P03,Wellbeing,CULVERHAY NURSING HOME,10/10/2011,750.00
Bath & North East Somerset Council,80028005,LM6,Nursing Care,P03,Wellbeing,CULVERHAY NURSING HOME,10/10/2011,750.00
Bath & North East Somerset Council,80028005,LM6,Nursing Care,P03,Wellbeing,CULVERHAY NURSING HOME,10/10/2011,750.00
Bath & North East Somerset Council,80028005,LM6,Nursing Care,P03,Wellbeing,CULVERHAY NURSING HOME,10/10/2011,750.00
Bath & North East Somerset Council,80028005,LM6,Nursing Care,P03,Wellbeing,CULVERHAY NURSING HOME,10/10/2011,750.00
Bath & North East Somerset Council,80028005,LM6,Nursing Care,P03,Wellbeing,CULVERHAY NURSING HOME,10/10/2011,750.00
Bath & North East Somerset Council,80027961,LM6,Nursing Care,P03,Wellbeing,BARCHESTER HEALTHCARE HOMES LTD,10/10/2011,755.00
Bath & North East Somerset Council,80027961,LM6,Nursing Care,P03,Wellbeing,BARCHESTER HEALTHCARE HOMES LTD,10/10/2011,755.00
Bath & North East Somerset Council,80028012,LL3,Supported Living,P03,Wellbeing,NATIONAL AUTISTIC SOCIETY,10/10/2011,759.05
Bath & North East Somerset Council,80028012,LL3,Supported Living,P03,Wellbeing,NATIONAL AUTISTIC SOCIETY,10/10/2011,759.05
Bath & North East Somerset Council,80028012,LL3,Supported Living,P03,Wellbeing,NATIONAL AUTISTIC SOCIETY,10/10/2011,759.05
Bath & North East Somerset Council,80028012,LL3,Supported Living,P03,Wellbeing,NATIONAL AUTISTIC SOCIETY,10/10/2011,759.05
Bath & North East Somerset Council,80027961,LM6,Nursing Care,P03,Wellbeing,BARCHESTER HEALTHCARE HOMES LTD,10/10/2011,762.75
Bath & North East Somerset Council,80027961,LM6,Nursing Care,P03,Wellbeing,BARCHESTER HEALTHCARE HOMES LTD,10/10/2011,762.75
Bath & North East Somerset Council,80027961,LM6,Nursing Care,P03,Wellbeing,BARCHESTER HEALTHCARE HOMES LTD,10/10/2011,762.75
Bath & North East Somerset Council,80027961,LM6,Nursing Care,P03,Wellbeing,BARCHESTER HEALTHCARE HOMES LTD,10/10/2011,762.75
Bath & North East Somerset Council,80027977,LM6,Nursing Care,P03,Wellbeing,EXTRAFRIEND LTD,10/10/2011,762.75
Bath & North East Somerset Council,80027977,LM6,Nursing Care,P03,Wellbeing,EXTRAFRIEND LTD,10/10/2011,762.75
Bath & North East Somerset Council,80028242,LL8,Individualised Budget,P03,Wellbeing,REDACTED,10/10/2011,773.53
Bath & North East Somerset Council,80028242,LL8,Individualised Budget,P03,Wellbeing,REDACTED,10/10/2011,773.53
Bath & North East Somerset Council,80027989,LM6,Nursing Care,P03,Wellbeing,LIFESTYLE CARE (2005) PLC,10/10/2011,775.00
Bath & North East Somerset Council,80027989,LM6,Nursing Care,P03,Wellbeing,LIFESTYLE CARE (2005) PLC,10/10/2011,775.00
Bath & North East Somerset Council,80028013,LL3,Supported Living,P03,Wellbeing,NATIONAL AUTISTIC SOCIETY,10/10/2011,776.45
Bath & North East Somerset Council,80028013,LL3,Supported Living,P03,Wellbeing,NATIONAL AUTISTIC SOCIETY,10/10/2011,776.45
Bath & North East Somerset Council,80028013,LL3,Supported Living,P03,Wellbeing,NATIONAL AUTISTIC SOCIETY,10/10/2011,776.45
Bath & North East Somerset Council,80028013,LL3,Supported Living,P03,Wellbeing,NATIONAL AUTISTIC SOCIETY,10/10/2011,776.45
Bath & North East Somerset Council,10631440,LA3,Equipment Maintenance (Non Medical),P05,Neighbourhoods,ABW ENGINEERING SERVICES [SW] LTD,17/10/2011,105.00
Bath & North East Somerset Council,10631440,LA3,Equipment Maintenance (Non Medical),P05,Neighbourhoods,ABW ENGINEERING SERVICES [SW] LTD,17/10/2011,105.00
Bath & North East Somerset Council,80028018,LL3,Supported Living,P03,Wellbeing,NATIONAL AUTISTIC SOCIETY,10/10/2011,776.45
Bath & North East Somerset Council,80028018,LL3,Supported Living,P03,Wellbeing,NATIONAL AUTISTIC SOCIETY,10/10/2011,776.45
Bath & North East Somerset Council,80028018,LL3,Supported Living,P03,Wellbeing,NATIONAL AUTISTIC SOCIETY,10/10/2011,776.45
Bath & North East Somerset Council,80028018,LL3,Supported Living,P03,Wellbeing,NATIONAL AUTISTIC SOCIETY,10/10/2011,776.45
Bath & North East Somerset Council,80027995,LM6,Nursing Care,P03,Wellbeing,REDACTED,10/10/2011,787.00
Bath & North East Somerset Council,80027995,LM6,Nursing Care,P03,Wellbeing,REDACTED,10/10/2011,787.00
Bath & North East Somerset Council,80027961,LM6,Nursing Care,P03,Wellbeing,BARCHESTER HEALTHCARE HOMES LTD,10/10/2011,798.35
Bath & North East Somerset Council,80027961,LM6,Nursing Care,P03,Wellbeing,BARCHESTER HEALTHCARE HOMES LTD,10/10/2011,798.35
Bath & North East Somerset Council,80027986,LM6,Nursing Care,P03,Wellbeing,BARKER CHEMICALS LTD T/A ST TERESA'S NH,10/10/2011,800.00
Bath & North East Somerset Council,80027986,LM6,Nursing Care,P03,Wellbeing,BARKER CHEMICALS LTD T/A ST TERESA'S NH,10/10/2011,800.00
Bath & North East Somerset Council,80027993,LM6,Nursing Care,P03,Wellbeing,CEDAR CARE HOMES LTD,10/10/2011,800.00
Bath & North East Somerset Council,80027993,LM6,Nursing Care,P03,Wellbeing,CEDAR CARE HOMES LTD,10/10/2011,800.00
Bath & North East Somerset Council,80027993,LM6,Nursing Care,P03,Wellbeing,CEDAR CARE HOMES LTD,10/10/2011,800.00
Bath & North East Somerset Council,80027993,LM6,Nursing Care,P03,Wellbeing,CEDAR CARE HOMES LTD,10/10/2011,800.00
Bath & North East Somerset Council,80028005,LM6,Nursing Care,P03,Wellbeing,CULVERHAY NURSING HOME,10/10/2011,800.00
Bath & North East Somerset Council,80028005,LM6,Nursing Care,P03,Wellbeing,CULVERHAY NURSING HOME,10/10/2011,800.00
Bath & North East Somerset Council,80028243,LL8,Individualised Budget,P03,Wellbeing,REDACTED,10/10/2011,802.31
Bath & North East Somerset Council,80028243,LL8,Individualised Budget,P03,Wellbeing,REDACTED,10/10/2011,802.31
Bath & North East Somerset Council,80028014,LL3,Supported Living,P03,Wellbeing,NATIONAL AUTISTIC SOCIETY,10/10/2011,811.25
Bath & North East Somerset Council,80028014,LL3,Supported Living,P03,Wellbeing,NATIONAL AUTISTIC SOCIETY,10/10/2011,811.25
Bath & North East Somerset Council,80028014,LL3,Supported Living,P03,Wellbeing,NATIONAL AUTISTIC SOCIETY,10/10/2011,811.25
Bath & North East Somerset Council,80028014,LL3,Supported Living,P03,Wellbeing,NATIONAL AUTISTIC SOCIETY,10/10/2011,811.25
Bath & North East Somerset Council,80028275,LL3,Supported Living,P03,Wellbeing,OPTIONS FOR LIVING LTD,10/10/2011,823.62
Bath & North East Somerset Council,80028275,LL3,Supported Living,P03,Wellbeing,OPTIONS FOR LIVING LTD,10/10/2011,823.62
Bath & North East Somerset Council,80028086,LL3,Supported Living,P03,Wellbeing,MOVING ON,10/10/2011,826.98
Bath & North East Somerset Council,80028086,LL3,Supported Living,P03,Wellbeing,MOVING ON,10/10/2011,826.98
Bath & North East Somerset Council,80028086,LL3,Supported Living,P03,Wellbeing,MOVING ON,10/10/2011,826.98
Bath & North East Somerset Council,80028086,LL3,Supported Living,P03,Wellbeing,MOVING ON,10/10/2011,826.98
Bath & North East Somerset Council,80027992,LM6,Nursing Care,P03,Wellbeing,STANTON COURT,10/10/2011,836.80
Bath & North East Somerset Council,80027992,LM6,Nursing Care,P03,Wellbeing,STANTON COURT,10/10/2011,836.80
Bath & North East Somerset Council,80027961,LM6,Nursing Care,P03,Wellbeing,BARCHESTER HEALTHCARE HOMES LTD,10/10/2011,839.03
Bath & North East Somerset Council,80027961,LM6,Nursing Care,P03,Wellbeing,BARCHESTER HEALTHCARE HOMES LTD,10/10/2011,839.03
Bath & North East Somerset Council,80027992,LM6,Nursing Care,P03,Wellbeing,STANTON COURT,10/10/2011,843.09
Bath & North East Somerset Council,80027992,LM6,Nursing Care,P03,Wellbeing,STANTON COURT,10/10/2011,843.09
Bath & North East Somerset Council,80028002,LM6,Nursing Care,P03,Wellbeing,CRANHILL NURSING HOME,10/10/2011,850.00
Bath & North East Somerset Council,80028002,LM6,Nursing Care,P03,Wellbeing,CRANHILL NURSING HOME,10/10/2011,850.00
Bath & North East Somerset Council,80028273,LL8,Individualised Budget,P03,Wellbeing,REDACTED,10/10/2011,860.68
Bath & North East Somerset Council,80027975,LM6,Nursing Care,P03,Wellbeing,BARCHESTER HEALTHCARE,10/10/2011,915.30
Bath & North East Somerset Council,80027975,LM6,Nursing Care,P03,Wellbeing,BARCHESTER HEALTHCARE,10/10/2011,915.30
Bath & North East Somerset Council,80028015,LL3,Supported Living,P03,Wellbeing,NATIONAL AUTISTIC SOCIETY,10/10/2011,915.65
Bath & North East Somerset Council,80028015,LL3,Supported Living,P03,Wellbeing,NATIONAL AUTISTIC SOCIETY,10/10/2011,915.65
Bath & North East Somerset Council,80028015,LL3,Supported Living,P03,Wellbeing,NATIONAL AUTISTIC SOCIETY,10/10/2011,915.65
Bath & North East Somerset Council,80028015,LL3,Supported Living,P03,Wellbeing,NATIONAL AUTISTIC SOCIETY,10/10/2011,915.65
Bath & North East Somerset Council,80028019,LL3,Supported Living,P03,Wellbeing,NATIONAL AUTISTIC SOCIETY,10/10/2011,915.65
Bath & North East Somerset Council,80028019,LL3,Supported Living,P03,Wellbeing,NATIONAL AUTISTIC SOCIETY,10/10/2011,915.65
Bath & North East Somerset Council,80028019,LL3,Supported Living,P03,Wellbeing,NATIONAL AUTISTIC SOCIETY,10/10/2011,915.65
Bath & North East Somerset Council,80028019,LL3,Supported Living,P03,Wellbeing,NATIONAL AUTISTIC SOCIETY,10/10/2011,915.65
Bath & North East Somerset Council,80028233,LL8,Individualised Budget,P03,Wellbeing,REDACTED,10/10/2011,951.82
Bath & North East Somerset Council,80028233,LL8,Individualised Budget,P03,Wellbeing,REDACTED,10/10/2011,951.82
Bath & North East Somerset Council,80027976,LM6,Nursing Care,P03,Wellbeing,LEONARD CHESHIRE FOUNDATION,10/10/2011,955.21
Bath & North East Somerset Council,80027976,LM6,Nursing Care,P03,Wellbeing,LEONARD CHESHIRE FOUNDATION,10/10/2011,955.21
Bath & North East Somerset Council,80027988,LM6,Nursing Care,P03,Wellbeing,WESTMINSTER HEALTHCARE LTD,10/10/2011,966.15
Bath & North East Somerset Council,80027988,LM6,Nursing Care,P03,Wellbeing,WESTMINSTER HEALTHCARE LTD,10/10/2011,966.15
Bath & North East Somerset Council,80027976,LM6,Nursing Care,P03,Wellbeing,LEONARD CHESHIRE FOUNDATION,10/10/2011,1013.81
Bath & North East Somerset Council,80027976,LM6,Nursing Care,P03,Wellbeing,LEONARD CHESHIRE FOUNDATION,10/10/2011,1013.81
Bath & North East Somerset Council,80027995,LM6,Nursing Care,P03,Wellbeing,REDACTED,10/10/2011,1015.00
Bath & North East Somerset Council,80027995,LM6,Nursing Care,P03,Wellbeing,REDACTED,10/10/2011,1015.00
Bath & North East Somerset Council,80028035,LL3,Supported Living,P03,Wellbeing,ACTION ON HEARING LOSS,10/10/2011,1054.01
Bath & North East Somerset Council,80028035,LL3,Supported Living,P03,Wellbeing,ACTION ON HEARING LOSS,10/10/2011,1054.01
Bath & North East Somerset Council,80028035,LL3,Supported Living,P03,Wellbeing,ACTION ON HEARING LOSS,10/10/2011,1054.01
Bath & North East Somerset Council,80028035,LL3,Supported Living,P03,Wellbeing,ACTION ON HEARING LOSS,10/10/2011,1054.01
Bath & North East Somerset Council,80027979,LM6,Nursing Care,P03,Wellbeing,DORSET LODGE LTD,10/10/2011,1060.81
Bath & North East Somerset Council,80027979,LM6,Nursing Care,P03,Wellbeing,DORSET LODGE LTD,10/10/2011,1060.81
Bath & North East Somerset Council,80027976,LM6,Nursing Care,P03,Wellbeing,LEONARD CHESHIRE FOUNDATION,10/10/2011,1086.00
Bath & North East Somerset Council,80027976,LM6,Nursing Care,P03,Wellbeing,LEONARD CHESHIRE FOUNDATION,10/10/2011,1086.00
Bath & North East Somerset Council,80027998,LM6,Nursing Care,P03,Wellbeing,MIRAMAR (OPERATIONS) LTD,10/10/2011,1087.50
Bath & North East Somerset Council,80027998,LM6,Nursing Care,P03,Wellbeing,MIRAMAR (OPERATIONS) LTD,10/10/2011,1087.50
Bath & North East Somerset Council,80027976,LM6,Nursing Care,P03,Wellbeing,LEONARD CHESHIRE FOUNDATION,10/10/2011,1176.50
Bath & North East Somerset Council,80027976,LM6,Nursing Care,P03,Wellbeing,LEONARD CHESHIRE FOUNDATION,10/10/2011,1176.50
Bath & North East Somerset Council,80027976,LM6,Nursing Care,P03,Wellbeing,LEONARD CHESHIRE FOUNDATION,10/10/2011,1194.83
Bath & North East Somerset Council,80027976,LM6,Nursing Care,P03,Wellbeing,LEONARD CHESHIRE FOUNDATION,10/10/2011,1194.83
Bath & North East Somerset Council,80023247,LM8,Home Care,P03,Wellbeing,ACTIVE ASSISTANCE,10/10/2011,1200.00
Bath & North East Somerset Council,80028177,LL8,Individualised Budget,P03,Wellbeing,REDACTED,10/10/2011,1223.25
Bath & North East Somerset Council,80028177,LL8,Individualised Budget,P03,Wellbeing,REDACTED,10/10/2011,1223.25
Bath & North East Somerset Council,80028122,LL8,Individualised Budget,P03,Wellbeing,REDACTED,10/10/2011,1267.30
Bath & North East Somerset Council,80028122,LL8,Individualised Budget,P03,Wellbeing,REDACTED,10/10/2011,1267.30
Bath & North East Somerset Council,10631565,LJ4,Contracts,P01,Transport,V CARS BATH LTD,17/10/2011,108.00
Bath & North East Somerset Council,80027906,LL4,Direct Payments,P03,Wellbeing,REDACTED,10/10/2011,1293.48
Bath & North East Somerset Council,80027906,LL4,Direct Payments,P03,Wellbeing,REDACTED,10/10/2011,1293.48
Bath & North East Somerset Council,80023248,LM8,Home Care,P03,Wellbeing,ACTIVE ASSISTANCE,10/10/2011,1300.00
Bath & North East Somerset Council,80027976,LM6,Nursing Care,P03,Wellbeing,LEONARD CHESHIRE FOUNDATION,10/10/2011,1321.05
Bath & North East Somerset Council,80027976,LM6,Nursing Care,P03,Wellbeing,LEONARD CHESHIRE FOUNDATION,10/10/2011,1321.05
Bath & North East Somerset Council,80028134,LL8,Individualised Budget,P03,Wellbeing,REDACTED,10/10/2011,1333.47
Bath & North East Somerset Council,80028134,LL8,Individualised Budget,P03,Wellbeing,REDACTED,10/10/2011,1333.47
Bath & North East Somerset Council,80028057,LL3,Supported Living,P03,Wellbeing,DIMENSIONS (UK) LTD,10/10/2011,1380.97
Bath & North East Somerset Council,80028057,LL3,Supported Living,P03,Wellbeing,DIMENSIONS (UK) LTD,10/10/2011,1380.97
Bath & North East Somerset Council,80028057,LL3,Supported Living,P03,Wellbeing,DIMENSIONS (UK) LTD,10/10/2011,1380.97
Bath & North East Somerset Council,80028057,LL3,Supported Living,P03,Wellbeing,DIMENSIONS (UK) LTD,10/10/2011,1380.97
Bath & North East Somerset Council,80027994,LM6,Nursing Care,P03,Wellbeing,THE SUSSEX BEACON,10/10/2011,1400.00
Bath & North East Somerset Council,80027994,LM6,Nursing Care,P03,Wellbeing,THE SUSSEX BEACON,10/10/2011,1400.00
Bath & North East Somerset Council,80027983,LM6,Nursing Care,P03,Wellbeing,GLENSIDE MANOR HEALTHCARE SERVICES LTD,10/10/2011,1401.43
Bath & North East Somerset Council,80027983,LM6,Nursing Care,P03,Wellbeing,GLENSIDE MANOR HEALTHCARE SERVICES LTD,10/10/2011,1401.43
Bath & North East Somerset Council,80028005,LM6,Nursing Care,P03,Wellbeing,CULVERHAY NURSING HOME,10/10/2011,1409.00
Bath & North East Somerset Council,80028005,LM6,Nursing Care,P03,Wellbeing,CULVERHAY NURSING HOME,10/10/2011,1409.00
Bath & North East Somerset Council,80028153,LL8,Individualised Budget,P03,Wellbeing,REDACTED,10/10/2011,1415.92
Bath & North East Somerset Council,80028153,LL8,Individualised Budget,P03,Wellbeing,REDACTED,10/10/2011,1415.92
Bath & North East Somerset Council,80028180,LL8,Individualised Budget,P03,Wellbeing,REDACTED,10/10/2011,1472.72
Bath & North East Somerset Council,80028180,LL8,Individualised Budget,P03,Wellbeing,REDACTED,10/10/2011,1472.72
Bath & North East Somerset Council,80027983,LM6,Nursing Care,P03,Wellbeing,GLENSIDE MANOR HEALTHCARE SERVICES LTD,10/10/2011,1511.26
Bath & North East Somerset Council,80027983,LM6,Nursing Care,P03,Wellbeing,GLENSIDE MANOR HEALTHCARE SERVICES LTD,10/10/2011,1511.26
Bath & North East Somerset Council,80027984,LM6,Nursing Care,P03,Wellbeing,GLENSIDE MANOR HEALTHCARE SERVICES LTD,10/10/2011,1528.55
Bath & North East Somerset Council,80027984,LM6,Nursing Care,P03,Wellbeing,GLENSIDE MANOR HEALTHCARE SERVICES LTD,10/10/2011,1528.55
Bath & North East Somerset Council,80027980,LM6,Nursing Care,P03,Wellbeing,COMMUNITY OF ST ANTONY & ST ELIAS & REV FR BGPR &,10/10/2011,1586.06
Bath & North East Somerset Council,80027980,LM6,Nursing Care,P03,Wellbeing,COMMUNITY OF ST ANTONY & ST ELIAS & REV FR BGPR &,10/10/2011,1586.06
Bath & North East Somerset Council,80027980,LM6,Nursing Care,P03,Wellbeing,COMMUNITY OF ST ANTONY & ST ELIAS & REV FR BGPR &,10/10/2011,1586.66
Bath & North East Somerset Council,80027980,LM6,Nursing Care,P03,Wellbeing,COMMUNITY OF ST ANTONY & ST ELIAS & REV FR BGPR &,10/10/2011,1586.66
Bath & North East Somerset Council,80028126,LL8,Individualised Budget,P03,Wellbeing,REDACTED,10/10/2011,1679.63
Bath & North East Somerset Council,80028126,LL8,Individualised Budget,P03,Wellbeing,REDACTED,10/10/2011,1679.63
Bath & North East Somerset Council,80028144,LL8,Individualised Budget,P03,Wellbeing,REDACTED,10/10/2011,1893.13
Bath & North East Somerset Council,80028144,LL8,Individualised Budget,P03,Wellbeing,REDACTED,10/10/2011,1893.13
Bath & North East Somerset Council,80027973,LM6,Nursing Care,P03,Wellbeing,REDACTED,10/10/2011,1947.52
Bath & North East Somerset Council,80027973,LM6,Nursing Care,P03,Wellbeing,REDACTED,10/10/2011,1947.52
Bath & North East Somerset Council,80028074,LL3,Supported Living,P03,Wellbeing,PRESTIGE NURSING HEALTHCARE,10/10/2011,2464.30
Bath & North East Somerset Council,80027997,LM6,Nursing Care,P03,Wellbeing,TRU REHABILITATION UNIT LTD,10/10/2011,2870.00
Bath & North East Somerset Council,80027997,LM6,Nursing Care,P03,Wellbeing,TRU REHABILITATION UNIT LTD,10/10/2011,2870.00
Bath & North East Somerset Council,80023245,LM8,Home Care,P03,Wellbeing,ROBERT SAGE LTD T/A PRESTIGE NURSING PAYROLL,11/10/2011,12.00
Bath & North East Somerset Council,80023256,LM8,Home Care,P03,Wellbeing,ROBERT SAGE LTD T/A PRESTIGE NURSING PAYROLL,11/10/2011,25.00
Bath & North East Somerset Council,80023244,LM8,Home Care,P03,Wellbeing,ROBERT SAGE LTD T/A PRESTIGE NURSING PAYROLL,11/10/2011,35.00
Bath & North East Somerset Council,80023244,LM8,Home Care,P03,Wellbeing,ROBERT SAGE LTD T/A PRESTIGE NURSING PAYROLL,11/10/2011,488.76
Bath & North East Somerset Council,80023243,LM8,Home Care,P03,Wellbeing,CANDLELIGHT HOMECARE SERVICES LTD,11/10/2011,521.00
Bath & North East Somerset Council,80028301,LM6,Nursing Care,P03,Wellbeing,SUNNYMEDE LTD,11/10/2011,536.00
Bath & North East Somerset Council,80028301,LM6,Nursing Care,P03,Wellbeing,SUNNYMEDE LTD,11/10/2011,536.00
Bath & North East Somerset Council,80028301,LM6,Nursing Care,P03,Wellbeing,SUNNYMEDE LTD,11/10/2011,536.00
Bath & North East Somerset Council,80028301,LM6,Nursing Care,P03,Wellbeing,SUNNYMEDE LTD,11/10/2011,536.00
Bath & North East Somerset Council,80028301,LM6,Nursing Care,P03,Wellbeing,SUNNYMEDE LTD,11/10/2011,536.00
Bath & North East Somerset Council,80028301,LM6,Nursing Care,P03,Wellbeing,SUNNYMEDE LTD,11/10/2011,536.00
Bath & North East Somerset Council,80028301,LM6,Nursing Care,P03,Wellbeing,SUNNYMEDE LTD,11/10/2011,536.00
Bath & North East Somerset Council,80028301,LM6,Nursing Care,P03,Wellbeing,SUNNYMEDE LTD,11/10/2011,536.00
Bath & North East Somerset Council,80028301,LM6,Nursing Care,P03,Wellbeing,SUNNYMEDE LTD,11/10/2011,536.00
Bath & North East Somerset Council,80028301,LM6,Nursing Care,P03,Wellbeing,SUNNYMEDE LTD,11/10/2011,536.00
Bath & North East Somerset Council,80028301,LM6,Nursing Care,P03,Wellbeing,SUNNYMEDE LTD,11/10/2011,536.00
Bath & North East Somerset Council,80028301,LM6,Nursing Care,P03,Wellbeing,SUNNYMEDE LTD,11/10/2011,536.00
Bath & North East Somerset Council,80028301,LM6,Nursing Care,P03,Wellbeing,SUNNYMEDE LTD,11/10/2011,536.00
Bath & North East Somerset Council,80028301,LM6,Nursing Care,P03,Wellbeing,SUNNYMEDE LTD,11/10/2011,536.00
Bath & North East Somerset Council,80028301,LM6,Nursing Care,P03,Wellbeing,SUNNYMEDE LTD,11/10/2011,536.00
Bath & North East Somerset Council,80028301,LM6,Nursing Care,P03,Wellbeing,SUNNYMEDE LTD,11/10/2011,536.00
Bath & North East Somerset Council,80028301,LM6,Nursing Care,P03,Wellbeing,SUNNYMEDE LTD,11/10/2011,536.00
Bath & North East Somerset Council,80028301,LM6,Nursing Care,P03,Wellbeing,SUNNYMEDE LTD,11/10/2011,536.00
Bath & North East Somerset Council,80028301,LM6,Nursing Care,P03,Wellbeing,SUNNYMEDE LTD,11/10/2011,536.00
Bath & North East Somerset Council,80028301,LM6,Nursing Care,P03,Wellbeing,SUNNYMEDE LTD,11/10/2011,536.00
Bath & North East Somerset Council,80028301,LM6,Nursing Care,P03,Wellbeing,SUNNYMEDE LTD,11/10/2011,536.00
Bath & North East Somerset Council,80028301,LM6,Nursing Care,P03,Wellbeing,SUNNYMEDE LTD,11/10/2011,536.00
Bath & North East Somerset Council,80028301,LM6,Nursing Care,P03,Wellbeing,SUNNYMEDE LTD,11/10/2011,536.00
Bath & North East Somerset Council,80028301,LM6,Nursing Care,P03,Wellbeing,SUNNYMEDE LTD,11/10/2011,536.00
Bath & North East Somerset Council,80028301,LM6,Nursing Care,P03,Wellbeing,SUNNYMEDE LTD,11/10/2011,536.00
Bath & North East Somerset Council,80028301,LM6,Nursing Care,P03,Wellbeing,SUNNYMEDE LTD,11/10/2011,536.00
Bath & North East Somerset Council,80028301,LM6,Nursing Care,P03,Wellbeing,SUNNYMEDE LTD,11/10/2011,536.00
Bath & North East Somerset Council,10628518,HA4,Responsive Maintenance PCB,P07,Community Resources,PJL LABORATORIES LTD,12/10/2011,110.00
Bath & North East Somerset Council,80028301,LM6,Nursing Care,P03,Wellbeing,SUNNYMEDE LTD,11/10/2011,536.00
Bath & North East Somerset Council,80028301,LM6,Nursing Care,P03,Wellbeing,SUNNYMEDE LTD,11/10/2011,536.00
Bath & North East Somerset Council,80028301,LM6,Nursing Care,P03,Wellbeing,SUNNYMEDE LTD,11/10/2011,536.00
Bath & North East Somerset Council,80028301,LM6,Nursing Care,P03,Wellbeing,SUNNYMEDE LTD,11/10/2011,536.00
Bath & North East Somerset Council,80028301,LM6,Nursing Care,P03,Wellbeing,SUNNYMEDE LTD,11/10/2011,536.00
Bath & North East Somerset Council,80028301,LM6,Nursing Care,P03,Wellbeing,SUNNYMEDE LTD,11/10/2011,536.00
Bath & North East Somerset Council,80028301,LM6,Nursing Care,P03,Wellbeing,SUNNYMEDE LTD,11/10/2011,536.00
Bath & North East Somerset Council,80028301,LM6,Nursing Care,P03,Wellbeing,SUNNYMEDE LTD,11/10/2011,536.00
Bath & North East Somerset Council,80028301,LM6,Nursing Care,P03,Wellbeing,SUNNYMEDE LTD,11/10/2011,536.00
Bath & North East Somerset Council,80028301,LM6,Nursing Care,P03,Wellbeing,SUNNYMEDE LTD,11/10/2011,536.00
Bath & North East Somerset Council,80028301,LM6,Nursing Care,P03,Wellbeing,SUNNYMEDE LTD,11/10/2011,536.00
Bath & North East Somerset Council,80028301,LM6,Nursing Care,P03,Wellbeing,SUNNYMEDE LTD,11/10/2011,536.00
Bath & North East Somerset Council,80028301,LM6,Nursing Care,P03,Wellbeing,SUNNYMEDE LTD,11/10/2011,536.00
Bath & North East Somerset Council,80028301,LM6,Nursing Care,P03,Wellbeing,SUNNYMEDE LTD,11/10/2011,536.00
Bath & North East Somerset Council,80028301,LM6,Nursing Care,P03,Wellbeing,SUNNYMEDE LTD,11/10/2011,536.00
Bath & North East Somerset Council,80028301,LM6,Nursing Care,P03,Wellbeing,SUNNYMEDE LTD,11/10/2011,536.00
Bath & North East Somerset Council,80028301,LM6,Nursing Care,P03,Wellbeing,SUNNYMEDE LTD,11/10/2011,536.00
Bath & North East Somerset Council,80028301,LM6,Nursing Care,P03,Wellbeing,SUNNYMEDE LTD,11/10/2011,536.00
Bath & North East Somerset Council,80028301,LM6,Nursing Care,P03,Wellbeing,SUNNYMEDE LTD,11/10/2011,536.00
Bath & North East Somerset Council,80028301,LM6,Nursing Care,P03,Wellbeing,SUNNYMEDE LTD,11/10/2011,536.00
Bath & North East Somerset Council,80028301,LM6,Nursing Care,P03,Wellbeing,SUNNYMEDE LTD,11/10/2011,536.00
Bath & North East Somerset Council,80023249,LM8,Home Care,P03,Wellbeing,CANDLELIGHT HOMECARE SERVICES LTD,11/10/2011,544.00
Bath & North East Somerset Council,80023243,LM8,Home Care,P03,Wellbeing,CANDLELIGHT HOMECARE SERVICES LTD,11/10/2011,623.00
Bath & North East Somerset Council,80023243,LM8,Home Care,P03,Wellbeing,CANDLELIGHT HOMECARE SERVICES LTD,11/10/2011,623.00
Bath & North East Somerset Council,80023243,LM8,Home Care,P03,Wellbeing,CANDLELIGHT HOMECARE SERVICES LTD,11/10/2011,623.00
Bath & North East Somerset Council,80023243,LM8,Home Care,P03,Wellbeing,CANDLELIGHT HOMECARE SERVICES LTD,11/10/2011,623.00
Bath & North East Somerset Council,80023249,LM8,Home Care,P03,Wellbeing,CANDLELIGHT HOMECARE SERVICES LTD,11/10/2011,644.00
Bath & North East Somerset Council,80023249,LM8,Home Care,P03,Wellbeing,CANDLELIGHT HOMECARE SERVICES LTD,11/10/2011,644.00
Bath & North East Somerset Council,80023249,LM8,Home Care,P03,Wellbeing,CANDLELIGHT HOMECARE SERVICES LTD,11/10/2011,644.00
Bath & North East Somerset Council,80023249,LM8,Home Care,P03,Wellbeing,CANDLELIGHT HOMECARE SERVICES LTD,11/10/2011,644.00
Bath & North East Somerset Council,80023256,LM8,Home Care,P03,Wellbeing,ROBERT SAGE LTD T/A PRESTIGE NURSING PAYROLL,11/10/2011,871.56
Bath & North East Somerset Council,80023245,LM8,Home Care,P03,Wellbeing,ROBERT SAGE LTD T/A PRESTIGE NURSING PAYROLL,11/10/2011,1560.60
Bath & North East Somerset Council,10631254,LL3,Supported Living,P03,Wellbeing,THE WEST OF ENGLAND SCHOOL,11/10/2011,21960.00
Bath & North East Somerset Council,80028672,EA1,Training,P03,Wellbeing,REDACTED,12/10/2011,13.57
Bath & North East Somerset Council,80028606,EA1,Training,P03,Wellbeing,REDACTED,12/10/2011,14.37
Bath & North East Somerset Council,80028396,YF2,Fees & Charges,P03,Wellbeing,CEDAR PARK NURSING HOME,12/10/2011,21.72
Bath & North East Somerset Council,80028631,LM2,Foster Carer Allowances,P02,"Early Years, Children & Youth",REDACTED,12/10/2011,27.10
Bath & North East Somerset Council,80028474,YF2,Fees & Charges,P03,Wellbeing,BATH MIND,12/10/2011,40.66
Bath & North East Somerset Council,80028677,LM2,Foster Carer Allowances,P02,"Early Years, Children & Youth",REDACTED,12/10/2011,42.86
Bath & North East Somerset Council,80028368,YF2,Fees & Charges,P03,Wellbeing,FSHC NEWCO 2 LTD: REDACTED,12/10/2011,44.70
Bath & North East Somerset Council,80028350,YF2,Fees & Charges,P03,Wellbeing,T C CAREHOME LTD,12/10/2011,44.90
Bath & North East Somerset Council,80028350,YF2,Fees & Charges,P03,Wellbeing,T C CAREHOME LTD,12/10/2011,44.90
Bath & North East Somerset Council,80028350,YF2,Fees & Charges,P03,Wellbeing,T C CAREHOME LTD,12/10/2011,44.90
Bath & North East Somerset Council,80028350,YF2,Fees & Charges,P03,Wellbeing,T C CAREHOME LTD,12/10/2011,44.90
Bath & North East Somerset Council,80028350,YF2,Fees & Charges,P03,Wellbeing,T C CAREHOME LTD,12/10/2011,44.90
Bath & North East Somerset Council,80028350,YF2,Fees & Charges,P03,Wellbeing,T C CAREHOME LTD,12/10/2011,44.90
Bath & North East Somerset Council,80028350,YF2,Fees & Charges,P03,Wellbeing,T C CAREHOME LTD,12/10/2011,44.90
Bath & North East Somerset Council,80028350,YF2,Fees & Charges,P03,Wellbeing,T C CAREHOME LTD,12/10/2011,44.90
Bath & North East Somerset Council,80028350,YF2,Fees & Charges,P03,Wellbeing,T C CAREHOME LTD,12/10/2011,44.90
Bath & North East Somerset Council,80028350,YF2,Fees & Charges,P03,Wellbeing,T C CAREHOME LTD,12/10/2011,44.90
Bath & North East Somerset Council,80028350,YF2,Fees & Charges,P03,Wellbeing,T C CAREHOME LTD,12/10/2011,44.90
Bath & North East Somerset Council,80028350,YF2,Fees & Charges,P03,Wellbeing,T C CAREHOME LTD,12/10/2011,44.90
Bath & North East Somerset Council,80028350,YF2,Fees & Charges,P03,Wellbeing,T C CAREHOME LTD,12/10/2011,44.90
Bath & North East Somerset Council,80028350,YF2,Fees & Charges,P03,Wellbeing,T C CAREHOME LTD,12/10/2011,44.90
Bath & North East Somerset Council,80028350,YF2,Fees & Charges,P03,Wellbeing,T C CAREHOME LTD,12/10/2011,44.90
Bath & North East Somerset Council,80028350,YF2,Fees & Charges,P03,Wellbeing,T C CAREHOME LTD,12/10/2011,44.90
Bath & North East Somerset Council,80028350,YF2,Fees & Charges,P03,Wellbeing,T C CAREHOME LTD,12/10/2011,44.90
Bath & North East Somerset Council,80028350,YF2,Fees & Charges,P03,Wellbeing,T C CAREHOME LTD,12/10/2011,44.90
Bath & North East Somerset Council,80028350,YF2,Fees & Charges,P03,Wellbeing,T C CAREHOME LTD,12/10/2011,44.90
Bath & North East Somerset Council,80028354,YF2,Fees & Charges,P03,Wellbeing,BARKER CHEMICALS LTD T/A ST TERESA'S NH,12/10/2011,45.80
Bath & North East Somerset Council,80028434,YF2,Fees & Charges,P03,Wellbeing,WARMLEY HOUSE,12/10/2011,46.59
Bath & North East Somerset Council,80028319,YF2,Fees & Charges,P03,Wellbeing,BRIDGE CARE LTD,12/10/2011,46.84
Bath & North East Somerset Council,80028348,YF2,Fees & Charges,P03,Wellbeing,ST BATHENS,12/10/2011,47.27
Bath & North East Somerset Council,80028352,YF2,Fees & Charges,P03,Wellbeing,WESTCROFT NURSING HOME,12/10/2011,47.27
Bath & North East Somerset Council,80028368,YF2,Fees & Charges,P03,Wellbeing,FSHC NEWCO 2 LTD: REDACTED,12/10/2011,47.27
Bath & North East Somerset Council,80028350,YF2,Fees & Charges,P03,Wellbeing,T C CAREHOME LTD,12/10/2011,47.55
Bath & North East Somerset Council,80028324,YF2,Fees & Charges,P03,Wellbeing,SALVATION ARMY,12/10/2011,47.77
Bath & North East Somerset Council,80028396,YF2,Fees & Charges,P03,Wellbeing,CEDAR PARK NURSING HOME,12/10/2011,50.16
Bath & North East Somerset Council,80028442,YF2,Fees & Charges,P03,Wellbeing,LARKHALL SPRINGS NURSING HOME,12/10/2011,53.31
Bath & North East Somerset Council,80028501,YF2,Fees & Charges,P03,Wellbeing,EUROPEAN CARE SW LTD - REDACTED,12/10/2011,56.46
Bath & North East Somerset Council,80028596,LM2,Foster Carer Allowances,P02,"Early Years, Children & Youth",REDACTED,12/10/2011,57.96
Bath & North East Somerset Council,80028324,YF2,Fees & Charges,P03,Wellbeing,SALVATION ARMY,12/10/2011,58.41
Bath & North East Somerset Council,80028396,YF2,Fees & Charges,P03,Wellbeing,CEDAR PARK NURSING HOME,12/10/2011,58.54
Bath & North East Somerset Council,80028442,YF2,Fees & Charges,P03,Wellbeing,LARKHALL SPRINGS NURSING HOME,12/10/2011,59.38
Bath & North East Somerset Council,80028479,YF2,Fees & Charges,P03,Wellbeing,CARE FIRST CARE HOMES LTD,12/10/2011,63.22
Bath & North East Somerset Council,80028433,YF2,Fees & Charges,P03,Wellbeing,WHITEHAVEN RESIDENTIAL HOME,12/10/2011,63.38
Bath & North East Somerset Council,80028342,YF2,Fees & Charges,P03,Wellbeing,QUALITY CARE HOMES LTD,12/10/2011,64.58
Bath & North East Somerset Council,80028342,YF2,Fees & Charges,P03,Wellbeing,QUALITY CARE HOMES LTD,12/10/2011,64.58
Bath & North East Somerset Council,80028342,YF2,Fees & Charges,P03,Wellbeing,QUALITY CARE HOMES LTD,12/10/2011,64.58
Bath & North East Somerset Council,80028342,YF2,Fees & Charges,P03,Wellbeing,QUALITY CARE HOMES LTD,12/10/2011,64.58
Bath & North East Somerset Council,80028342,YF2,Fees & Charges,P03,Wellbeing,QUALITY CARE HOMES LTD,12/10/2011,64.58
Bath & North East Somerset Council,80028342,YF2,Fees & Charges,P03,Wellbeing,QUALITY CARE HOMES LTD,12/10/2011,64.58
Bath & North East Somerset Council,80028342,YF2,Fees & Charges,P03,Wellbeing,QUALITY CARE HOMES LTD,12/10/2011,64.58
Bath & North East Somerset Council,80028342,YF2,Fees & Charges,P03,Wellbeing,QUALITY CARE HOMES LTD,12/10/2011,64.58
Bath & North East Somerset Council,80028342,YF2,Fees & Charges,P03,Wellbeing,QUALITY CARE HOMES LTD,12/10/2011,64.58
Bath & North East Somerset Council,80028342,YF2,Fees & Charges,P03,Wellbeing,QUALITY CARE HOMES LTD,12/10/2011,64.58
Bath & North East Somerset Council,80028396,YF2,Fees & Charges,P03,Wellbeing,CEDAR PARK NURSING HOME,12/10/2011,65.57
Bath & North East Somerset Council,80028437,YF2,Fees & Charges,P03,Wellbeing,BARCHESTER HEALTHCARE HOMES LTD,12/10/2011,69.10
Bath & North East Somerset Council,80028437,YF2,Fees & Charges,P03,Wellbeing,BARCHESTER HEALTHCARE HOMES LTD,12/10/2011,69.10
Bath & North East Somerset Council,80028437,YF2,Fees & Charges,P03,Wellbeing,BARCHESTER HEALTHCARE HOMES LTD,12/10/2011,69.10
Bath & North East Somerset Council,80028437,YF2,Fees & Charges,P03,Wellbeing,BARCHESTER HEALTHCARE HOMES LTD,12/10/2011,69.10
Bath & North East Somerset Council,80028308,YF2,Fees & Charges,P03,Wellbeing,MANOR HOUSE,12/10/2011,71.15
Bath & North East Somerset Council,80028308,YF2,Fees & Charges,P03,Wellbeing,MANOR HOUSE,12/10/2011,71.15
Bath & North East Somerset Council,80028308,YF2,Fees & Charges,P03,Wellbeing,MANOR HOUSE,12/10/2011,71.15
Bath & North East Somerset Council,80028308,YF2,Fees & Charges,P03,Wellbeing,MANOR HOUSE,12/10/2011,71.15
Bath & North East Somerset Council,80028318,YF2,Fees & Charges,P03,Wellbeing,THELMA TURNER HOMES LIMITED,12/10/2011,71.15
Bath & North East Somerset Council,80028318,YF2,Fees & Charges,P03,Wellbeing,THELMA TURNER HOMES LIMITED,12/10/2011,71.15
Bath & North East Somerset Council,80028318,YF2,Fees & Charges,P03,Wellbeing,THELMA TURNER HOMES LIMITED,12/10/2011,71.15
Bath & North East Somerset Council,80028318,YF2,Fees & Charges,P03,Wellbeing,THELMA TURNER HOMES LIMITED,12/10/2011,71.15
Bath & North East Somerset Council,80028318,YF2,Fees & Charges,P03,Wellbeing,THELMA TURNER HOMES LIMITED,12/10/2011,71.15
Bath & North East Somerset Council,80028318,YF2,Fees & Charges,P03,Wellbeing,THELMA TURNER HOMES LIMITED,12/10/2011,71.15
Bath & North East Somerset Council,80028318,YF2,Fees & Charges,P03,Wellbeing,THELMA TURNER HOMES LIMITED,12/10/2011,71.15
Bath & North East Somerset Council,80028318,YF2,Fees & Charges,P03,Wellbeing,THELMA TURNER HOMES LIMITED,12/10/2011,71.15
Bath & North East Somerset Council,80028322,YF2,Fees & Charges,P03,Wellbeing,THELMA TURNER HOMES LIMITED,12/10/2011,71.15
Bath & North East Somerset Council,80028322,YF2,Fees & Charges,P03,Wellbeing,THELMA TURNER HOMES LIMITED,12/10/2011,71.15
Bath & North East Somerset Council,80028322,YF2,Fees & Charges,P03,Wellbeing,THELMA TURNER HOMES LIMITED,12/10/2011,71.15
Bath & North East Somerset Council,80028322,YF2,Fees & Charges,P03,Wellbeing,THELMA TURNER HOMES LIMITED,12/10/2011,71.15
Bath & North East Somerset Council,80028325,YF2,Fees & Charges,P03,Wellbeing,LEONARD CHESHIRE FOUNDATION,12/10/2011,71.15
Bath & North East Somerset Council,80028325,YF2,Fees & Charges,P03,Wellbeing,LEONARD CHESHIRE FOUNDATION,12/10/2011,71.15
Bath & North East Somerset Council,80028325,YF2,Fees & Charges,P03,Wellbeing,LEONARD CHESHIRE FOUNDATION,12/10/2011,71.15
Bath & North East Somerset Council,80028325,YF2,Fees & Charges,P03,Wellbeing,LEONARD CHESHIRE FOUNDATION,12/10/2011,71.15
Bath & North East Somerset Council,80028329,YF2,Fees & Charges,P03,Wellbeing,THE DISABILITIES TRUST,12/10/2011,71.15
Bath & North East Somerset Council,80028329,YF2,Fees & Charges,P03,Wellbeing,THE DISABILITIES TRUST,12/10/2011,71.15
Bath & North East Somerset Council,80028329,YF2,Fees & Charges,P03,Wellbeing,THE DISABILITIES TRUST,12/10/2011,71.15
Bath & North East Somerset Council,80028329,YF2,Fees & Charges,P03,Wellbeing,THE DISABILITIES TRUST,12/10/2011,71.15
Bath & North East Somerset Council,80028333,YF2,Fees & Charges,P03,Wellbeing,DEVON SHELTERED HOMES TRUST - REDACTED,12/10/2011,71.15
Bath & North East Somerset Council,80028333,YF2,Fees & Charges,P03,Wellbeing,DEVON SHELTERED HOMES TRUST - REDACTED,12/10/2011,71.15
Bath & North East Somerset Council,80028333,YF2,Fees & Charges,P03,Wellbeing,DEVON SHELTERED HOMES TRUST - REDACTED,12/10/2011,71.15
Bath & North East Somerset Council,80028333,YF2,Fees & Charges,P03,Wellbeing,DEVON SHELTERED HOMES TRUST - REDACTED,12/10/2011,71.15
Bath & North East Somerset Council,80028407,YF2,Fees & Charges,P03,Wellbeing,PARK STREET HOME,12/10/2011,71.15
Bath & North East Somerset Council,80028407,YF2,Fees & Charges,P03,Wellbeing,PARK STREET HOME,12/10/2011,71.15
Bath & North East Somerset Council,80028407,YF2,Fees & Charges,P03,Wellbeing,PARK STREET HOME,12/10/2011,71.15
Bath & North East Somerset Council,80028407,YF2,Fees & Charges,P03,Wellbeing,PARK STREET HOME,12/10/2011,71.15
Bath & North East Somerset Council,80028419,YF2,Fees & Charges,P03,Wellbeing,REDACTED,12/10/2011,71.15
Bath & North East Somerset Council,80028419,YF2,Fees & Charges,P03,Wellbeing,REDACTED,12/10/2011,71.15
Bath & North East Somerset Council,80028419,YF2,Fees & Charges,P03,Wellbeing,REDACTED,12/10/2011,71.15
Bath & North East Somerset Council,80028419,YF2,Fees & Charges,P03,Wellbeing,REDACTED,12/10/2011,71.15
Bath & North East Somerset Council,80028443,YF2,Fees & Charges,P03,Wellbeing,ROBERT OWEN FOUNDATION,12/10/2011,71.15
Bath & North East Somerset Council,80028443,YF2,Fees & Charges,P03,Wellbeing,ROBERT OWEN FOUNDATION,12/10/2011,71.15
Bath & North East Somerset Council,80028443,YF2,Fees & Charges,P03,Wellbeing,ROBERT OWEN FOUNDATION,12/10/2011,71.15
Bath & North East Somerset Council,80028443,YF2,Fees & Charges,P03,Wellbeing,ROBERT OWEN FOUNDATION,12/10/2011,71.15
Bath & North East Somerset Council,80028448,YF2,Fees & Charges,P03,Wellbeing,6 THE AVENUE -KEYNSHAM MENCAP,12/10/2011,71.15
Bath & North East Somerset Council,80028448,YF2,Fees & Charges,P03,Wellbeing,6 THE AVENUE -KEYNSHAM MENCAP,12/10/2011,71.15
Bath & North East Somerset Council,80028448,YF2,Fees & Charges,P03,Wellbeing,6 THE AVENUE -KEYNSHAM MENCAP,12/10/2011,71.15
Bath & North East Somerset Council,80028448,YF2,Fees & Charges,P03,Wellbeing,6 THE AVENUE -KEYNSHAM MENCAP,12/10/2011,71.15
Bath & North East Somerset Council,80028448,YF2,Fees & Charges,P03,Wellbeing,6 THE AVENUE -KEYNSHAM MENCAP,12/10/2011,71.15
Bath & North East Somerset Council,80028448,YF2,Fees & Charges,P03,Wellbeing,6 THE AVENUE -KEYNSHAM MENCAP,12/10/2011,71.15
Bath & North East Somerset Council,80028448,YF2,Fees & Charges,P03,Wellbeing,6 THE AVENUE -KEYNSHAM MENCAP,12/10/2011,71.15
Bath & North East Somerset Council,80028448,YF2,Fees & Charges,P03,Wellbeing,6 THE AVENUE -KEYNSHAM MENCAP,12/10/2011,71.15
Bath & North East Somerset Council,80028450,YF2,Fees & Charges,P03,Wellbeing,THE BRANDON TRUST,12/10/2011,71.15
Bath & North East Somerset Council,80028450,YF2,Fees & Charges,P03,Wellbeing,THE BRANDON TRUST,12/10/2011,71.15
Bath & North East Somerset Council,80028450,YF2,Fees & Charges,P03,Wellbeing,THE BRANDON TRUST,12/10/2011,71.15
Bath & North East Somerset Council,80028450,YF2,Fees & Charges,P03,Wellbeing,THE BRANDON TRUST,12/10/2011,71.15
Bath & North East Somerset Council,80028455,YF2,Fees & Charges,P03,Wellbeing,REDACTED,12/10/2011,71.15
Bath & North East Somerset Council,80028455,YF2,Fees & Charges,P03,Wellbeing,REDACTED,12/10/2011,71.15
Bath & North East Somerset Council,80028455,YF2,Fees & Charges,P03,Wellbeing,REDACTED,12/10/2011,71.15
Bath & North East Somerset Council,80028455,YF2,Fees & Charges,P03,Wellbeing,REDACTED,12/10/2011,71.15
Bath & North East Somerset Council,80028474,YF2,Fees & Charges,P03,Wellbeing,BATH MIND,12/10/2011,71.15
Bath & North East Somerset Council,80028474,YF2,Fees & Charges,P03,Wellbeing,BATH MIND,12/10/2011,71.15
Bath & North East Somerset Council,80028474,YF2,Fees & Charges,P03,Wellbeing,BATH MIND,12/10/2011,71.15
Bath & North East Somerset Council,80028474,YF2,Fees & Charges,P03,Wellbeing,BATH MIND,12/10/2011,71.15
Bath & North East Somerset Council,80028474,YF2,Fees & Charges,P03,Wellbeing,BATH MIND,12/10/2011,71.15
Bath & North East Somerset Council,80028474,YF2,Fees & Charges,P03,Wellbeing,BATH MIND,12/10/2011,71.15
Bath & North East Somerset Council,80028474,YF2,Fees & Charges,P03,Wellbeing,BATH MIND,12/10/2011,71.15
Bath & North East Somerset Council,80028474,YF2,Fees & Charges,P03,Wellbeing,BATH MIND,12/10/2011,71.15
Bath & North East Somerset Council,80028474,YF2,Fees & Charges,P03,Wellbeing,BATH MIND,12/10/2011,71.15
Bath & North East Somerset Council,80028474,YF2,Fees & Charges,P03,Wellbeing,BATH MIND,12/10/2011,71.15
Bath & North East Somerset Council,80028474,YF2,Fees & Charges,P03,Wellbeing,BATH MIND,12/10/2011,71.15
Bath & North East Somerset Council,80028474,YF2,Fees & Charges,P03,Wellbeing,BATH MIND,12/10/2011,71.15
Bath & North East Somerset Council,80028474,YF2,Fees & Charges,P03,Wellbeing,BATH MIND,12/10/2011,71.15
Bath & North East Somerset Council,80028474,YF2,Fees & Charges,P03,Wellbeing,BATH MIND,12/10/2011,71.15
Bath & North East Somerset Council,80028474,YF2,Fees & Charges,P03,Wellbeing,BATH MIND,12/10/2011,71.15
Bath & North East Somerset Council,80028474,YF2,Fees & Charges,P03,Wellbeing,BATH MIND,12/10/2011,71.15
Bath & North East Somerset Council,80028474,YF2,Fees & Charges,P03,Wellbeing,BATH MIND,12/10/2011,71.15
Bath & North East Somerset Council,80028474,YF2,Fees & Charges,P03,Wellbeing,BATH MIND,12/10/2011,71.15
Bath & North East Somerset Council,80028474,YF2,Fees & Charges,P03,Wellbeing,BATH MIND,12/10/2011,71.15
Bath & North East Somerset Council,80028474,YF2,Fees & Charges,P03,Wellbeing,BATH MIND,12/10/2011,71.15
Bath & North East Somerset Council,80028474,YF2,Fees & Charges,P03,Wellbeing,BATH MIND,12/10/2011,71.15
Bath & North East Somerset Council,80028484,YF2,Fees & Charges,P03,Wellbeing,DIMENSIONS (UK) LTD,12/10/2011,71.15
Bath & North East Somerset Council,80028484,YF2,Fees & Charges,P03,Wellbeing,DIMENSIONS (UK) LTD,12/10/2011,71.15
Bath & North East Somerset Council,80028484,YF2,Fees & Charges,P03,Wellbeing,DIMENSIONS (UK) LTD,12/10/2011,71.15
Bath & North East Somerset Council,80028484,YF2,Fees & Charges,P03,Wellbeing,DIMENSIONS (UK) LTD,12/10/2011,71.15
Bath & North East Somerset Council,80028487,YF2,Fees & Charges,P03,Wellbeing,DIMENSIONS (UK) LTD,12/10/2011,71.15
Bath & North East Somerset Council,80028487,YF2,Fees & Charges,P03,Wellbeing,DIMENSIONS (UK) LTD,12/10/2011,71.15
Bath & North East Somerset Council,80028487,YF2,Fees & Charges,P03,Wellbeing,DIMENSIONS (UK) LTD,12/10/2011,71.15
Bath & North East Somerset Council,80028487,YF2,Fees & Charges,P03,Wellbeing,DIMENSIONS (UK) LTD,12/10/2011,71.15
Bath & North East Somerset Council,80028496,YF2,Fees & Charges,P03,Wellbeing,REDACTED,12/10/2011,71.15
Bath & North East Somerset Council,80028496,YF2,Fees & Charges,P03,Wellbeing,REDACTED,12/10/2011,71.15
Bath & North East Somerset Council,80028496,YF2,Fees & Charges,P03,Wellbeing,REDACTED,12/10/2011,71.15
Bath & North East Somerset Council,80028496,YF2,Fees & Charges,P03,Wellbeing,REDACTED,12/10/2011,71.15
Bath & North East Somerset Council,80028496,YF2,Fees & Charges,P03,Wellbeing,REDACTED,12/10/2011,71.15
Bath & North East Somerset Council,80028496,YF2,Fees & Charges,P03,Wellbeing,REDACTED,12/10/2011,71.15
Bath & North East Somerset Council,80028496,YF2,Fees & Charges,P03,Wellbeing,REDACTED,12/10/2011,71.15
Bath & North East Somerset Council,80028496,YF2,Fees & Charges,P03,Wellbeing,REDACTED,12/10/2011,71.15
Bath & North East Somerset Council,80028496,YF2,Fees & Charges,P03,Wellbeing,REDACTED,12/10/2011,71.15
Bath & North East Somerset Council,80028496,YF2,Fees & Charges,P03,Wellbeing,REDACTED,12/10/2011,71.15
Bath & North East Somerset Council,80028496,YF2,Fees & Charges,P03,Wellbeing,REDACTED,12/10/2011,71.15
Bath & North East Somerset Council,80028496,YF2,Fees & Charges,P03,Wellbeing,REDACTED,12/10/2011,71.15
Bath & North East Somerset Council,80028496,YF2,Fees & Charges,P03,Wellbeing,REDACTED,12/10/2011,71.15
Bath & North East Somerset Council,80028496,YF2,Fees & Charges,P03,Wellbeing,REDACTED,12/10/2011,71.15
Bath & North East Somerset Council,80028496,YF2,Fees & Charges,P03,Wellbeing,REDACTED,12/10/2011,71.15
Bath & North East Somerset Council,80028496,YF2,Fees & Charges,P03,Wellbeing,REDACTED,12/10/2011,71.15
Bath & North East Somerset Council,80028496,YF2,Fees & Charges,P03,Wellbeing,REDACTED,12/10/2011,71.15
Bath & North East Somerset Council,80028496,YF2,Fees & Charges,P03,Wellbeing,REDACTED,12/10/2011,71.15
Bath & North East Somerset Council,80028496,YF2,Fees & Charges,P03,Wellbeing,REDACTED,12/10/2011,71.15
Bath & North East Somerset Council,80028496,YF2,Fees & Charges,P03,Wellbeing,REDACTED,12/10/2011,71.15
Bath & North East Somerset Council,80028496,YF2,Fees & Charges,P03,Wellbeing,REDACTED,12/10/2011,71.15
Bath & North East Somerset Council,80028496,YF2,Fees & Charges,P03,Wellbeing,REDACTED,12/10/2011,71.15
Bath & North East Somerset Council,80028496,YF2,Fees & Charges,P03,Wellbeing,REDACTED,12/10/2011,71.15
Bath & North East Somerset Council,80028496,YF2,Fees & Charges,P03,Wellbeing,REDACTED,12/10/2011,71.15
Bath & North East Somerset Council,80028496,YF2,Fees & Charges,P03,Wellbeing,REDACTED,12/10/2011,71.15
Bath & North East Somerset Council,80028497,YF2,Fees & Charges,P03,Wellbeing,REDACTED,12/10/2011,71.15
Bath & North East Somerset Council,80028497,YF2,Fees & Charges,P03,Wellbeing,REDACTED,12/10/2011,71.15
Bath & North East Somerset Council,80028497,YF2,Fees & Charges,P03,Wellbeing,REDACTED,12/10/2011,71.15
Bath & North East Somerset Council,80028497,YF2,Fees & Charges,P03,Wellbeing,REDACTED,12/10/2011,71.15
Bath & North East Somerset Council,80028506,YF2,Fees & Charges,P03,Wellbeing,ORCHARD END LTD,12/10/2011,71.15
Bath & North East Somerset Council,80028506,YF2,Fees & Charges,P03,Wellbeing,ORCHARD END LTD,12/10/2011,71.15
Bath & North East Somerset Council,80028506,YF2,Fees & Charges,P03,Wellbeing,ORCHARD END LTD,12/10/2011,71.15
Bath & North East Somerset Council,80028506,YF2,Fees & Charges,P03,Wellbeing,ORCHARD END LTD,12/10/2011,71.15
Bath & North East Somerset Council,80028442,YF2,Fees & Charges,P03,Wellbeing,LARKHALL SPRINGS NURSING HOME,12/10/2011,73.17
Bath & North East Somerset Council,80028433,YF2,Fees & Charges,P03,Wellbeing,WHITEHAVEN RESIDENTIAL HOME,12/10/2011,76.46
Bath & North East Somerset Council,80028436,YF2,Fees & Charges,P03,Wellbeing,OAKFIELD,12/10/2011,80.30
Bath & North East Somerset Council,80028436,YF2,Fees & Charges,P03,Wellbeing,OAKFIELD,12/10/2011,81.96
Bath & North East Somerset Council,80028442,YF2,Fees & Charges,P03,Wellbeing,LARKHALL SPRINGS NURSING HOME,12/10/2011,82.08
Bath & North East Somerset Council,80028482,YF2,Fees & Charges,P03,Wellbeing,DIMENSIONS (UK) LTD,12/10/2011,84.10
Bath & North East Somerset Council,80028482,YF2,Fees & Charges,P03,Wellbeing,DIMENSIONS (UK) LTD,12/10/2011,84.10
Bath & North East Somerset Council,80028482,YF2,Fees & Charges,P03,Wellbeing,DIMENSIONS (UK) LTD,12/10/2011,84.10
Bath & North East Somerset Council,80028482,YF2,Fees & Charges,P03,Wellbeing,DIMENSIONS (UK) LTD,12/10/2011,84.10
Bath & North East Somerset Council,80028496,YF2,Fees & Charges,P03,Wellbeing,REDACTED,12/10/2011,84.10
Bath & North East Somerset Council,80028496,YF2,Fees & Charges,P03,Wellbeing,REDACTED,12/10/2011,84.10
Bath & North East Somerset Council,80028496,YF2,Fees & Charges,P03,Wellbeing,REDACTED,12/10/2011,84.10
Bath & North East Somerset Council,80028496,YF2,Fees & Charges,P03,Wellbeing,REDACTED,12/10/2011,84.10
Bath & North East Somerset Council,80028497,YF2,Fees & Charges,P03,Wellbeing,REDACTED,12/10/2011,84.10
Bath & North East Somerset Council,80028497,YF2,Fees & Charges,P03,Wellbeing,REDACTED,12/10/2011,84.10
Bath & North East Somerset Council,80028497,YF2,Fees & Charges,P03,Wellbeing,REDACTED,12/10/2011,84.10
Bath & North East Somerset Council,80028497,YF2,Fees & Charges,P03,Wellbeing,REDACTED,12/10/2011,84.10
Bath & North East Somerset Council,80028497,YF2,Fees & Charges,P03,Wellbeing,REDACTED,12/10/2011,84.10
Bath & North East Somerset Council,80028497,YF2,Fees & Charges,P03,Wellbeing,REDACTED,12/10/2011,84.10
Bath & North East Somerset Council,80028497,YF2,Fees & Charges,P03,Wellbeing,REDACTED,12/10/2011,84.10
Bath & North East Somerset Council,80028497,YF2,Fees & Charges,P03,Wellbeing,REDACTED,12/10/2011,84.10
Bath & North East Somerset Council,80028497,YF2,Fees & Charges,P03,Wellbeing,REDACTED,12/10/2011,84.10
Bath & North East Somerset Council,80028497,YF2,Fees & Charges,P03,Wellbeing,REDACTED,12/10/2011,84.10
Bath & North East Somerset Council,80028497,YF2,Fees & Charges,P03,Wellbeing,REDACTED,12/10/2011,84.10
Bath & North East Somerset Council,80028497,YF2,Fees & Charges,P03,Wellbeing,REDACTED,12/10/2011,84.10
Bath & North East Somerset Council,80028497,YF2,Fees & Charges,P03,Wellbeing,REDACTED,12/10/2011,84.10
Bath & North East Somerset Council,80028497,YF2,Fees & Charges,P03,Wellbeing,REDACTED,12/10/2011,84.10
Bath & North East Somerset Council,80028497,YF2,Fees & Charges,P03,Wellbeing,REDACTED,12/10/2011,84.10
Bath & North East Somerset Council,80028497,YF2,Fees & Charges,P03,Wellbeing,REDACTED,12/10/2011,84.10
Bath & North East Somerset Council,80028497,YF2,Fees & Charges,P03,Wellbeing,REDACTED,12/10/2011,84.10
Bath & North East Somerset Council,80028497,YF2,Fees & Charges,P03,Wellbeing,REDACTED,12/10/2011,84.10
Bath & North East Somerset Council,80028497,YF2,Fees & Charges,P03,Wellbeing,REDACTED,12/10/2011,84.10
Bath & North East Somerset Council,80028497,YF2,Fees & Charges,P03,Wellbeing,REDACTED,12/10/2011,84.10
Bath & North East Somerset Council,80028497,YF2,Fees & Charges,P03,Wellbeing,REDACTED,12/10/2011,84.10
Bath & North East Somerset Council,80028497,YF2,Fees & Charges,P03,Wellbeing,REDACTED,12/10/2011,84.10
Bath & North East Somerset Council,80028497,YF2,Fees & Charges,P03,Wellbeing,REDACTED,12/10/2011,84.10
Bath & North East Somerset Council,80028497,YF2,Fees & Charges,P03,Wellbeing,REDACTED,12/10/2011,84.10
Bath & North East Somerset Council,80028497,YF2,Fees & Charges,P03,Wellbeing,REDACTED,12/10/2011,84.10
Bath & North East Somerset Council,80028512,YF2,Fees & Charges,P03,Wellbeing,AUTISM SPECIALISED CARE HOMES LTD,12/10/2011,84.10
Bath & North East Somerset Council,80028512,YF2,Fees & Charges,P03,Wellbeing,AUTISM SPECIALISED CARE HOMES LTD,12/10/2011,84.10
Bath & North East Somerset Council,80028512,YF2,Fees & Charges,P03,Wellbeing,AUTISM SPECIALISED CARE HOMES LTD,12/10/2011,84.10
Bath & North East Somerset Council,80028512,YF2,Fees & Charges,P03,Wellbeing,AUTISM SPECIALISED CARE HOMES LTD,12/10/2011,84.10
Bath & North East Somerset Council,80028396,YF2,Fees & Charges,P03,Wellbeing,CEDAR PARK NURSING HOME,12/10/2011,87.98
Bath & North East Somerset Council,80028406,YF2,Fees & Charges,P03,Wellbeing,PHILLIPS G.A. T/A COLOUR-LIT VIEW,12/10/2011,88.20
Bath & North East Somerset Council,80028406,YF2,Fees & Charges,P03,Wellbeing,PHILLIPS G.A. T/A COLOUR-LIT VIEW,12/10/2011,88.20
Bath & North East Somerset Council,80028406,YF2,Fees & Charges,P03,Wellbeing,PHILLIPS G.A. T/A COLOUR-LIT VIEW,12/10/2011,88.20
Bath & North East Somerset Council,80028406,YF2,Fees & Charges,P03,Wellbeing,PHILLIPS G.A. T/A COLOUR-LIT VIEW,12/10/2011,88.20
Bath & North East Somerset Council,80028350,YF2,Fees & Charges,P03,Wellbeing,T C CAREHOME LTD,12/10/2011,88.51
Bath & North East Somerset Council,80028408,YF2,Fees & Charges,P03,Wellbeing,ASHBOURNE HOMES LTD RIVERSIDE CARE CENTRE,12/10/2011,91.30
Bath & North East Somerset Council,80028408,YF2,Fees & Charges,P03,Wellbeing,ASHBOURNE HOMES LTD RIVERSIDE CARE CENTRE,12/10/2011,91.30
Bath & North East Somerset Council,80028408,YF2,Fees & Charges,P03,Wellbeing,ASHBOURNE HOMES LTD RIVERSIDE CARE CENTRE,12/10/2011,91.30
Bath & North East Somerset Council,80028408,YF2,Fees & Charges,P03,Wellbeing,ASHBOURNE HOMES LTD RIVERSIDE CARE CENTRE,12/10/2011,91.30
Bath & North East Somerset Council,80028408,YF2,Fees & Charges,P03,Wellbeing,ASHBOURNE HOMES LTD RIVERSIDE CARE CENTRE,12/10/2011,91.30
Bath & North East Somerset Council,80028408,YF2,Fees & Charges,P03,Wellbeing,ASHBOURNE HOMES LTD RIVERSIDE CARE CENTRE,12/10/2011,91.30
Bath & North East Somerset Council,80028447,YF2,Fees & Charges,P03,Wellbeing,MIMOSA HEALTHCARE,12/10/2011,92.10
Bath & North East Somerset Council,80023255,LM8,Home Care,P03,Wellbeing,NURSING SOLUTIONS LIMITED,12/10/2011,96.00
Bath & North East Somerset Council,80028596,LM2,Foster Carer Allowances,P02,"Early Years, Children & Youth",REDACTED,12/10/2011,100.00
Bath & North East Somerset Council,80028606,LM2,Foster Carer Allowances,P02,"Early Years, Children & Youth",REDACTED,12/10/2011,100.00
Bath & North East Somerset Council,80028606,LM2,Foster Carer Allowances,P02,"Early Years, Children & Youth",REDACTED,12/10/2011,100.00
Bath & North East Somerset Council,80028614,LM2,Foster Carer Allowances,P02,"Early Years, Children & Youth",REDACTED,12/10/2011,100.00
Bath & North East Somerset Council,80028614,LM2,Foster Carer Allowances,P02,"Early Years, Children & Youth",REDACTED,12/10/2011,100.00
Bath & North East Somerset Council,80028628,LM2,Foster Carer Allowances,P02,"Early Years, Children & Youth",REDACTED,12/10/2011,100.00
Bath & North East Somerset Council,80028628,LM2,Foster Carer Allowances,P02,"Early Years, Children & Youth",REDACTED,12/10/2011,100.00
Bath & North East Somerset Council,80028631,LM2,Foster Carer Allowances,P02,"Early Years, Children & Youth",REDACTED,12/10/2011,100.00
Bath & North East Somerset Council,80028637,LM2,Foster Carer Allowances,P02,"Early Years, Children & Youth",REDACTED,12/10/2011,100.00
Bath & North East Somerset Council,80028671,LM2,Foster Carer Allowances,P02,"Early Years, Children & Youth",REDACTED,12/10/2011,100.00
Bath & North East Somerset Council,80028693,LM2,Foster Carer Allowances,P02,"Early Years, Children & Youth",REDACTED,12/10/2011,100.00
Bath & North East Somerset Council,80028396,YF2,Fees & Charges,P03,Wellbeing,CEDAR PARK NURSING HOME,12/10/2011,100.05
Bath & North East Somerset Council,80028396,YF2,Fees & Charges,P03,Wellbeing,CEDAR PARK NURSING HOME,12/10/2011,100.05
Bath & North East Somerset Council,80028396,YF2,Fees & Charges,P03,Wellbeing,CEDAR PARK NURSING HOME,12/10/2011,100.05
Bath & North East Somerset Council,80028396,YF2,Fees & Charges,P03,Wellbeing,CEDAR PARK NURSING HOME,12/10/2011,100.05
Bath & North East Somerset Council,80028396,YF2,Fees & Charges,P03,Wellbeing,CEDAR PARK NURSING HOME,12/10/2011,100.33
Bath & North East Somerset Council,80028368,YF2,Fees & Charges,P03,Wellbeing,FSHC NEWCO 2 LTD: REDACTED,12/10/2011,104.30
Bath & North East Somerset Council,80028368,YF2,Fees & Charges,P03,Wellbeing,FSHC NEWCO 2 LTD: REDACTED,12/10/2011,104.30
Bath & North East Somerset Council,80028368,YF2,Fees & Charges,P03,Wellbeing,FSHC NEWCO 2 LTD: REDACTED,12/10/2011,104.30
Bath & North East Somerset Council,80028364,YF2,Fees & Charges,P03,Wellbeing,CRAEGMOOR FACILITIES COMPANY LIMITED,12/10/2011,105.15
Bath & North East Somerset Council,80028364,YF2,Fees & Charges,P03,Wellbeing,CRAEGMOOR FACILITIES COMPANY LIMITED,12/10/2011,105.15
Bath & North East Somerset Council,80028364,YF2,Fees & Charges,P03,Wellbeing,CRAEGMOOR FACILITIES COMPANY LIMITED,12/10/2011,105.15
Bath & North East Somerset Council,80028364,YF2,Fees & Charges,P03,Wellbeing,CRAEGMOOR FACILITIES COMPANY LIMITED,12/10/2011,105.15
Bath & North East Somerset Council,80028414,YF2,Fees & Charges,P03,Wellbeing,NEWBRIDGE TOWERS RESIDENTIAL CARE HOME,12/10/2011,105.77
Bath & North East Somerset Council,80028414,YF2,Fees & Charges,P03,Wellbeing,NEWBRIDGE TOWERS RESIDENTIAL CARE HOME,12/10/2011,105.77
Bath & North East Somerset Council,80028414,YF2,Fees & Charges,P03,Wellbeing,NEWBRIDGE TOWERS RESIDENTIAL CARE HOME,12/10/2011,105.77
Bath & North East Somerset Council,80028414,YF2,Fees & Charges,P03,Wellbeing,NEWBRIDGE TOWERS RESIDENTIAL CARE HOME,12/10/2011,105.77
Bath & North East Somerset Council,80028354,YF2,Fees & Charges,P03,Wellbeing,BARKER CHEMICALS LTD T/A ST TERESA'S NH,12/10/2011,106.87
Bath & North East Somerset Council,80028354,YF2,Fees & Charges,P03,Wellbeing,BARKER CHEMICALS LTD T/A ST TERESA'S NH,12/10/2011,106.87
Bath & North East Somerset Council,80028354,YF2,Fees & Charges,P03,Wellbeing,BARKER CHEMICALS LTD T/A ST TERESA'S NH,12/10/2011,106.87
Bath & North East Somerset Council,80028354,YF2,Fees & Charges,P03,Wellbeing,BARKER CHEMICALS LTD T/A ST TERESA'S NH,12/10/2011,106.87
Bath & North East Somerset Council,80028354,YF2,Fees & Charges,P03,Wellbeing,BARKER CHEMICALS LTD T/A ST TERESA'S NH,12/10/2011,106.87
Bath & North East Somerset Council,80028354,YF2,Fees & Charges,P03,Wellbeing,BARKER CHEMICALS LTD T/A ST TERESA'S NH,12/10/2011,106.87
Bath & North East Somerset Council,80028354,YF2,Fees & Charges,P03,Wellbeing,BARKER CHEMICALS LTD T/A ST TERESA'S NH,12/10/2011,106.87
Bath & North East Somerset Council,80028354,YF2,Fees & Charges,P03,Wellbeing,BARKER CHEMICALS LTD T/A ST TERESA'S NH,12/10/2011,106.87
Bath & North East Somerset Council,80028354,YF2,Fees & Charges,P03,Wellbeing,BARKER CHEMICALS LTD T/A ST TERESA'S NH,12/10/2011,106.87
Bath & North East Somerset Council,80028354,YF2,Fees & Charges,P03,Wellbeing,BARKER CHEMICALS LTD T/A ST TERESA'S NH,12/10/2011,106.87
Bath & North East Somerset Council,80028354,YF2,Fees & Charges,P03,Wellbeing,BARKER CHEMICALS LTD T/A ST TERESA'S NH,12/10/2011,106.87
Bath & North East Somerset Council,80028354,YF2,Fees & Charges,P03,Wellbeing,BARKER CHEMICALS LTD T/A ST TERESA'S NH,12/10/2011,106.87
Bath & North East Somerset Council,80028354,YF2,Fees & Charges,P03,Wellbeing,BARKER CHEMICALS LTD T/A ST TERESA'S NH,12/10/2011,106.87
Bath & North East Somerset Council,80028354,YF2,Fees & Charges,P03,Wellbeing,BARKER CHEMICALS LTD T/A ST TERESA'S NH,12/10/2011,106.87
Bath & North East Somerset Council,80028354,YF2,Fees & Charges,P03,Wellbeing,BARKER CHEMICALS LTD T/A ST TERESA'S NH,12/10/2011,106.87
Bath & North East Somerset Council,80028354,YF2,Fees & Charges,P03,Wellbeing,BARKER CHEMICALS LTD T/A ST TERESA'S NH,12/10/2011,106.87
Bath & North East Somerset Council,80028354,YF2,Fees & Charges,P03,Wellbeing,BARKER CHEMICALS LTD T/A ST TERESA'S NH,12/10/2011,106.87
Bath & North East Somerset Council,80028354,YF2,Fees & Charges,P03,Wellbeing,BARKER CHEMICALS LTD T/A ST TERESA'S NH,12/10/2011,106.87
Bath & North East Somerset Council,80028354,YF2,Fees & Charges,P03,Wellbeing,BARKER CHEMICALS LTD T/A ST TERESA'S NH,12/10/2011,106.87
Bath & North East Somerset Council,80028354,YF2,Fees & Charges,P03,Wellbeing,BARKER CHEMICALS LTD T/A ST TERESA'S NH,12/10/2011,106.87
Bath & North East Somerset Council,80028354,YF2,Fees & Charges,P03,Wellbeing,BARKER CHEMICALS LTD T/A ST TERESA'S NH,12/10/2011,106.87
Bath & North East Somerset Council,80028354,YF2,Fees & Charges,P03,Wellbeing,BARKER CHEMICALS LTD T/A ST TERESA'S NH,12/10/2011,106.87
Bath & North East Somerset Council,80028354,YF2,Fees & Charges,P03,Wellbeing,BARKER CHEMICALS LTD T/A ST TERESA'S NH,12/10/2011,106.87
Bath & North East Somerset Council,80028354,YF2,Fees & Charges,P03,Wellbeing,BARKER CHEMICALS LTD T/A ST TERESA'S NH,12/10/2011,106.87
Bath & North East Somerset Council,80028354,YF2,Fees & Charges,P03,Wellbeing,BARKER CHEMICALS LTD T/A ST TERESA'S NH,12/10/2011,106.87
Bath & North East Somerset Council,80028354,YF2,Fees & Charges,P03,Wellbeing,BARKER CHEMICALS LTD T/A ST TERESA'S NH,12/10/2011,106.87
Bath & North East Somerset Council,80028354,YF2,Fees & Charges,P03,Wellbeing,BARKER CHEMICALS LTD T/A ST TERESA'S NH,12/10/2011,106.87
Bath & North East Somerset Council,80028354,YF2,Fees & Charges,P03,Wellbeing,BARKER CHEMICALS LTD T/A ST TERESA'S NH,12/10/2011,106.87
Bath & North East Somerset Council,80028354,YF2,Fees & Charges,P03,Wellbeing,BARKER CHEMICALS LTD T/A ST TERESA'S NH,12/10/2011,106.87
Bath & North East Somerset Council,80028354,YF2,Fees & Charges,P03,Wellbeing,BARKER CHEMICALS LTD T/A ST TERESA'S NH,12/10/2011,106.87
Bath & North East Somerset Council,80028354,YF2,Fees & Charges,P03,Wellbeing,BARKER CHEMICALS LTD T/A ST TERESA'S NH,12/10/2011,106.87
Bath & North East Somerset Council,80028354,YF2,Fees & Charges,P03,Wellbeing,BARKER CHEMICALS LTD T/A ST TERESA'S NH,12/10/2011,106.87
Bath & North East Somerset Council,80028354,YF2,Fees & Charges,P03,Wellbeing,BARKER CHEMICALS LTD T/A ST TERESA'S NH,12/10/2011,106.87
Bath & North East Somerset Council,80028354,YF2,Fees & Charges,P03,Wellbeing,BARKER CHEMICALS LTD T/A ST TERESA'S NH,12/10/2011,106.87
Bath & North East Somerset Council,80028354,YF2,Fees & Charges,P03,Wellbeing,BARKER CHEMICALS LTD T/A ST TERESA'S NH,12/10/2011,106.87
Bath & North East Somerset Council,80028354,YF2,Fees & Charges,P03,Wellbeing,BARKER CHEMICALS LTD T/A ST TERESA'S NH,12/10/2011,106.87
Bath & North East Somerset Council,80028354,YF2,Fees & Charges,P03,Wellbeing,BARKER CHEMICALS LTD T/A ST TERESA'S NH,12/10/2011,106.87
Bath & North East Somerset Council,80028354,YF2,Fees & Charges,P03,Wellbeing,BARKER CHEMICALS LTD T/A ST TERESA'S NH,12/10/2011,106.87
Bath & North East Somerset Council,80028354,YF2,Fees & Charges,P03,Wellbeing,BARKER CHEMICALS LTD T/A ST TERESA'S NH,12/10/2011,106.87
Bath & North East Somerset Council,80028354,YF2,Fees & Charges,P03,Wellbeing,BARKER CHEMICALS LTD T/A ST TERESA'S NH,12/10/2011,106.87
Bath & North East Somerset Council,80028354,YF2,Fees & Charges,P03,Wellbeing,BARKER CHEMICALS LTD T/A ST TERESA'S NH,12/10/2011,106.87
Bath & North East Somerset Council,80028354,YF2,Fees & Charges,P03,Wellbeing,BARKER CHEMICALS LTD T/A ST TERESA'S NH,12/10/2011,106.87
Bath & North East Somerset Council,80028354,YF2,Fees & Charges,P03,Wellbeing,BARKER CHEMICALS LTD T/A ST TERESA'S NH,12/10/2011,106.87
Bath & North East Somerset Council,80028354,YF2,Fees & Charges,P03,Wellbeing,BARKER CHEMICALS LTD T/A ST TERESA'S NH,12/10/2011,106.87
Bath & North East Somerset Council,80028354,YF2,Fees & Charges,P03,Wellbeing,BARKER CHEMICALS LTD T/A ST TERESA'S NH,12/10/2011,106.87
Bath & North East Somerset Council,80028354,YF2,Fees & Charges,P03,Wellbeing,BARKER CHEMICALS LTD T/A ST TERESA'S NH,12/10/2011,106.87
Bath & North East Somerset Council,80028354,YF2,Fees & Charges,P03,Wellbeing,BARKER CHEMICALS LTD T/A ST TERESA'S NH,12/10/2011,106.87
Bath & North East Somerset Council,80028390,YF2,Fees & Charges,P03,Wellbeing,BUPACARE SERVICES BACS RECEIPTS,12/10/2011,108.61
Bath & North East Somerset Council,80028390,YF2,Fees & Charges,P03,Wellbeing,BUPACARE SERVICES BACS RECEIPTS,12/10/2011,108.61
Bath & North East Somerset Council,80028390,YF2,Fees & Charges,P03,Wellbeing,BUPACARE SERVICES BACS RECEIPTS,12/10/2011,108.61
Bath & North East Somerset Council,80028390,YF2,Fees & Charges,P03,Wellbeing,BUPACARE SERVICES BACS RECEIPTS,12/10/2011,108.61
Bath & North East Somerset Council,80028434,YF2,Fees & Charges,P03,Wellbeing,WARMLEY HOUSE,12/10/2011,108.70
Bath & North East Somerset Council,80028434,YF2,Fees & Charges,P03,Wellbeing,WARMLEY HOUSE,12/10/2011,108.70
Bath & North East Somerset Council,80028434,YF2,Fees & Charges,P03,Wellbeing,WARMLEY HOUSE,12/10/2011,108.70
Bath & North East Somerset Council,80028434,YF2,Fees & Charges,P03,Wellbeing,WARMLEY HOUSE,12/10/2011,108.70
Bath & North East Somerset Council,80028435,YF2,Fees & Charges,P03,Wellbeing,GRAND CROSS LTD RE KINGSWOOD COURT CARE HOME,12/10/2011,108.70
Bath & North East Somerset Council,80028435,YF2,Fees & Charges,P03,Wellbeing,GRAND CROSS LTD RE KINGSWOOD COURT CARE HOME,12/10/2011,108.70
Bath & North East Somerset Council,80028435,YF2,Fees & Charges,P03,Wellbeing,GRAND CROSS LTD RE KINGSWOOD COURT CARE HOME,12/10/2011,108.70
Bath & North East Somerset Council,80028435,YF2,Fees & Charges,P03,Wellbeing,GRAND CROSS LTD RE KINGSWOOD COURT CARE HOME,12/10/2011,108.70
Bath & North East Somerset Council,80028514,YF2,Fees & Charges,P03,Wellbeing,BARCHESTER HEALTHCARE,12/10/2011,108.70
Bath & North East Somerset Council,80028514,YF2,Fees & Charges,P03,Wellbeing,BARCHESTER HEALTHCARE,12/10/2011,108.70
Bath & North East Somerset Council,80028514,YF2,Fees & Charges,P03,Wellbeing,BARCHESTER HEALTHCARE,12/10/2011,108.70
Bath & North East Somerset Council,80028514,YF2,Fees & Charges,P03,Wellbeing,BARCHESTER HEALTHCARE,12/10/2011,108.70
Bath & North East Somerset Council,80028514,YF2,Fees & Charges,P03,Wellbeing,BARCHESTER HEALTHCARE,12/10/2011,108.70
Bath & North East Somerset Council,80028514,YF2,Fees & Charges,P03,Wellbeing,BARCHESTER HEALTHCARE,12/10/2011,108.70
Bath & North East Somerset Council,80028514,YF2,Fees & Charges,P03,Wellbeing,BARCHESTER HEALTHCARE,12/10/2011,108.70
Bath & North East Somerset Council,80028514,YF2,Fees & Charges,P03,Wellbeing,BARCHESTER HEALTHCARE,12/10/2011,108.70
Bath & North East Somerset Council,80028514,YF2,Fees & Charges,P03,Wellbeing,BARCHESTER HEALTHCARE,12/10/2011,108.70
Bath & North East Somerset Council,80028319,YF2,Fees & Charges,P03,Wellbeing,BRIDGE CARE LTD,12/10/2011,109.30
Bath & North East Somerset Council,80028340,YF2,Fees & Charges,P03,Wellbeing,GLENSIDE MANOR HEALTHCARE SERVICES LTD,12/10/2011,110.30
Bath & North East Somerset Council,80028340,YF2,Fees & Charges,P03,Wellbeing,GLENSIDE MANOR HEALTHCARE SERVICES LTD,12/10/2011,110.30
Bath & North East Somerset Council,80028340,YF2,Fees & Charges,P03,Wellbeing,GLENSIDE MANOR HEALTHCARE SERVICES LTD,12/10/2011,110.30
Bath & North East Somerset Council,80028340,YF2,Fees & Charges,P03,Wellbeing,GLENSIDE MANOR HEALTHCARE SERVICES LTD,12/10/2011,110.30
Bath & North East Somerset Council,80028340,YF2,Fees & Charges,P03,Wellbeing,GLENSIDE MANOR HEALTHCARE SERVICES LTD,12/10/2011,110.30
Bath & North East Somerset Council,80028340,YF2,Fees & Charges,P03,Wellbeing,GLENSIDE MANOR HEALTHCARE SERVICES LTD,12/10/2011,110.30
Bath & North East Somerset Council,80028340,YF2,Fees & Charges,P03,Wellbeing,GLENSIDE MANOR HEALTHCARE SERVICES LTD,12/10/2011,110.30
Bath & North East Somerset Council,80028340,YF2,Fees & Charges,P03,Wellbeing,GLENSIDE MANOR HEALTHCARE SERVICES LTD,12/10/2011,110.30
Bath & North East Somerset Council,10632466,KA2,Running Costs,P01,Transport,SCANIA (GREAT BRITAIN) LIMITED,19/10/2011,115.00
Bath & North East Somerset Council,80028340,YF2,Fees & Charges,P03,Wellbeing,GLENSIDE MANOR HEALTHCARE SERVICES LTD,12/10/2011,110.30
Bath & North East Somerset Council,80028340,YF2,Fees & Charges,P03,Wellbeing,GLENSIDE MANOR HEALTHCARE SERVICES LTD,12/10/2011,110.30
Bath & North East Somerset Council,80028340,YF2,Fees & Charges,P03,Wellbeing,GLENSIDE MANOR HEALTHCARE SERVICES LTD,12/10/2011,110.30
Bath & North East Somerset Council,80028340,YF2,Fees & Charges,P03,Wellbeing,GLENSIDE MANOR HEALTHCARE SERVICES LTD,12/10/2011,110.30
Bath & North East Somerset Council,10630636,LJ8,PCB External Fees,P06,Sustainable Development,DICKON ROBINSON,17/10/2011,115.36
Bath & North East Somerset Council,80028340,YF2,Fees & Charges,P03,Wellbeing,GLENSIDE MANOR HEALTHCARE SERVICES LTD,12/10/2011,110.30
Bath & North East Somerset Council,80028340,YF2,Fees & Charges,P03,Wellbeing,GLENSIDE MANOR HEALTHCARE SERVICES LTD,12/10/2011,110.30
Bath & North East Somerset Council,80028340,YF2,Fees & Charges,P03,Wellbeing,GLENSIDE MANOR HEALTHCARE SERVICES LTD,12/10/2011,110.30
Bath & North East Somerset Council,80028340,YF2,Fees & Charges,P03,Wellbeing,GLENSIDE MANOR HEALTHCARE SERVICES LTD,12/10/2011,110.30
Bath & North East Somerset Council,80028340,YF2,Fees & Charges,P03,Wellbeing,GLENSIDE MANOR HEALTHCARE SERVICES LTD,12/10/2011,110.30
Bath & North East Somerset Council,80028340,YF2,Fees & Charges,P03,Wellbeing,GLENSIDE MANOR HEALTHCARE SERVICES LTD,12/10/2011,110.30
Bath & North East Somerset Council,80028340,YF2,Fees & Charges,P03,Wellbeing,GLENSIDE MANOR HEALTHCARE SERVICES LTD,12/10/2011,110.30
Bath & North East Somerset Council,80028340,YF2,Fees & Charges,P03,Wellbeing,GLENSIDE MANOR HEALTHCARE SERVICES LTD,12/10/2011,110.30
Bath & North East Somerset Council,80028340,YF2,Fees & Charges,P03,Wellbeing,GLENSIDE MANOR HEALTHCARE SERVICES LTD,12/10/2011,110.30
Bath & North East Somerset Council,80028340,YF2,Fees & Charges,P03,Wellbeing,GLENSIDE MANOR HEALTHCARE SERVICES LTD,12/10/2011,110.30
Bath & North East Somerset Council,80028340,YF2,Fees & Charges,P03,Wellbeing,GLENSIDE MANOR HEALTHCARE SERVICES LTD,12/10/2011,110.30
Bath & North East Somerset Council,80028340,YF2,Fees & Charges,P03,Wellbeing,GLENSIDE MANOR HEALTHCARE SERVICES LTD,12/10/2011,110.30
Bath & North East Somerset Council,80028340,YF2,Fees & Charges,P03,Wellbeing,GLENSIDE MANOR HEALTHCARE SERVICES LTD,12/10/2011,110.30
Bath & North East Somerset Council,80028340,YF2,Fees & Charges,P03,Wellbeing,GLENSIDE MANOR HEALTHCARE SERVICES LTD,12/10/2011,110.30
Bath & North East Somerset Council,80028340,YF2,Fees & Charges,P03,Wellbeing,GLENSIDE MANOR HEALTHCARE SERVICES LTD,12/10/2011,110.30
Bath & North East Somerset Council,80028340,YF2,Fees & Charges,P03,Wellbeing,GLENSIDE MANOR HEALTHCARE SERVICES LTD,12/10/2011,110.30
Bath & North East Somerset Council,80028340,YF2,Fees & Charges,P03,Wellbeing,GLENSIDE MANOR HEALTHCARE SERVICES LTD,12/10/2011,110.30
Bath & North East Somerset Council,80028340,YF2,Fees & Charges,P03,Wellbeing,GLENSIDE MANOR HEALTHCARE SERVICES LTD,12/10/2011,110.30
Bath & North East Somerset Council,80028340,YF2,Fees & Charges,P03,Wellbeing,GLENSIDE MANOR HEALTHCARE SERVICES LTD,12/10/2011,110.30
Bath & North East Somerset Council,80028340,YF2,Fees & Charges,P03,Wellbeing,GLENSIDE MANOR HEALTHCARE SERVICES LTD,12/10/2011,110.30
Bath & North East Somerset Council,80028340,YF2,Fees & Charges,P03,Wellbeing,GLENSIDE MANOR HEALTHCARE SERVICES LTD,12/10/2011,110.30
Bath & North East Somerset Council,80028340,YF2,Fees & Charges,P03,Wellbeing,GLENSIDE MANOR HEALTHCARE SERVICES LTD,12/10/2011,110.30
Bath & North East Somerset Council,80028340,YF2,Fees & Charges,P03,Wellbeing,GLENSIDE MANOR HEALTHCARE SERVICES LTD,12/10/2011,110.30
Bath & North East Somerset Council,80028340,YF2,Fees & Charges,P03,Wellbeing,GLENSIDE MANOR HEALTHCARE SERVICES LTD,12/10/2011,110.30
Bath & North East Somerset Council,80028340,YF2,Fees & Charges,P03,Wellbeing,GLENSIDE MANOR HEALTHCARE SERVICES LTD,12/10/2011,110.30
Bath & North East Somerset Council,80028340,YF2,Fees & Charges,P03,Wellbeing,GLENSIDE MANOR HEALTHCARE SERVICES LTD,12/10/2011,110.30
Bath & North East Somerset Council,80028344,YF2,Fees & Charges,P03,Wellbeing,WYVERN LODGE CARE HOME,12/10/2011,110.30
Bath & North East Somerset Council,80028344,YF2,Fees & Charges,P03,Wellbeing,WYVERN LODGE CARE HOME,12/10/2011,110.30
Bath & North East Somerset Council,80028344,YF2,Fees & Charges,P03,Wellbeing,WYVERN LODGE CARE HOME,12/10/2011,110.30
Bath & North East Somerset Council,80028344,YF2,Fees & Charges,P03,Wellbeing,WYVERN LODGE CARE HOME,12/10/2011,110.30
Bath & North East Somerset Council,80028348,YF2,Fees & Charges,P03,Wellbeing,ST BATHENS,12/10/2011,110.30
Bath & North East Somerset Council,80028348,YF2,Fees & Charges,P03,Wellbeing,ST BATHENS,12/10/2011,110.30
Bath & North East Somerset Council,80028348,YF2,Fees & Charges,P03,Wellbeing,ST BATHENS,12/10/2011,110.30
Bath & North East Somerset Council,80028348,YF2,Fees & Charges,P03,Wellbeing,ST BATHENS,12/10/2011,110.30
Bath & North East Somerset Council,80028348,YF2,Fees & Charges,P03,Wellbeing,ST BATHENS,12/10/2011,110.30
Bath & North East Somerset Council,80028348,YF2,Fees & Charges,P03,Wellbeing,ST BATHENS,12/10/2011,110.30
Bath & North East Somerset Council,80028348,YF2,Fees & Charges,P03,Wellbeing,ST BATHENS,12/10/2011,110.30
Bath & North East Somerset Council,80028348,YF2,Fees & Charges,P03,Wellbeing,ST BATHENS,12/10/2011,110.30
Bath & North East Somerset Council,80028348,YF2,Fees & Charges,P03,Wellbeing,ST BATHENS,12/10/2011,110.30
Bath & North East Somerset Council,80028348,YF2,Fees & Charges,P03,Wellbeing,ST BATHENS,12/10/2011,110.30
Bath & North East Somerset Council,80028348,YF2,Fees & Charges,P03,Wellbeing,ST BATHENS,12/10/2011,110.30
Bath & North East Somerset Council,80028348,YF2,Fees & Charges,P03,Wellbeing,ST BATHENS,12/10/2011,110.30
Bath & North East Somerset Council,80028348,YF2,Fees & Charges,P03,Wellbeing,ST BATHENS,12/10/2011,110.30
Bath & North East Somerset Council,80028348,YF2,Fees & Charges,P03,Wellbeing,ST BATHENS,12/10/2011,110.30
Bath & North East Somerset Council,80028348,YF2,Fees & Charges,P03,Wellbeing,ST BATHENS,12/10/2011,110.30
Bath & North East Somerset Council,80028348,YF2,Fees & Charges,P03,Wellbeing,ST BATHENS,12/10/2011,110.30
Bath & North East Somerset Council,80028348,YF2,Fees & Charges,P03,Wellbeing,ST BATHENS,12/10/2011,110.30
Bath & North East Somerset Council,80028348,YF2,Fees & Charges,P03,Wellbeing,ST BATHENS,12/10/2011,110.30
Bath & North East Somerset Council,80028348,YF2,Fees & Charges,P03,Wellbeing,ST BATHENS,12/10/2011,110.30
Bath & North East Somerset Council,80028348,YF2,Fees & Charges,P03,Wellbeing,ST BATHENS,12/10/2011,110.30
Bath & North East Somerset Council,80028348,YF2,Fees & Charges,P03,Wellbeing,ST BATHENS,12/10/2011,110.30
Bath & North East Somerset Council,80028348,YF2,Fees & Charges,P03,Wellbeing,ST BATHENS,12/10/2011,110.30
Bath & North East Somerset Council,80028348,YF2,Fees & Charges,P03,Wellbeing,ST BATHENS,12/10/2011,110.30
Bath & North East Somerset Council,80028348,YF2,Fees & Charges,P03,Wellbeing,ST BATHENS,12/10/2011,110.30
Bath & North East Somerset Council,80028348,YF2,Fees & Charges,P03,Wellbeing,ST BATHENS,12/10/2011,110.30
Bath & North East Somerset Council,80028348,YF2,Fees & Charges,P03,Wellbeing,ST BATHENS,12/10/2011,110.30
Bath & North East Somerset Council,80028350,YF2,Fees & Charges,P03,Wellbeing,T C CAREHOME LTD,12/10/2011,110.30
Bath & North East Somerset Council,80028350,YF2,Fees & Charges,P03,Wellbeing,T C CAREHOME LTD,12/10/2011,110.30
Bath & North East Somerset Council,80028350,YF2,Fees & Charges,P03,Wellbeing,T C CAREHOME LTD,12/10/2011,110.30
Bath & North East Somerset Council,80028350,YF2,Fees & Charges,P03,Wellbeing,T C CAREHOME LTD,12/10/2011,110.30
Bath & North East Somerset Council,80028352,YF2,Fees & Charges,P03,Wellbeing,WESTCROFT NURSING HOME,12/10/2011,110.30
Bath & North East Somerset Council,80028352,YF2,Fees & Charges,P03,Wellbeing,WESTCROFT NURSING HOME,12/10/2011,110.30
Bath & North East Somerset Council,80028352,YF2,Fees & Charges,P03,Wellbeing,WESTCROFT NURSING HOME,12/10/2011,110.30
Bath & North East Somerset Council,80028352,YF2,Fees & Charges,P03,Wellbeing,WESTCROFT NURSING HOME,12/10/2011,110.30
Bath & North East Somerset Council,80028352,YF2,Fees & Charges,P03,Wellbeing,WESTCROFT NURSING HOME,12/10/2011,110.30
Bath & North East Somerset Council,80028352,YF2,Fees & Charges,P03,Wellbeing,WESTCROFT NURSING HOME,12/10/2011,110.30
Bath & North East Somerset Council,80028352,YF2,Fees & Charges,P03,Wellbeing,WESTCROFT NURSING HOME,12/10/2011,110.30
Bath & North East Somerset Council,80028352,YF2,Fees & Charges,P03,Wellbeing,WESTCROFT NURSING HOME,12/10/2011,110.30
Bath & North East Somerset Council,80028352,YF2,Fees & Charges,P03,Wellbeing,WESTCROFT NURSING HOME,12/10/2011,110.30
Bath & North East Somerset Council,80028352,YF2,Fees & Charges,P03,Wellbeing,WESTCROFT NURSING HOME,12/10/2011,110.30
Bath & North East Somerset Council,80028352,YF2,Fees & Charges,P03,Wellbeing,WESTCROFT NURSING HOME,12/10/2011,110.30
Bath & North East Somerset Council,80028352,YF2,Fees & Charges,P03,Wellbeing,WESTCROFT NURSING HOME,12/10/2011,110.30
Bath & North East Somerset Council,80028352,YF2,Fees & Charges,P03,Wellbeing,WESTCROFT NURSING HOME,12/10/2011,110.30
Bath & North East Somerset Council,80028352,YF2,Fees & Charges,P03,Wellbeing,WESTCROFT NURSING HOME,12/10/2011,110.30
Bath & North East Somerset Council,80028352,YF2,Fees & Charges,P03,Wellbeing,WESTCROFT NURSING HOME,12/10/2011,110.30
Bath & North East Somerset Council,80028352,YF2,Fees & Charges,P03,Wellbeing,WESTCROFT NURSING HOME,12/10/2011,110.30
Bath & North East Somerset Council,80028352,YF2,Fees & Charges,P03,Wellbeing,WESTCROFT NURSING HOME,12/10/2011,110.30
Bath & North East Somerset Council,80028352,YF2,Fees & Charges,P03,Wellbeing,WESTCROFT NURSING HOME,12/10/2011,110.30
Bath & North East Somerset Council,80028352,YF2,Fees & Charges,P03,Wellbeing,WESTCROFT NURSING HOME,12/10/2011,110.30
Bath & North East Somerset Council,80028352,YF2,Fees & Charges,P03,Wellbeing,WESTCROFT NURSING HOME,12/10/2011,110.30
Bath & North East Somerset Council,80028352,YF2,Fees & Charges,P03,Wellbeing,WESTCROFT NURSING HOME,12/10/2011,110.30
Bath & North East Somerset Council,80028352,YF2,Fees & Charges,P03,Wellbeing,WESTCROFT NURSING HOME,12/10/2011,110.30
Bath & North East Somerset Council,80028352,YF2,Fees & Charges,P03,Wellbeing,WESTCROFT NURSING HOME,12/10/2011,110.30
Bath & North East Somerset Council,80028352,YF2,Fees & Charges,P03,Wellbeing,WESTCROFT NURSING HOME,12/10/2011,110.30
Bath & North East Somerset Council,80028352,YF2,Fees & Charges,P03,Wellbeing,WESTCROFT NURSING HOME,12/10/2011,110.30
Bath & North East Somerset Council,80028352,YF2,Fees & Charges,P03,Wellbeing,WESTCROFT NURSING HOME,12/10/2011,110.30
Bath & North East Somerset Council,80028368,YF2,Fees & Charges,P03,Wellbeing,FSHC NEWCO 2 LTD: REDACTED,12/10/2011,110.30
Bath & North East Somerset Council,80028368,YF2,Fees & Charges,P03,Wellbeing,FSHC NEWCO 2 LTD: REDACTED,12/10/2011,110.30
Bath & North East Somerset Council,80028368,YF2,Fees & Charges,P03,Wellbeing,FSHC NEWCO 2 LTD: REDACTED,12/10/2011,110.30
Bath & North East Somerset Council,80028368,YF2,Fees & Charges,P03,Wellbeing,FSHC NEWCO 2 LTD: REDACTED,12/10/2011,110.30
Bath & North East Somerset Council,80028368,YF2,Fees & Charges,P03,Wellbeing,FSHC NEWCO 2 LTD: REDACTED,12/10/2011,110.30
Bath & North East Somerset Council,80028368,YF2,Fees & Charges,P03,Wellbeing,FSHC NEWCO 2 LTD: REDACTED,12/10/2011,110.30
Bath & North East Somerset Council,80028368,YF2,Fees & Charges,P03,Wellbeing,FSHC NEWCO 2 LTD: REDACTED,12/10/2011,110.30
Bath & North East Somerset Council,80028368,YF2,Fees & Charges,P03,Wellbeing,FSHC NEWCO 2 LTD: REDACTED,12/10/2011,110.30
Bath & North East Somerset Council,80028368,YF2,Fees & Charges,P03,Wellbeing,FSHC NEWCO 2 LTD: REDACTED,12/10/2011,110.30
Bath & North East Somerset Council,80028368,YF2,Fees & Charges,P03,Wellbeing,FSHC NEWCO 2 LTD: REDACTED,12/10/2011,110.30
Bath & North East Somerset Council,80028368,YF2,Fees & Charges,P03,Wellbeing,FSHC NEWCO 2 LTD: REDACTED,12/10/2011,110.30
Bath & North East Somerset Council,80028368,YF2,Fees & Charges,P03,Wellbeing,FSHC NEWCO 2 LTD: REDACTED,12/10/2011,110.30
Bath & North East Somerset Council,80028368,YF2,Fees & Charges,P03,Wellbeing,FSHC NEWCO 2 LTD: REDACTED,12/10/2011,110.30
Bath & North East Somerset Council,80028368,YF2,Fees & Charges,P03,Wellbeing,FSHC NEWCO 2 LTD: REDACTED,12/10/2011,110.30
Bath & North East Somerset Council,80028368,YF2,Fees & Charges,P03,Wellbeing,FSHC NEWCO 2 LTD: REDACTED,12/10/2011,110.30
Bath & North East Somerset Council,80028368,YF2,Fees & Charges,P03,Wellbeing,FSHC NEWCO 2 LTD: REDACTED,12/10/2011,110.30
Bath & North East Somerset Council,80028368,YF2,Fees & Charges,P03,Wellbeing,FSHC NEWCO 2 LTD: REDACTED,12/10/2011,110.30
Bath & North East Somerset Council,80028368,YF2,Fees & Charges,P03,Wellbeing,FSHC NEWCO 2 LTD: REDACTED,12/10/2011,110.30
